{"text_format":"1","workbook":"xlsx","n_sheets":5,"sheets":["Master Pay Items_Full_Item No_2","Form SPA-1DB","2018 Eligible List","2024 Eligible List","Sheet3"],"not_rendered":{"charts":0,"images":0,"macros":0,"external_links":0,"defined_names":0,"comments":0,"pivot_tables":0},"unopened":[],"bounds":{"document_bytes":16777216,"sheet_cells":100000,"rows_first":2000,"rows_last":500,"rows_between":2000,"halvings":0,"cell_chars":16384,"cell_head_chars":4096},"cells_cut":0,"cells_raw":0,"read":"whole","date_system":"1900"}

{"sheet":"Master Pay Items_Full_Item No_2","index":0,"n_rows":1262,"n_cols":6,"rows_kept":1262,"cut":false,"hidden":false,"merged":[]}
["Pay Item ID","Item Number","Long Description","Unit of Measure","Section Number","Category Description"]
[88405,"8007000000-N","CONSTRUCTION, MAINTENANCE, &  REMOVAL OF TEMP STRUCTURE ATSTA ************,","Lump Sum",400,"Bridge(B)"]
[88407,"8014000000-N","TEMPORARY RAILROAD SHORING FORBENT ***, STATION ***********,","Lump Sum",9000,"Bridge(B)"]
[88409,"8017000000-N","CONSTRUCTION, MAINTENANCE, &  REMOVAL OF TEMP ACCESS AT STA************,","Lump Sum",9000,"Bridge(B)"]
[88432,"8105500000-E","**'-** DIA DRILLED PIERS IN  SOIL,\"","Linear Feet",411,"Bridge(B)"]
[88433,"8105520000-E","3'-0 DIA DRILLED PIERS IN    SOIL,\"","Linear Feet",411,"Bridge(B)"]
[88434,"8105540000-E","3'-6 DIA DRILLED PIERS IN    SOIL,\"","Linear Feet",411,"Bridge(B)"]
[88435,"8105560000-E","4'-0 DIA DRILLED PIERS IN    SOIL,\"","Linear Feet",411,"Bridge(B)"]
[88436,"8105600000-E","**'-** DIA DRILLED PIERS NOT IN SOIL,\"","Linear Feet",411,"Bridge(B)"]
[88437,"8105620000-E","3'-0 DIA DRILLED PIERS NOT IN SOIL,\"","Linear Feet",411,"Bridge(B)"]
[88438,"8105640000-E","3'-6 DIA DRILLED PIERS NOT IN SOIL,\"","Linear Feet",411,"Bridge(B)"]
[88439,"8105660000-E","4'-0 DIA DRILLED PIERS NOT IN SOIL,\"","Linear Feet",411,"Bridge(B)"]
[88440,"8108000000-E","**'-** DIA DRILLED PIERS,\"","Linear Feet",411,"Bridge(B)"]
[88441,"8111000000-E","PERMANENT STEEL CASING FOR    **'-** DIA DRILLED PIER,\"","Linear Feet",411,"Bridge(B)"]
[88442,"8111200000-E","PERMANENT STEEL CASING FOR    3'-0 DIA DRILLED PIER,\"","Linear Feet",411,"Bridge(B)"]
[88443,"8111400000-E","PERMANENT STEEL CASING FOR    3'-6 DIA DRILLED PIER,\"","Linear Feet",411,"Bridge(B)"]
[88444,"8111600000-E","PERMANENT STEEL CASING FOR    4'-0 DIA DRILLED PIER,\"","Linear Feet",411,"Bridge(B)"]
[88459,"8147000000-E","REINFORCED CONCRETE DECK SLAB,","Square Feet",420,"Bridge(B)"]
[88460,"8154000000-E","REINFORCED CONCRETE DECK SLAB (SAND LIGHTWEIGHT CONC),","Square Feet",420,"Bridge(B)"]
[88463,"8168000000-E","CLASS AAA CONCRETE (BRIDGE),","Cubic Yards",420,"Bridge(B)"]
[88464,"8175000000-E","CLASS AA CONCRETE (BRIDGE),","Cubic Yards",420,"Bridge(B)"]
[88465,"8182000000-E","CLASS A CONCRETE (BRIDGE),","Cubic Yards",420,"Bridge(B)"]
[88466,"8189000000-E","CLASS S CONCRETE (SEAL),","Cubic Yards",9000,"Bridge(B)"]
[88470,"8210000000-N","BRIDGE APPROACH SLABS, STATION************,","Lump Sum",422,"Bridge(B)"]
[88471,"8217000000-E","REINFORCING STEEL (BRIDGE),","Pounds",425,"Bridge(B)"]
[88472,"8224000000-E","EPOXY COATED REINFORCING STEEL(BRIDGE),","Pounds",425,"Bridge(B)"]
[88473,"8226000000-E","EPOXY COATED SPIRAL COLUMN RE-INFORCING STEEL (BRIDGE),","Pounds",425,"Bridge(B)"]
[88474,"8238000000-E","SPIRAL COLUMN REINFORCING     STEEL (BRIDGE),","Pounds",425,"Bridge(B)"]
[88478,"8256000000-E","TYPE III PRESRESSED CONCRETE  DECK GIRDER,","Linear Feet",9000,"Bridge(B)"]
[88479,"8259000000-E","36 PRESTRESSED CONCRETE GIR- DERS,\"","Linear Feet",430,"Bridge(B)"]
[88480,"8262000000-E","45 PRESTRESSED CONCRETE GIR- DERS,\"","Linear Feet",430,"Bridge(B)"]
[88481,"8265000000-E","54 PRESTRESSED CONCRETE GIR- DERS,\"","Linear Feet",430,"Bridge(B)"]
[88482,"8268000000-E","63 PRESTRESSED CONCRETE GIR- DERS,\"","Linear Feet",430,"Bridge(B)"]
[88483,"8271000000-E","72 PRESTRESSED CONCRETE GIR- DERS,\"","Linear Feet",430,"Bridge(B)"]
[88484,"8274000000-E","MODIFIED 63 PRESTRESSED CONC GIRDERS,\"","Linear Feet",430,"Bridge(B)"]
[88485,"8277000000-E","MODIFIED 72 PRESTRESSED CONC GIRDERS,\"","Linear Feet",430,"Bridge(B)"]
[88486,"8280000000-E","APPROX ........ LBS STRUCTURALSTEEL,","Lump Sum",440,"Bridge(B)"]
[88488,"8294000000-N","PAINTING OF STRUCTURAL STEEL,","Lump Sum",442,"Bridge(B)"]
[88491,"8322000000-E","TREATED TIMBER PILES,","Linear Feet",9000,"Bridge(B)"]
[88492,"8329000000-E","12 PRESTRESSED CONCRETE PILES,\"","Linear Feet",450,"Bridge(B)"]
[88493,"8333000000-E","16 PRESTRESSED CONCRETE PILES,\"","Linear Feet",450,"Bridge(B)"]
[88494,"8336000000-E","20 PRESTRESSED CONCRETE PILES,\"","Linear Feet",450,"Bridge(B)"]
[88495,"8343000000-E","22 PRESTRESSED CONCRETE PILES,\"","Linear Feet",450,"Bridge(B)"]
[88496,"8350000000-E","24 PRESTRESSED CONCRETE PILES,\"","Linear Feet",450,"Bridge(B)"]
[88497,"8353000000-E","30 PRESTRESSED CONCRETE PILES,\"","Linear Feet",450,"Bridge(B)"]
[88498,"8355000000-E","HP ***X*** STEEL PILES,","Linear Feet",450,"Bridge(B)"]
[88499,"8357000000-E","HP10X42 STEEL PILES,","Linear Feet",450,"Bridge(B)"]
[88500,"8364000000-E","HP12X53 STEEL PILES,","Linear Feet",450,"Bridge(B)"]
[88501,"8365000000-E","HP12X53 GALVANIZED STEEL PILES,","Linear Feet",450,"Bridge(B)"]
[88503,"8384000000-E","HP14X73 STEEL PILES,","Linear Feet",450,"Bridge(B)"]
[88504,"8384200000-E","HP14X73 GALVANIZED STEEL PILES,","Linear Feet",450,"Bridge(B)"]
[88505,"8385000000-E","PP ** X **** STEEL PILES,","Linear Feet",450,"Bridge(B)"]
[88506,"8385200000-E","PP ** X **** GALVANIZED STEEL PILES,","Linear Feet",450,"Bridge(B)"]
[88507,"8386000000-E","PP 18 X 0.50 STEEL PILES,","Linear Feet",450,"Bridge(B)"]
[88508,"8387000000-E","PP 18 X 0.50 GALVANIZED STEEL PILES,","Linear Feet",450,"Bridge(B)"]
[88510,"8391000000-N","STEEL PILE POINTS,","Each",450,"Bridge(B)"]
[88512,"8392000000-N","PIPE PILE PLATES,","Each",450,"Bridge(B)"]
[88516,"8440000000-E","METHOD A WATERPROOFING,","Square Yards",458,"Bridge(B)"]
[88517,"8453000000-E","METHOD B DAMPPROOFING,","Square Yards",454,"Bridge(B)"]
[88518,"8468000000-E","ONE BAR METAL RAIL,","Linear Feet",460,"Bridge(B)"]
[88519,"8475000000-E","TWO BAR METAL RAIL,","Linear Feet",460,"Bridge(B)"]
[88520,"8482000000-E","THREE BAR METAL RAIL,","Linear Feet",460,"Bridge(B)"]
[88521,"8496000000-E","***** GALVANIZED STEEL PIPE  RAIL,\"","Linear Feet",460,"Bridge(B)"]
[88522,"8503000000-E","CONCRETE BARRIER RAIL,","Linear Feet",460,"Bridge(B)"]
[88523,"8505000000-E","VERTICAL CONCRETE BARRIER RAIL,","Linear Feet",460,"Bridge(B)"]
[88524,"8510000000-E","CONCRETE MEDIAN BARRIER,","Linear Feet",460,"Bridge(B)"]
[88525,"8517000000-E","1'-**X *****\" CONCRETE PARA- PET,\"","Linear Feet",460,"Bridge(B)"]
[88526,"8524000000-E","** CHAIN LINK FENCE,\"","Linear Feet",9000,"Bridge(B)"]
[88527,"8531000000-E","4 SLOPE PROTECTION,\"","Square Yards",462,"Bridge(B)"]
[88528,"8538000000-E","CLASS I, SURFACE PREPARATION,","Square Yards",9000,"Bridge(B)"]
[88529,"8545000000-E","CLASS IA, SURFACE PREPARATION,","Square Yards",9000,"Bridge(B)"]
[88530,"8552000000-E","CLASS IB, SURFACE PREPARATION,","Square Yards",9000,"Bridge(B)"]
[88531,"8559000000-E","CLASS II, SURFACE PREPARATION,","Square Yards",9000,"Bridge(B)"]
[88532,"8566000000-E","CLASS III, SURFACE PREPARATION,","Square Yards",9000,"Bridge(B)"]
[88533,"8573000000-E","LATEX MODIFIED CONC OVERLAY,","Cubic Yards",9000,"Bridge(B)"]
[88535,"8590000000-E","RIP RAP, CLASS **,","Tons",876,"Bridge(B)"]
[88536,"8594000000-E","RIP RAP, CLASS B,","Tons",876,"Bridge(B)"]
[88537,"8601000000-E","RIP RAP CLASS II (1'-6 THICK),\"","Tons",876,"Bridge(B)"]
[88538,"8608000000-E","RIP RAP CLASS II (2'-0 THICK),\"","Tons",876,"Bridge(B)"]
[88539,"8615000000-E","RIP RAP CLASS II (3'-0 THICK),\"","Tons",876,"Bridge(B)"]
[88540,"8622000000-E","GEOTEXTILE FOR DRAINAGE,","Square Yards",876,"Bridge(B)"]
[88541,"8629000000-E","STONE FOR EROSION CONTROL,    CLASS B,","Tons",1610,"Bridge(B)"]
[88543,"8643000000-N","TFE EXPANSION BEARING ASSEM-  BLIES,","Lump Sum",9000,"Bridge(B)"]
[88545,"8650000000-N","POT BEARINGS,","Lump Sum",9000,"Bridge(B)"]
[88547,"8657000000-N","ELASTOMERIC BEARINGS,","Lump Sum",430,"Bridge(B)"]
[88548,"8664000000-E","SHOTCRETE REPAIRS,","Cubic Feet",9000,"Bridge(B)"]
[88550,"8671000000-N","SHOTCRETE CORE SAMPLES,","Each",9000,"Bridge(B)"]
[88551,"8678000000-E","EPOXY RESIN INJECTION,","Linear Feet",9000,"Bridge(B)"]
[88552,"8685000000-E","EPOXY MORTAR REPAIRS,","Square Feet",9000,"Bridge(B)"]
[88554,"8692000000-N","FOAM JOINT SEALS,","Lump Sum",9000,"Bridge(B)"]
[88556,"8699000000-N","STRIP SEALS,","Lump Sum",9000,"Bridge(B)"]
[88558,"8706000000-N","EXPANSION JOINT SEALS,","Lump Sum",9000,"Bridge(B)"]
[88560,"8713000000-N","MODULAR EXPANSION JOINT SEALS,","Lump Sum",9000,"Bridge(B)"]
[88562,"8727000000-N","ELECTRICAL CONDUIT SYSTEM FOR SIGNALS AT  STA************,","Lump Sum",9000,"Bridge(B)"]
[88566,"8741000000-N","STRUCTURE DRAINAGE SYSTEM AT  STA************,","Lump Sum",9000,"Bridge(B)"]
[88568,"8744000000-N","SOLAR ARRAY SUPPORT PLATFORM,","Lump Sum",9000,"Bridge(B)"]
[88569,"8748000000-E","SELECT MATERIAL,     CLASS **,","Tons",9000,"Bridge(B)"]
[88570,"8752000000-E","CONCRETE BOX BEAMS,","Linear Feet",430,"Bridge(B)"]
[88571,"8753000000-E","3'-0 X 2'-3\" PRESTRESSED CONCBOX BEAMS,\"","Linear Feet",430,"Bridge(B)"]
[88572,"8753100000-E","3'-0 X 2'-9\" PRESTRESSED CONCBOX BEAMS,\"","Linear Feet",430,"Bridge(B)"]
[88573,"8753200000-E","3'-0 X 3'-3\" PRESTRESSED CONCBOX BEAMS,\"","Linear Feet",430,"Bridge(B)"]
[88574,"8755000000-E","3'-0 X 1'-6\" PRESTRESSED CONCCORED SLABS,\"","Linear Feet",430,"Bridge(B)"]
[88575,"8762000000-E","3'-0 X 1'-9\" PRESTRESSED CONCCORED SLABS,\"","Linear Feet",430,"Bridge(B)"]
[88576,"8763000000-E","3'-0 X 2'-0\" PRESTRESSED CONCCORED SLABS,\"","Linear Feet",430,"Bridge(B)"]
[88578,"8765000000-N","CONSTRUCTION OF SUBSTRUCTURE,","Lump Sum",9000,"Bridge(B)"]
[88580,"8766000000-N","CONSTRUCTION OF SUPERSTRUCTURE,","Lump Sum",9000,"Bridge(B)"]
[88613,"8860000000-N","GENERIC STRUCTURE ITEM,","Lump Sum",9000,"Bridge(B)"]
[88615,"8867000000-E","GENERIC STRUCTURE ITEM,","Linear Feet",9000,"Bridge(B)"]
[88616,"8874000000-E","GENERIC STRUCTURE ITEM,","Tons",9000,"Bridge(B)"]
[88617,"8881000000-E","GENERIC STRUCTURE ITEM,","Cubic Yards",9000,"Bridge(B)"]
[88618,"8882000000-E","GENERIC STRUCTURE ITEM,","Cubic Feet",9000,"Bridge(B)"]
[88619,"8889000000-E","GENERIC STRUCTURE ITEM,","Pounds",9000,"Bridge(B)"]
[88620,"8892000000-E","GENERIC STRUCTURE ITEM,","Square Feet",9000,"Bridge(B)"]
[88621,"8893000000-E","GENERIC STRUCTURE ITEM,","Square Yards",9000,"Bridge(B)"]
[88623,"8897000000-N","GENERIC STRUCTURE ITEM,","Each",9000,"Bridge(B)"]
[88669,"8660000000-E","CONCRETE REPAIRS,","Cubic Feet",9000,"Bridge(B)"]
[88704,"8392500000-E","PREDRILLING FOR PILES,","Linear Feet",450,"Bridge(B)"]
[88707,"8869000000-E","GENERIC STRUCTURE ITEM,","1000 Board Feet",9000,"Bridge(B)"]
[88708,"8532000000-E","** SLOPE PROTECTION,\"","Square Yards",462,"Bridge(B)"]
[88715,"8522000000-E","GENERIC STRUCTURE ITEM,","Linear Feet",460,"Bridge(B)"]
[88722,"8654000000-N","DISC BEARINGS,","Lump Sum",9000,"Bridge(B)"]
[89381,"8483000000-E","32 ALASKA RAIL,\"","Linear Feet",460,"Bridge(B)"]
[89382,"8484000000-E","42 OREGON RAIL,\"","Linear Feet",460,"Bridge(B)"]
[89383,"8504000000-E","CONCRETE BARRIER RAIL WITH    MOMENT SLAB,","Linear Feet",460,"Bridge(B)"]
[89440,"8356000000-E","HP**X** GALVANIZED STEEL PILES,","Linear Feet",450,"Bridge(B)"]
[88423,"8063000000-N","PRECAST REINFORCED CONC BOX   CULVERT AT STA ************,","Lump Sum",9000,"Culvert(C)"]
[88457,"8133000000-E","FOUNDATION CONDITIONING MATER-IAL, BOX CULVERT,","Tons",414,"Culvert(C)"]
[88467,"8196000000-E","CLASS A CONCRETE (CULVERT),","Cubic Yards",420,"Culvert(C)"]
[88475,"8245000000-E","REINFORCING STEEL (CULVERT),","Pounds",425,"Culvert(C)"]
[88476,"8248000000-E","EPOXY COATED REINFORCING STEEL(CULVERT),","Pounds",425,"Culvert(C)"]
[88564,"8734000000-N","ELECTRICAL CONDUIT SYSTEM AT  STA************,","Lump Sum",9000,"Culvert(C)"]
[88594,"8804000000-N","GENERIC CULVERT ITEM,","Lump Sum",9000,"Culvert(C)"]
[88596,"8806000000-N","GENERIC CULVERT ITEM,","Each",9000,"Culvert(C)"]
[88597,"8811000000-E","GENERIC CULVERT ITEM,","Linear Feet",9000,"Culvert(C)"]
[88598,"8818000000-E","GENERIC CULVERT ITEM,","Tons",9000,"Culvert(C)"]
[88599,"8821000000-E","GENERIC CULVERT ITEM,","Square Feet",9000,"Culvert(C)"]
[88600,"8822000000-E","GENERIC CULVERT ITEM,","Square Yards",9000,"Culvert(C)"]
[88601,"8825000000-E","GENERIC CULVERT ITEM,","Cubic Yards",9000,"Culvert(C)"]
[88602,"8826000000-E","GENERIC CULVERT ITEM,","Cubic Yards",420,"Culvert(C)"]
[88727,"8815000000-E","GENERIC CULVERT ITEM,","Pounds",9000,"Culvert(C)"]
[86717,"0588000000-E","18 CS PIPE CULVERTS, 0.064\"  THICK,\"","Linear Feet",310,"Drainage(D)"]
[86718,"0594000000-E","24 CS PIPE CULVERTS, 0.064\"  THICK,\"","Linear Feet",310,"Drainage(D)"]
[86719,"0600000000-E","30 CS PIPE CULVERTS, 0.079\"  THICK,\"","Linear Feet",310,"Drainage(D)"]
[86744,"0314000000-E","SELECT MATERIAL, CLASS *****,","Tons",9000,"Drainage(D)"]
[86745,"0318000000-E","FOUNDATION CONDITIONING MATE- RIAL, MINOR STRUCTURES,","Tons",300,"Drainage(D)"]
[86746,"0320000000-E","FOUNDATION CONDITIONING GEO-  TEXTILE,","Square Yards",300,"Drainage(D)"]
[86747,"0330000000-E","GENERIC DRAINAGE ITEM,","Tons",9000,"Drainage(D)"]
[86748,"0331000000-E","GENERIC DRAINAGE ITEM,","Cubic Yards",9000,"Drainage(D)"]
[86749,"0335000000-E","** DRAINAGE PIPE,\"","Linear Feet",305,"Drainage(D)"]
[86750,"0335100000-E","12 DRAINAGE PIPE,\"","Linear Feet",305,"Drainage(D)"]
[86751,"0335200000-E","15 DRAINAGE PIPE,\"","Linear Feet",305,"Drainage(D)"]
[86752,"0335300000-E","18 DRAINAGE PIPE,\"","Linear Feet",305,"Drainage(D)"]
[86753,"0335400000-E","24 DRAINAGE PIPE,\"","Linear Feet",305,"Drainage(D)"]
[86754,"0335500000-E","30 DRAINAGE PIPE,\"","Linear Feet",305,"Drainage(D)"]
[86755,"0335600000-E","36 DRAINAGE PIPE,\"","Linear Feet",305,"Drainage(D)"]
[86756,"0335700000-E","42 DRAINAGE PIPE,\"","Linear Feet",305,"Drainage(D)"]
[86757,"0335800000-E","48 DRAINAGE PIPE,\"","Linear Feet",305,"Drainage(D)"]
[86758,"0335850000-E","** DRAINAGE PIPE ELBOWS,\"","Each",305,"Drainage(D)"]
[86759,"0342000000-E","** SIDE DRAIN PIPE,\"","Linear Feet",310,"Drainage(D)"]
[86760,"0343000000-E","15 SIDE DRAIN PIPE,\"","Linear Feet",310,"Drainage(D)"]
[86761,"0344000000-E","18 SIDE DRAIN PIPE,\"","Linear Feet",310,"Drainage(D)"]
[86762,"0345000000-E","24 SIDE DRAIN PIPE,\"","Linear Feet",310,"Drainage(D)"]
[86814,"0084000000-E","WICK DRAINS,","Linear Feet",9000,"Drainage(D)"]
[86826,"0926000000-E","*** CS STRUCTURAL PLATE PIPE, ** GAUGE,\"","Linear Feet",9000,"Drainage(D)"]
[86827,"0932000000-E","*** CS STRUCTURAL PLATE PIPE, ** GAUGE, ELONGATED,\"","Linear Feet",9000,"Drainage(D)"]
[86828,"0938000000-E","** X **\" CS STRUCTURAL PLATE PIPE ARCH, ** GAUGE,\"","Linear Feet",9000,"Drainage(D)"]
[86829,"0944000000-E","** X **\" ECCENTRIC STRUCTURALPLATE PIPE REDUCER, ** GAUGE,\"","Each",9000,"Drainage(D)"]
[86830,"0950000000-E","** CAA STRUCTURAL PLATE PIPE, *****\" THICK,\"","Linear Feet",9000,"Drainage(D)"]
[86831,"0956000000-E","** CAA STRUCTURAL PLATE PIPE, *****\" THICK, ELONGATED,\"","Linear Feet",9000,"Drainage(D)"]
[86832,"0962000000-E","** X **\" CAA STRUCTURAL PLATEPIPE ARCH, *****\" THICK,\"","Linear Feet",9000,"Drainage(D)"]
[86833,"0973100000-E","** WELDED STEEL PIPE, ****\"  THICK, GRADE B IN SOIL,\"","Linear Feet",330,"Drainage(D)"]
[86834,"0973300000-E","** WELDED STEEL PIPE, ****\"  THICK, GRADE B NOT IN SOIL,\"","Linear Feet",330,"Drainage(D)"]
[86835,"0974000000-E","** WELDED STEEL PIPE, *****\" THICK, GRADE B, (UNDER RR),\"","Linear Feet",9000,"Drainage(D)"]
[86836,"0986000000-E","GENERIC PIPE ITEM,","Linear Feet",9000,"Drainage(D)"]
[86837,"0987000000-E","GENERIC PIPE ITEM,","Linear Feet",310,"Drainage(D)"]
[86838,"0988000000-E","GENERIC PIPE ITEM,","Each",310,"Drainage(D)"]
[86839,"0992000000-E","GENERIC PIPE ITEM,","Each",9000,"Drainage(D)"]
[86868,"2486000000-E","GENERIC DRAINAGE ITEM,","Square Feet",9000,"Drainage(D)"]
[86882,"2026000000-E","GEOTEXTILE FOR SUBSURFACE     DRAINS,","Square Yards",815,"Drainage(D)"]
[86883,"2033000000-E","SUBDRAIN FINE AGGREGATE,","Cubic Yards",815,"Drainage(D)"]
[86884,"2036000000-E","SUBDRAIN COARSE AGGREGATE,","Cubic Yards",815,"Drainage(D)"]
[86885,"2043000000-E","4 PERFORATED SUBDRAIN PIPE,\"","Linear Feet",815,"Drainage(D)"]
[86886,"2044000000-E","6 PERFORATED SUBDRAIN PIPE,\"","Linear Feet",815,"Drainage(D)"]
[86888,"2070000000-N","SUBDRAIN PIPE OUTLET,","Each",815,"Drainage(D)"]
[86889,"2076000000-E","4 OUTLET PIPE,\"","Linear Feet",815,"Drainage(D)"]
[86890,"2077000000-E","6 OUTLET PIPE,\"","Linear Feet",815,"Drainage(D)"]
[86891,"2088000000-E","** GEOCOMPOSITE SHOULDER     DRAINS,\"","Linear Feet",9000,"Drainage(D)"]
[86892,"2099000000-E","SHOULDER DRAIN,","Linear Feet",816,"Drainage(D)"]
[86893,"2110000000-E","4 SHOULDER DRAIN PIPE,\"","Linear Feet",816,"Drainage(D)"]
[86894,"2121000000-E","4 OUTLET PIPE FOR SHOULDER   DRAINS,\"","Linear Feet",816,"Drainage(D)"]
[86896,"2132000000-N","CONCRETE PAD FOR SHOULDER     DRAIN PIPE OUTLET,","Each",816,"Drainage(D)"]
[86910.274509803901,"0986000000-E","GENERIC PIPE ITEM,","Linear Feet",470.31372549019898,"Drainage(D)"]
[86913.864809081497,"0987000000-E","GENERIC PIPE ITEM,","Linear Feet",248.45201238389899,"Drainage(D)"]
[86917.455108359107,"0988000000-E","GENERIC PIPE ITEM,","Each",26.590299277609098,"Drainage(D)"]
[86921.045407636702,"0992000000-E","GENERIC PIPE ITEM,","Each",-195.27141382868999,"Drainage(D)"]
[86924.6357069144,"2486000000-E","GENERIC DRAINAGE ITEM,","Square Feet",-417.13312693498,"Drainage(D)"]
[86928.226006191995,"2026000000-E","GEOTEXTILE FOR SUBSURFACE     DRAINS,","Square Yards",-638.99484004127999,"Drainage(D)"]
[86931.816305469605,"2033000000-E","SUBDRAIN FINE AGGREGATE,","Cubic Yards",-860.85655314757105,"Drainage(D)"]
[86935.406604747201,"2036000000-E","SUBDRAIN COARSE AGGREGATE,","Cubic Yards",-1082.7182662538701,"Drainage(D)"]
[86938.996904024796,"2043000000-E","8 PERFORATED SUBDRAIN PIPE,\"","Linear Feet",-1304.57997936016,"Drainage(D)"]
[86942.587203302406,"2044000000-E","10 PERFORATED SUBDRAIN PIPE,\"","Linear Feet",-1526.4416924664599,"Drainage(D)"]
[86912,"2286000000-N","MASONRY DRAINAGE STRUCTURES,","Each",840,"Drainage(D)"]
[86913,"2297000000-E","MASONRY DRAINAGE STRUCTURES,","Cubic Yards",840,"Drainage(D)"]
[86914,"2308000000-E","MASONRY DRAINAGE STRUCTURES,","Linear Feet",840,"Drainage(D)"]
[86916,"2352000000-N","FRAME WITH GRATE, STD 840.****,","Each",840,"Drainage(D)"]
[86918,"2354000000-N","FRAME WITH GRATE, STD 840.22,","Each",840,"Drainage(D)"]
[86920,"2354200000-N","FRAME WITH GRATE, STD 840.24,","Each",840,"Drainage(D)"]
[86922,"2355000000-N","FRAME WITH GRATE, STD 840.29,","Each",840,"Drainage(D)"]
[86924,"2363000000-N","FRAME WITH TWO GRATES, STD    840.*****,","Each",840,"Drainage(D)"]
[86926,"2364000000-N","FRAME WITH TWO GRATES, STD    840.16,","Each",840,"Drainage(D)"]
[86928,"2364200000-N","FRAME WITH TWO GRATES, STD    840.20,","Each",840,"Drainage(D)"]
[86930,"2365000000-N","FRAME WITH TWO GRATES, STD    840.22,","Each",840,"Drainage(D)"]
[86932,"2366000000-N","FRAME WITH TWO GRATES, STD    840.24,","Each",840,"Drainage(D)"]
[86934,"2367000000-N","FRAME WITH TWO GRATES, STD    840.29,","Each",840,"Drainage(D)"]
[86936,"2374000000-N","FRAME WITH GRATE & HOOD, STD  840.03, TYPE **,","Each",840,"Drainage(D)"]
[86938,"2396000000-N","FRAME WITH COVER, STD 840.54,","Each",840,"Drainage(D)"]
[86940,"2407000000-N","STEEL FRAME WITH TWO GRATES,  STD 840.37,","Each",840,"Drainage(D)"]
[86941,"2418000000-E","FRAME WITH GRATES, DRIVEWAY   DROP INLET,","Linear Feet",9000,"Drainage(D)"]
[86943,"2429000000-N","WOODEN COVER FOR CATCH BASINS,","Each",9000,"Drainage(D)"]
[86945,"2440000000-N","CONCRETE TRANSITIONAL SECTION FOR CATCH BASIN,","Each",852,"Drainage(D)"]
[86947,"2451000000-N","CONCRETE TRANSITIONAL SECTION FOR DROP INLET,","Each",852,"Drainage(D)"]
[86948,"2462000000-E","** SLUICE GATE,\"","Each",836,"Drainage(D)"]
[86950,"2472000000-N","GENERIC DRAINAGE ITEM,","Each",840,"Drainage(D)"]
[86952,"2473000000-N","GENERIC DRAINAGE ITEM,","Each",9000,"Drainage(D)"]
[86954,"2474000000-N","GENERIC DRAINAGE ITEM,","Lump Sum",9000,"Drainage(D)"]
[86955,"2476000000-E","GENERIC DRAINAGE ITEM,","Gallons",9000,"Drainage(D)"]
[86956,"2484000000-E","GENERIC DRAINAGE ITEM,","Linear Feet",9000,"Drainage(D)"]
[87016,"0630000000-E","**X  **\"X  **\" CS PIPE TEES, *****\" THICK,\"","Each",310,"Drainage(D)"]
[87017,"0636000000-E","** CS PIPE ELBOWS, *****\"    THICK,\"","Each",310,"Drainage(D)"]
[87018,"0642000000-E","**X**\" CS ECCENTRIC REDUCERS, *****\" THICK,\"","Each",310,"Drainage(D)"]
[87019,"0648000000-E","** SADDLE BRANCH CONNECTOR,\"","Each",9000,"Drainage(D)"]
[87020,"0654000000-E","*** X ***\" CS PIPE ARCH CUL- VERTS, *****\" THICK,\"","Linear Feet",310,"Drainage(D)"]
[87021,"0348000000-E","** SIDE DRAIN PIPE ELBOWS,\"","Each",310,"Drainage(D)"]
[87022,"0350000000-E","*** RC PIPE CULVERTS, CON-   TRACTOR DESIGN,\"","Linear Feet",9000,"Drainage(D)"]
[87023,"0354000000-E","*** RC PIPE CULVERTS, CLASS  *****,\"","Linear Feet",310,"Drainage(D)"]
[87024,"0360000000-E","12 RC PIPE CULVERTS, CLASS   III,\"","Linear Feet",310,"Drainage(D)"]
[87025,"0366000000-E","15 RC PIPE CULVERTS, CLASS   III,\"","Linear Feet",310,"Drainage(D)"]
[87026,"0372000000-E","18 RC PIPE CULVERTS, CLASS   III,\"","Linear Feet",310,"Drainage(D)"]
[87027,"0378000000-E","24 RC PIPE CULVERTS, CLASS   III,\"","Linear Feet",310,"Drainage(D)"]
[87028,"0384000000-E","30 RC PIPE CULVERTS, CLASS   III,\"","Linear Feet",310,"Drainage(D)"]
[87029,"0390000000-E","36 RC PIPE CULVERTS, CLASS   III,\"","Linear Feet",310,"Drainage(D)"]
[87030,"0396000000-E","42 RC PIPE CULVERTS, CLASS   III,\"","Linear Feet",310,"Drainage(D)"]
[87031,"0402000000-E","48 RC PIPE CULVERTS, CLASS   III,\"","Linear Feet",310,"Drainage(D)"]
[87032,"0408000000-E","54 RC PIPE CULVERTS, CLASS   III,\"","Linear Feet",310,"Drainage(D)"]
[87033,"0414000000-E","60 RC PIPE CULVERTS, CLASS   III,\"","Linear Feet",310,"Drainage(D)"]
[87034,"0420000000-E","66 RC PIPE CULVERTS, CLASS   III,\"","Linear Feet",310,"Drainage(D)"]
[87035,"0426000000-E","72 RC PIPE CULVERTS, CLASS   III,\"","Linear Feet",310,"Drainage(D)"]
[87036,"0432000000-E","78 RC PIPE CULVERTS, CLASS   III,\"","Linear Feet",310,"Drainage(D)"]
[87037,"0438000000-E","84 RC PIPE CULVERTS, CLASS   III,\"","Linear Feet",310,"Drainage(D)"]
[87038,"0444000000-E","90 RC PIPE CULVERTS, CLASS   III,\"","Linear Feet",310,"Drainage(D)"]
[87039,"0448000000-E","**** RC PIPE CULVERTS, CLASS  IV,\"","Linear Feet",310,"Drainage(D)"]
[87040,"0448200000-E","15 RC PIPE CULVERTS, CLASS IV,\"","Linear Feet",310,"Drainage(D)"]
[87041,"0448300000-E","18 RC PIPE CULVERTS, CLASS IV,\"","Linear Feet",310,"Drainage(D)"]
[87042,"0448400000-E","24 RC PIPE CULVERTS, CLASS IV,\"","Linear Feet",310,"Drainage(D)"]
[87043,"0448500000-E","30 RC PIPE CULVERTS, CLASS IV,\"","Linear Feet",310,"Drainage(D)"]
[87044,"0448600000-E","36 RC PIPE CULVERTS, CLASS IV,\"","Linear Feet",310,"Drainage(D)"]
[87045,"0448700000-E","42 RC PIPE CULVERTS, CLASS IV,\"","Linear Feet",310,"Drainage(D)"]
[87046,"0450000000-E","*** RC PIPE CULVERTS, CLASS  ** (UNDER RR),\"","Linear Feet",9000,"Drainage(D)"]
[87047,"0453000000-E","** PIPE END SECTION,\"","Each",310,"Drainage(D)"]
[87048,"0522000000-E","** X **\" X **\" RC PIPE TEES, CLASS III,\"","Each",310,"Drainage(D)"]
[87049,"0528000000-E","** RC PIPE ELBOWS, CLASS III,\"","Each",310,"Drainage(D)"]
[87050,"0536000000-E","*** HDPE PIPE CULVERTS,\"","Linear Feet",310,"Drainage(D)"]
[87051,"0546000000-E","** CAA PIPE CULVERTS, *****\" THICK,\"","Linear Feet",310,"Drainage(D)"]
[87053,"0559000000-E","** X **\" X **\" CAA PIPE TEES, *****\" THICK,\"","Each",310,"Drainage(D)"]
[87054,"0564000000-E","** CAA PIPE ELBOWS, *****\"   THICK,\"","Each",310,"Drainage(D)"]
[87055,"0570000000-E","6 CS PIPE CULVERTS, 0.064\"   THICK (SPRING BOX),\"","Linear Feet",310,"Drainage(D)"]
[87056,"0576000000-E","** CS PIPE CULVERTS, *****\"  THICK,\"","Linear Feet",310,"Drainage(D)"]
[87057,"0582000000-E","15 CS PIPE CULVERTS, 0.064\"  THICK,\"","Linear Feet",310,"Drainage(D)"]
[87058,"2489000000-E","GENERIC DRAINAGE ITEM,","Square Yards",9000,"Drainage(D)"]
[87059,"2492000000-E","GENERIC DRAINAGE ITEM,","Tons",9000,"Drainage(D)"]
[87060,"2495000000-E","GENERIC DRAINAGE ITEM,","Cubic Yards",9000,"Drainage(D)"]
[87073,"2570000000-N","MODIFIED CONCRETE FLUME,","Each",9000,"Drainage(D)"]
[87082,"2619000000-E","4 CONCRETE PAVED DITCH,\"","Square Yards",850,"Drainage(D)"]
[87116,"2850000000-N","GENERIC DRAINAGE ITEM,","Each",858,"Drainage(D)"]
[87118,"2860000000-N","CONVERT EXISTING CATCH BASIN  TO JUNCTION BOX,","Each",859,"Drainage(D)"]
[87120,"2875000000-N","CONVERT EXISTING CATCH BASIN  TO DROP INLET,","Each",859,"Drainage(D)"]
[87122,"2893000000-N","CONVERT EXISTING CATCH BASIN  TO JUNCTION BOX WITH MANHOLE,","Each",859,"Drainage(D)"]
[87124,"2905000000-N","CONVERT EXISTING DROP INLET TOJUNCTION BOX,","Each",859,"Drainage(D)"]
[87126,"2920000000-N","CONVERT EXISTING DROP INLET TOCATCH BASIN,","Each",859,"Drainage(D)"]
[87128,"2938000000-N","CONVERT EXISTING DROP INLET TOJUNCTION BOX WITH MANHOLE,","Each",859,"Drainage(D)"]
[87130,"2950000000-N","CONVERT EXISTING JUNCTION BOX TO DROP INLET,","Each",859,"Drainage(D)"]
[87132,"2965000000-N","CONVERT EXISTING JUNCTION BOX TO CATCH BASIN,","Each",859,"Drainage(D)"]
[87134,"2980000000-N","CONVERT EXISTING MANHOLE TO   DROP INLET,","Each",9000,"Drainage(D)"]
[87136,"2995000000-N","GENERIC DRAINAGE ITEM,","Each",9000,"Drainage(D)"]
[87322,"3656000000-E","GEOTEXTILE FOR DRAINAGE,","Square Yards",876,"Drainage(D)"]
[87324,"3659000000-N","PREFORMED SCOUR HOLES WITH    LEVEL SPREADER APRON,","Each",873,"Drainage(D)"]
[88624,"0480000000-E","60X 36\" RC PIPE TAPERED IN-  LET, CLASS III,\"","Each",9000,"Drainage(D)"]
[88625,"0486000000-E","66X 42\" RC PIPE TAPERED IN-  LET, CLASS III,\"","Each",9000,"Drainage(D)"]
[88626,"0492000000-E","72X 48\" RC PIPE TAPERED IN-  LET, CLASS III,\"","Each",9000,"Drainage(D)"]
[88627,"0498000000-E","78X 54\" RC PIPE TAPERED IN-  LET, CLASS III,\"","Each",9000,"Drainage(D)"]
[88628,"0504000000-E","84X 60\" RC PIPE TAPERED IN-  LET, CLASS III,\"","Each",9000,"Drainage(D)"]
[88629,"0510000000-E","90X 66\" RC PIPE TAPERED IN-  LET, CLASS III,\"","Each",9000,"Drainage(D)"]
[88630,"0516000000-E","96X 72\" RC PIPE TAPERED IN-  LET, CLASS III,\"","Each",9000,"Drainage(D)"]
[88646,"0542000000-E","** PVC PIPE CULVERTS,\"","Linear Feet",310,"Drainage(D)"]
[88712,"2895000000-N","CONVERT EXISTING OPEN THROAT  CATCH BASIN TO CATCH BASIN,","Each",9000,"Drainage(D)"]
[88714,"2910000000-N","CONVERT EXISTING TRAFFIC BEAR-ING DROP INLET TO TRAFFICBEARING JUNCTION BOX,","Each",9000,"Drainage(D)"]
[87280,"3500000000-E","WOVEN WIRE FENCE, ** FABRIC,\"","Linear Feet",866,"Fence(F)"]
[87281,"3503000000-E","WOVEN WIRE FENCE, 47 FABRIC,\"","Linear Feet",866,"Fence(F)"]
[87282,"3506000000-E","4 TIMBER FENCE POSTS, *****  LONG,\"","Each",866,"Fence(F)"]
[87283,"3509000000-E","4 TIMBER FENCE POSTS, 7'-6\"  LONG,\"","Each",866,"Fence(F)"]
[87284,"3512000000-E","5 TIMBER FENCE POSTS, *****  LONG,\"","Each",866,"Fence(F)"]
[87285,"3515000000-E","5 TIMBER FENCE POSTS, 8'-0\"  LONG,\"","Each",866,"Fence(F)"]
[87286,"3518000000-E","CHAIN LINK FENCE, ** FABRIC  WITH REDWOOD PICKETS,\"","Linear Feet",9000,"Fence(F)"]
[87287,"3521000000-E","VINYL COATED CHAIN LINK FENCE,** FABRIC WITH REDWOOD PIC-KETS,\"","Linear Feet",9000,"Fence(F)"]
[87288,"3524000000-E","VINYL COATED CHAIN LINK FENCE,** FABRIC,\"","Linear Feet",9000,"Fence(F)"]
[87289,"3527000000-E","CHAIN LINK FENCE, ** FABRIC, GUARDRAIL MOUNTED,\"","Linear Feet",9000,"Fence(F)"]
[87290,"3530000000-E","CHAIN LINK FENCE, ** FABRIC  WITH 1\" MESH,\"","Linear Feet",9000,"Fence(F)"]
[87291,"3533000000-E","CHAIN LINK FENCE, ** FABRIC,\"","Linear Feet",866,"Fence(F)"]
[87292,"3536000000-E","CHAIN LINK FENCE, 48 FABRIC,\"","Linear Feet",866,"Fence(F)"]
[87293,"3539000000-E","METAL LINE POSTS FOR ** CHAINLINK FENCE,\"","Each",866,"Fence(F)"]
[87294,"3542000000-E","METAL LINE POSTS FOR 48 CHAINLINK FENCE,\"","Each",866,"Fence(F)"]
[87295,"3545000000-E","METAL TERMINAL POSTS FOR **  CHAIN LINK FENCE,\"","Each",866,"Fence(F)"]
[87296,"3548000000-E","METAL TERMINAL POSTS FOR 48  CHAIN LINK FENCE,\"","Each",866,"Fence(F)"]
[87297,"3551000000-E","METAL GATE POSTS FOR ** CHAINLINK FENCE, SINGLE GATE,\"","Each",866,"Fence(F)"]
[87298,"3554000000-E","METAL GATE POSTS FOR ** CHAINLINK FENCE, DOUBLE GATE,\"","Each",866,"Fence(F)"]
[87299,"3557000000-E","ADDITIONAL BARBED WIRE,","Linear Feet",866,"Fence(F)"]
[87307,"3574000000-E","GENERIC FENCING ITEM,","Linear Feet",867,"Fence(F)"]
[87308,"3575000000-E","GENERIC FENCING ITEM,","Linear Feet",9000,"Fence(F)"]
[87310,"3577000000-N","GENERIC FENCING ITEM,","Lump Sum",9000,"Fence(F)"]
[87312,"3578000000-N","GENERIC FENCING ITEM,","Each",9000,"Fence(F)"]
[87314,"3579000000-N","GENERIC FENCING ITEM,","Each",866,"Fence(F)"]
[87315,"3580000000-E","GENERIC FENCING ITEM,","Linear Feet",866,"Fence(F)"]
[86797,"0005000000-N","GENERIC FERRY ITEM,","Lump Sum",9000,"Ferry"]
[86725,"0194000000-E","SELECT GRANULAR MATERIAL,     CLASS III,","Cubic Yards",265,"Grading (G)"]
[86726,"0195000000-E","SELECT GRANULAR MATERIAL,","Cubic Yards",265,"Grading (G)"]
[86727,"0196000000-E","GEOTEXTILE FOR SOIL STABILIZA-TION,","Square Yards",270,"Grading (G)"]
[86729,"0220000000-E","ROCK EMBANKMENTS,","Tons",9000,"Grading (G)"]
[86730,"0223000000-E","ROCK PLATING,","Square Yards",275,"Grading (G)"]
[86731,"0227000000-E","GENERIC GRADING ITEM,","Acres",9000,"Grading (G)"]
[86732,"0234000000-E","GENERIC GRADING ITEM,","Cubic Yards",9000,"Grading (G)"]
[86733,"0241000000-E","GENERIC GRADING ITEM,","Square Yards",9000,"Grading (G)"]
[86734,"0245000000-E","GENERIC GRADING ITEM,","Gallons",9000,"Grading (G)"]
[86736,"0248000000-N","GENERIC GRADING ITEM,","Lump Sum",9000,"Grading (G)"]
[86737,"0255000000-E","GENERIC GRADING ITEM,","Tons",9000,"Grading (G)"]
[86738,"0257000000-E","GENERIC GRADING ITEM,","Linear Feet",9000,"Grading (G)"]
[86739,"0258000000-E","GENERIC GRADING ITEM,","1000 Linear Feet",9000,"Grading (G)"]
[86740,"0259000000-E","GENERIC GRADING ITEM,","Miles",9000,"Grading (G)"]
[86742,"0262000000-N","GENERIC GRADING ITEM,","Each",9000,"Grading (G)"]
[86743,"0264000000-E","GENERIC GRADING ITEM,","Shoulder Mile",9000,"Grading (G)"]
[86804,"0029000000-N","TYPE III REINFORCED APPROACH  FILL, STATION *******,","Lump Sum",9000,"Grading (G)"]
[86806,"0030000000-N","TYPE II MODIFIED APPROACH     FILL, STATION *******,","Lump Sum",9000,"Grading (G)"]
[86817,"0106000000-E","BORROW EXCAVATION,","Cubic Yards",230,"Grading (G)"]
[86818,"0113000000-E","SELECT BORROW MATERIAL,","Cubic Yards",9000,"Grading (G)"]
[86821,"0127000000-N","EMBANKMENT SETTLEMENT GAUGES,","Each",235,"Grading (G)"]
[86843,"0999000000-E","4 SLOPE PROTECTION,\"","Square Yards",462,"Grading (G)"]
[86844,"1000000000-E","6 SLOPE PROTECTION,\"","Square Yards",462,"Grading (G)"]
[86845,"1004000000-E","GENERIC GRADING ITEM,","Square Yards",462,"Grading (G)"]
[86880,"2000000000-N","RIGHT-OF-WAY MARKERS,","Each",806,"Grading (G)"]
[86957,"1220000000-E","INCIDENTAL STONE BASE,","Tons",545,"Grading (G)"]
[86958,"1231000000-E","SHOULDER BORROW,","Cubic Yards",560,"Grading (G)"]
[86959,"1242000000-E","SHOULDER CONSTRUCTION,","1000 Linear Feet",9000,"Grading (G)"]
[86960,"1243000000-E","SHOULDER CONSTRUCTION,","Shoulder Mile",9000,"Grading (G)"]
[87061,"2516000000-E","SELECT GRANULAR MATERIAL FOR  TEMPORARY FABRIC WALL,","Cubic Yards",9000,"Grading (G)"]
[87062,"2517000000-E","FABRIC FOR TEMPORARY FABRIC   WALL,","Square Yards",9000,"Grading (G)"]
[87063,"2529000000-E","GENERIC GRADING ITEM (SF),","Square Feet",9000,"Grading (G)"]
[87064,"2530000000-E","GENERIC GRADING ITEM (CY),","Cubic Yards",9000,"Grading (G)"]
[87065,"2531000000-E","GENERIC GRADING ITEM (SY),","Square Yards",9000,"Grading (G)"]
[87112.1,"0106000000-E","BORROW EXCAVATION,","Cubic Yards",10133.375,"Grading (G)"]
[87132.516176470599,"0113000000-E","SELECT BORROW MATERIAL,","Cubic Yards",10768.463235294101,"Grading (G)"]
[87152.932352941207,"0127000000-N","EMBANKMENT SETTLEMENT GAUGES,","Each",11403.5514705882,"Grading (G)"]
[87173.3485294118,"0999000000-E","8 SLOPE PROTECTION,\"","Square Yards",12038.6397058823,"Grading (G)"]
[87193.764705882306,"1000000000-E","10 SLOPE PROTECTION,\"","Square Yards",12673.727941176499,"Grading (G)"]
[87214.180882352899,"1004000000-E","GENERIC GRADING ITEM,","Square Yards",13308.8161764706,"Grading (G)"]
[87234.597058823507,"2000000000-N","RIGHT-OF-WAY MARKERS,","Each",13943.904411764701,"Grading (G)"]
[87255.0132352941,"1220000000-E","INCIDENTAL STONE BASE,","Tons",14578.9926470588,"Grading (G)"]
[87275.429411764693,"1231000000-E","SHOULDER BORROW,","Cubic Yards",15214.080882352901,"Grading (G)"]
[87295.845588235301,"1242000000-E","SHOULDER CONSTRUCTION,","1001 Linear Feet",15849.169117646999,"Grading (G)"]
[87316.261764705894,"1243000000-E","SHOULDER CONSTRUCTION,","Shoulder Mile",16484.2573529412,"Grading (G)"]
[87336.677941176502,"2516000000-E","SELECT GRANULAR MATERIAL FOR  TEMPORARY FABRIC WALL,","Cubic Yards",17119.345588235301,"Grading (G)"]
[87357.094117647095,"2517000000-E","FABRIC FOR TEMPORARY FABRIC   WALL,","Square Yards",17754.433823529402,"Grading (G)"]
[87377.510294117601,"2529000000-E","GENERIC GRADING ITEM (SF),","Square Feet",18389.522058823499,"Grading (G)"]
[87397.926470588194,"2530000000-E","GENERIC GRADING ITEM (CY),","Cubic Yards",19024.6102941176,"Grading (G)"]
[87138,"3000000000-N","IMPACT ATTENUATOR UNIT, TYPE  350,","Each",9000,"Guardrail (GR)"]
[87140,"3030000000-E","STEEL BEAM GUARDRAIL,","Linear Feet",862,"Guardrail (GR)"]
[87141,"3045000000-E","STEEL BEAM GUARDRAIL, SHOP    CURVED,","Linear Feet",862,"Guardrail (GR)"]
[87142,"3060000000-E","STEEL BEAM GUARDRAIL, DOUBLE  FACED,","Linear Feet",862,"Guardrail (GR)"]
[87215,"3075000000-E","TRIPLE CORRUGATED STEEL BM    GUARDRAIL,","Linear Feet",862,"Guardrail (GR)"]
[87217,"3090000000-N","TRIPLE CORRUGATED STEEL BEAMGUARDRAIL TERMINAL SECTIONS,","Each",862,"Guardrail (GR)"]
[87219,"3105000000-N","STEEL BEAM GUARDRAIL TERMINAL SECTIONS,","Each",862,"Guardrail (GR)"]
[87220,"3120000000-E","20 TUBULAR TRIPLE CORRUGATEDSTEEL BEAM GUARDRAIL,\"","Linear Feet",862,"Guardrail (GR)"]
[87222,"3135000000-N","W-TR STEEL BEAM GUARDRAILTRANSITION SECTIONS,","Each",862,"Guardrail (GR)"]
[87224,"3150000000-N","ADDITIONAL GUARDRAIL POSTS,","Each",862,"Guardrail (GR)"]
[87228,"3180000000-N","GUARDRAIL ANCHOR UNITS, TYPE  ************,","Each",9000,"Guardrail (GR)"]
[87230,"3195000000-N","GUARDRAIL END UNITS, TYPE AT-1,","Each",862,"Guardrail (GR)"]
[87232,"3210000000-N","GUARDRAIL END UNITS, TYPE     CAT-1,","Each",862,"Guardrail (GR)"]
[87234,"3215000000-N","GUARDRAIL ANCHOR UNITS, TYPE  III,","Each",9000,"Guardrail (GR)"]
[87246,"3317000000-N","GUARDRAIL ANCHOR UNITS, TYPE  B-77,","Each",9000,"Guardrail (GR)"]
[87248,"3319000000-N","GUARDRAIL ANCHOR UNITS, TYPE  B-83,","Each",9000,"Guardrail (GR)"]
[87264,"3389200000-E","CABLE GUIDERAIL,","Linear Feet",865,"Guardrail (GR)"]
[87265,"3389400000-E","DOUBLE FACED CABLE GUIDERAIL,","Linear Feet",865,"Guardrail (GR)"]
[87267,"3389500000-N","ADDITIONAL GUIDERAIL POSTS,","Each",865,"Guardrail (GR)"]
[87269,"3389600000-N","CABLE GUIDERAIL ANCHOR UNITS,","Each",865,"Guardrail (GR)"]
[87270,"3390000000-E","STEEL GLARE SCREEN (GUARDRAIL MOUNTED),","Linear Feet",9000,"Guardrail (GR)"]
[87271,"3405000000-E","STEEL GLARE SCREEN (GROUND    MOUNTED),","Linear Feet",9000,"Guardrail (GR)"]
[87272,"3420000000-E","GENERIC GUARDRAIL ITEM,","Linear Feet",9000,"Guardrail (GR)"]
[87273,"3421000000-E","GENERIC GUARDRAIL ITEM,","Linear Feet",862,"Guardrail (GR)"]
[87275,"3422000000-N","GENERIC GUARDRAIL ITEM,","Lump Sum",9000,"Guardrail (GR)"]
[87277,"3435000000-N","GENERIC GUARDRAIL ITEM,","Each",9000,"Guardrail (GR)"]
[87279,"3436000000-N","GENERIC GUARDRAIL ITEM,","Each",862,"Guardrail (GR)"]
[88746,"3001000000-N","IMPACT ATTENUATOR UNITS, TYPE  TL-3,","Each",9000,"Guardrail (GR)"]
[88748,"3001500000-N","IMPACT ATTENUATOR UNITS, TYPE  TL-2,","Each",9000,"Guardrail (GR)"]
[88752,"3165500000-N","GUARDRAIL END UNITS, TYPE     ************,","Each",862,"Guardrail (GR)"]
[88754,"3287000000-N","GUARDRAIL END UNITS, TYPE TL-3,","Each",9000,"Guardrail (GR)"]
[88756,"3288000000-N","GUARDRAIL END UNITS, TYPE TL-2,","Each",9000,"Guardrail (GR)"]
[88758,"3289000000-N","GUARDRAIL END UNITS, TYPE     MEDIAN TL-3,","Each",9000,"Guardrail (GR)"]
[89390,"3140000000-E","25' CLEAR SPAN GUARDRAIL SEC- TIONS,","Each",862,"Guardrail (GR)"]
[89391,"3145000000-E","EXTRA LENGTH GUARDRAIL POST   (**' STEEL),","Each",862,"Guardrail (GR)"]
[87327,"3677000000-E","GENERIC EROSION CONTROL ITEM,","Square Yards",9000,"Landscape(L)"]
[87328,"3678000000-E","GENERIC EROSION CONTROL ITEM,","Square Feet",9000,"Landscape(L)"]
[87329,"3684000000-E","GENERIC EROSION CONTROL ITEM,","Tons",9000,"Landscape(L)"]
[87331,"3691000000-N","GENERIC EROSION CONTROL ITEM,","Each",9000,"Landscape(L)"]
[88022,"6000000000-E","TEMPORARY SILT FENCE,","Linear Feet",1605,"Landscape(L)"]
[88023,"6006000000-E","STONE FOR EROSION CONTROL,    CLASS A,","Tons",1610,"Landscape(L)"]
[88024,"6009000000-E","STONE FOR EROSION CONTROL,    CLASS B,","Tons",1610,"Landscape(L)"]
[88025,"6012000000-E","SEDIMENT CONTROL STONE,","Tons",1610,"Landscape(L)"]
[88027,"6018000000-E","SEED FOR TEMPORARY SEEDING,","Pounds",1620,"Landscape(L)"]
[88028,"6021000000-E","FERTILIZER FOR TEMPORARY SEED-ING,","Tons",1620,"Landscape(L)"]
[88029,"6024000000-E","TEMPORARY SLOPE DRAINS,","Linear Feet",1622,"Landscape(L)"]
[88030,"6029000000-E","SAFETY FENCE,","Linear Feet",9000,"Landscape(L)"]
[88032,"6036000000-E","MATTING FOR EROSION CONTROL,","Square Yards",1631,"Landscape(L)"]
[88033,"6037000000-E","COIR FIBER MAT,","Square Yards",9000,"Landscape(L)"]
[88034,"6038000000-E","PERMANENT SOIL REINFORCEMENT  MAT,","Square Yards",9000,"Landscape(L)"]
[88035,"6039000000-E","HIGH VELOCITY MATTING,","Square Yards",9000,"Landscape(L)"]
[88036,"6042000000-E","1/4 HARDWARE CLOTH,\"","Linear Feet",1632,"Landscape(L)"]
[88037,"6045000000-E","** TEMPORARY PIPE,\"","Linear Feet",9000,"Landscape(L)"]
[88038,"6046000000-E","TEMPORARY PIPE FOR STREAM     CROSSING,","Linear Feet",1636,"Landscape(L)"]
[88039,"6048000000-E","FLOATING TURBIDITY CURTAIN,","Square Yards",9000,"Landscape(L)"]
[88040,"6051000000-E","WILDFLOWER SEEDING & MULCHING,","Acres",9000,"Landscape(L)"]
[88041,"6054000000-E","**X**\"X**\" CS PIPE TEE RISER,0.064\" THICK,\"","Each",1637,"Landscape(L)"]
[88042,"6057000000-E","**X**\"X**\" CS PIPE TEE RISER,0.079\" THICK,\"","Each",1637,"Landscape(L)"]
[88043,"6060000000-E","**X**\"X**\" CS PIPE TEE RISER,0.109\" THICK,\"","Each",1637,"Landscape(L)"]
[88044,"6063000000-E","**X**\"X**\" CS PIPE TEE RISER,0.138\"THICK,\"","Each",1637,"Landscape(L)"]
[88045,"6066000000-E","**X**\"X**\" CS PIPE TEE RISER, 0.168\" THICK,\"","Each",1637,"Landscape(L)"]
[88046,"6069000000-E","STILLING BASINS,","Cubic Yards",1638,"Landscape(L)"]
[88048,"6070000000-N","SPECIAL STILLING BASINS,","Each",1639,"Landscape(L)"]
[88049,"6071010000-E","WATTLE,","Linear Feet",9000,"Landscape(L)"]
[88050,"6071012000-E","COIR FIBER WATTLE,","Linear Feet",9000,"Landscape(L)"]
[88051,"6071020000-E","POLYACRYLAMIDE (PAM),","Pounds",9000,"Landscape(L)"]
[88052,"6071030000-E","COIR FIBER BAFFLE,","Linear Feet",1640,"Landscape(L)"]
[88053,"6071050000-E","** SKIMMER,\"","Each",9000,"Landscape(L)"]
[88058,"6084000000-E","SEEDING & MULCHING,","Acres",1660,"Landscape(L)"]
[88060,"6090000000-E","SEED FOR REPAIR SEEDING,","Pounds",1661,"Landscape(L)"]
[88061,"6093000000-E","FERTILIZER FOR REPAIR SEEDING,","Tons",1661,"Landscape(L)"]
[88062,"6096000000-E","SEED FOR SUPPLEMENTAL SEEDING,","Pounds",1662,"Landscape(L)"]
[88063,"6102000000-E","SODDING,","Square Yards",1664,"Landscape(L)"]
[88064,"6105000000-E","WATER,","1000 Gallons",1664,"Landscape(L)"]
[88065,"6108000000-E","FERTILIZER TOPDRESSING,","Tons",1665,"Landscape(L)"]
[88066,"6109000000-E","SPECIALIZED SEEDING UNDER     GUIDERAIL & GUARDRAIL (HARDFESCUE/BLUEGRASS),","Acres",9000,"Landscape(L)"]
[88067,"6109200000-E","SPECIALIZED SEEDING UNDER     GUIDERAIL & GUARDRAIL (CENTI-PEDE),","Acres",9000,"Landscape(L)"]
[88068,"6110000000-E","RESIDENTIAL SEEDING,","Acres",9000,"Landscape(L)"]
[88075,"6118000000-N","ROOTWADS,","Each",9000,"Landscape(L)"]
[88077,"6123000000-E","REFORESTATION,","Acres",1670,"Landscape(L)"]
[88078,"6126000000-E","STREAMBANK REFORESTATION,","Acres",9000,"Landscape(L)"]
[88079,"6129000000-E","WETLAND REFORESTATION,","Acres",1670,"Landscape(L)"]
[88080,"6131000000-E","GENERIC EROSION CONTROL ITEM,","Acres",1670,"Landscape(L)"]
[88082,"6132000000-N","GENERIC EROSION CONTROL ITEM,","Each",9000,"Landscape(L)"]
[88084,"6133000000-N","GENERIC EROSION CONTROL ITEM,","Lump Sum",9000,"Landscape(L)"]
[88086,"6134000000-N","GENERIC EROSION CONTROL ITEM,","Hours",9000,"Landscape(L)"]
[88087,"6135000000-E","GENERIC EROSION CONTROL ITEM,","Acres",9000,"Landscape(L)"]
[88088,"6136000000-E","GENERIC EROSION CONTROL ITEM,","Shoulder Mile",9000,"Landscape(L)"]
[88089,"6138000000-E","GENERIC EROSION CONTROL ITEM,","Cubic Yards",9000,"Landscape(L)"]
[88090,"6141000000-E","GENERIC EROSION CONTROL ITEM,","Square Yards",9000,"Landscape(L)"]
[88091,"6144000000-E","GENERIC EROSION CONTROL ITEM,","Pounds",9000,"Landscape(L)"]
[88092,"6147000000-E","GENERIC EROSION CONTROL ITEM,","Linear Feet",9000,"Landscape(L)"]
[88093,"6150000000-E","GENERIC EROSION CONTROL ITEM,","Tons",9000,"Landscape(L)"]
[88095,"6200000000-N","ABELIA X GRANDIFLORA, GLOSSY  ABELIA,,","Each",1670,"Landscape(L)"]
[88097,"6205000000-N","ACER PALMATUM, JAPANESE MAPLE,,","Each",1670,"Landscape(L)"]
[88099,"6210000000-N","ACER RUBRUM, RED MAPLE,,","Each",1670,"Landscape(L)"]
[88101,"6215000000-N","ACER SACCHARUM, SUGAR MAPLE,,","Each",1670,"Landscape(L)"]
[88103,"6216000000-N","ACER, MAPLE,,","Each",1670,"Landscape(L)"]
[88105,"6220000000-N","AMELANCHIER CANADENSIS, SER-  VICEBERRY,,","Each",1670,"Landscape(L)"]
[88107,"6225000000-N","BERBERIS THUNBERGII, JAPANESE BARBERRY,,","Each",1670,"Landscape(L)"]
[88109,"6230000000-N","BETULA NIGRA, RIVER BIRCH,,","Each",1670,"Landscape(L)"]
[88111,"6235000000-N","BUDDLEIA DAVIDII, BUTTERFLY   BUSH,,","Each",1670,"Landscape(L)"]
[88113,"6240000000-N","CALYCANTHUS FLORIDUS, SWEET   SHRUB,,","Each",1670,"Landscape(L)"]
[88115,"6245000000-N","CERCIS CANADENSIS, REDBUD,,","Each",1670,"Landscape(L)"]
[88117,"6250000000-N","CHAENOMELES SPECIOSA, FLOWER- ING QUINCE,,","Each",1670,"Landscape(L)"]
[88119,"6255000000-N","CHIONANTHUS VIRGINICUS, FRINGETREE,,","Each",1670,"Landscape(L)"]
[88121,"6256000000-N","TERNSTROEMIA GYMNANTHUS, JAPA-NESE CLEYERA,,","Each",1670,"Landscape(L)"]
[88123,"6260000000-N","CORNUS FLORIDA, FLOWERING DOG-WOOD,,","Each",1670,"Landscape(L)"]
[88125,"6265000000-N","CORNUS KOUSA, KOUSA DOGWOOD,,","Each",1670,"Landscape(L)"]
[88127,"6270000000-N","CORNUS SERICEA, REDOSIER DOG- WOOD,,","Each",1670,"Landscape(L)"]
[88129,"6275000000-N","CORTADERIA SELLOANA, PAMPAS   GRASS,,","Each",1670,"Landscape(L)"]
[88131,"6280000000-N","CRATAEGUS PHAENOPYRUM, WASH-  INGTON HAWTHORN,,","Each",1670,"Landscape(L)"]
[88133,"6285000000-N","CRYPTOMERIA JAPONICA, JAPANESECRYPTOMERIA,,","Each",1670,"Landscape(L)"]
[88135,"6290000000-N","CYTISUS SCOPARIUS, SCOTCH     BROOM,,","Each",1670,"Landscape(L)"]
[88137,"6295000000-N","ELAEAGNUS PUNGENS, ELAEAGNUS,,","Each",1670,"Landscape(L)"]
[88139,"6300000000-N","EUONYMUS ALATA, BURNING BUSH,,","Each",1670,"Landscape(L)"]
[88141,"6305000000-N","FAGUS GRANDIFOLIA, AMERICAN   BEECH,,","Each",1670,"Landscape(L)"]
[88143,"6310000000-N","FORSYTHIA X INTERMEDIA, BORDERFORSYTHIA,,","Each",1670,"Landscape(L)"]
[88145,"6315000000-N","FRAXINUS PENNSYLVANICA, GREEN ASH,,","Each",1670,"Landscape(L)"]
[88147,"6320000000-N","GINKGO BILOBA, GINKGO,,","Each",1670,"Landscape(L)"]
[88149,"6325000000-N","GLEDITSIA TRIACANTHOS, HONEY  LOCUST,,","Each",1670,"Landscape(L)"]
[88151,"6335000000-N","HALESIA CAROLINA, CAROLINA    SILVERBELL,,","Each",1670,"Landscape(L)"]
[88153,"6340000000-N","HEMEROCALLIS, DAYLILY,","Each",1670,"Landscape(L)"]
[88155,"6360000000-N","HYDRANGEA QUERCIFOLIA, OAKLEAFHYDRANGEA,,","Each",1670,"Landscape(L)"]
[88157,"6365000000-N","ILEX ATTENUATA, FOSTER'S HY-  BRID HOLLY,","Each",1670,"Landscape(L)"]
[88159,"6370000000-N","ILEX GLABRA, INKBERRY,,","Each",1670,"Landscape(L)"]
[88161,"6375000000-N","ILEX X 'NELLIE R STEVENS',  NELLIE R STEVENS HOLLY,,","Each",1670,"Landscape(L)"]
[88163,"6380000000-N","ILEX OPACA, AMERICAN HOLLY,,","Each",1670,"Landscape(L)"]
[88165,"6385000000-N","ILEX VERTICILLATA, WINTERBERRY,","Each",1670,"Landscape(L)"]
[88167,"6390000000-N","ILEX VOMITORIA, YAUPON HOLLY,,","Each",1670,"Landscape(L)"]
[88169,"6395000000-N","ILEX, HOLLY,,","Each",1670,"Landscape(L)"]
[88171,"6400000000-N","ITEA VIRGINICA, VIRGINIA      SWEETSPIRE,,","Each",1670,"Landscape(L)"]
[88173,"6405000000-N","JASMINUM NUDIFILORUM, WINTER  JASMINE,,","Each",1670,"Landscape(L)"]
[88175,"6410000000-N","JUNIPERUS VIRGINIANA, EASTERN RED CEDAR,,","Each",1670,"Landscape(L)"]
[88177,"6415000000-N","KALMIA LATIFOLIA, MOUNTAIN    LAUREL,,","Each",1670,"Landscape(L)"]
[88179,"6420000000-N","KOELREUTERIA PANICULATA, GOL- DEN RAIN TREE,,","Each",1670,"Landscape(L)"]
[88181,"6430000000-N","LAGERSTROEMIA, CRAPE MYRTLE,,","Each",1670,"Landscape(L)"]
[88183,"6435000000-N","LIGUSTRUM JAPONICUM, JAPANESE PRIVET,,","Each",1670,"Landscape(L)"]
[88185,"6445000000-N","LIQUIDAMBAR STYRACIFLUA,      SWEETGUM,,","Each",1670,"Landscape(L)"]
[88187,"6450000000-N","LIRIODENDRON TULIPIFERA, TULIPTREE,,","Each",1670,"Landscape(L)"]
[88189,"6455000000-N","LIRIOPE MUSCARI, BIG BLUE LI- RIOPE,,","Each",1670,"Landscape(L)"]
[88191,"6460000000-N","LIRIOPE SPICATA, CREEPING     LIRIOPE,,","Each",1670,"Landscape(L)"]
[88193,"6465000000-N","LOROPETALUM CHINENSE, LOROPE- TALUM,,","Each",1670,"Landscape(L)"]
[88195,"6470000000-N","MAGNOLIA GRANDIFLORA, SOUTHERNMAGNOLIA,,","Each",1670,"Landscape(L)"]
[88197,"6475000000-N","MAGNOLIA,,","Each",1670,"Landscape(L)"]
[88199,"6490000000-N","MYRICA CERIFERA, WAX MYRTLE,,","Each",1670,"Landscape(L)"]
[88201,"6495000000-N","NANDINA DOMESTICA, NANDINA,,","Each",1670,"Landscape(L)"]
[88203,"6500000000-N","NYSSA SYLVATICA, BLACK GUM,,","Each",1670,"Landscape(L)"]
[88205,"6505000000-N","OSMANTHUS X FORTUNEI, HYBRID  OSMANTHUS,,","Each",1670,"Landscape(L)"]
[88207,"6510000000-N","OXYDENDRUM ARBOREUM, SOURWOOD,,","Each",1670,"Landscape(L)"]
[88209,"6515000000-N","PINUS, PINE,,","Each",1670,"Landscape(L)"]
[88211,"6540000000-N","PLATANUS OCCIDENTALIS, SYCA-  MORE,,","Each",1670,"Landscape(L)"]
[88213,"6545000000-N","PRUNUS CERASIFERA, PURPLELEAF PLUM,,","Each",1670,"Landscape(L)"]
[88215,"6550000000-N","PRUNUS LAUROCERASUS, CHERRY   LAUREL,,","Each",1670,"Landscape(L)"]
[88217,"6550700000-N","PRUNUS, ORNAMENTAL CHERRY,,","Each",1670,"Landscape(L)"]
[88219,"6555000000-N","QUERCUS ALBA, WHITE OAK,,","Each",1670,"Landscape(L)"]
[88221,"6560000000-N","QUERCUS COCCINEA, SCARLET OAK,,","Each",1670,"Landscape(L)"]
[88223,"6565000000-N","QUERCUS NIGRA, WATER OAK,,","Each",1670,"Landscape(L)"]
[88225,"6570000000-N","QUERCUS PALUSTRIS, PIN OAK,,","Each",1670,"Landscape(L)"]
[88227,"6575000000-N","QUERCUS PHELLOS, WILLOW OAK,,","Each",1670,"Landscape(L)"]
[88229,"6580000000-N","QUERCUS RUBRA, NORTHERN RED   OAK,,","Each",1670,"Landscape(L)"]
[88231,"6585000000-N","QUERCUS VIRGINIANA, LIVE OAK,,","Each",1670,"Landscape(L)"]
[88233,"6590000000-N","RAPHIOLEPIS INDICA, INDIAN    HAWTHORN,,","Each",1670,"Landscape(L)"]
[88235,"6595000000-N","SPIRAEA, SPIREA,","Each",1670,"Landscape(L)"]
[88237,"6605000000-N","TAXODIUM DISTICHUM, BALD CY-  PRESS,,","Each",1670,"Landscape(L)"]
[88239,"6606000000-N","CHAMAECYPARIS, FALSE CYPRESS,,","Each",1670,"Landscape(L)"]
[88241,"6610000000-N","TSUGA CANADENSIS, CANADA HEM- LOCK,,","Each",1670,"Landscape(L)"]
[88243,"6615000000-N","TSUGA CAROLINIANA, CAROLINA   HEMLOCK,,","Each",1670,"Landscape(L)"]
[88245,"6620000000-N","VITEX AGNUS-CASTUS, CHASTE    TREE,,","Each",1670,"Landscape(L)"]
[88247,"6625000000-N","WEIGELA FLORIDA, WEIGELA,,","Each",1670,"Landscape(L)"]
[88249,"6635000000-N","ZELKOVA SERRATA, JAPANESE ZEL-KOVA,,","Each",1670,"Landscape(L)"]
[88251,"6640000000-N","GENERIC PLANTING ITEM,","Each",1670,"Landscape(L)"]
[88253,"6645000000-N","GENERIC PLANTING ITEM,","Each",9000,"Landscape(L)"]
[88254,"6650000000-E","MULCH FOR PLANTING,","Cubic Yards",1670,"Landscape(L)"]
[88255,"6655000000-E","WATER FOR PLANTING,","1000 Gallons",1670,"Landscape(L)"]
[88261,"6665000000-E","POSTEMERGENT HERBICIDAL TREAT-MENT FOR PLANT BEDS,","Square Yards",1670,"Landscape(L)"]
[88262,"6670000000-E","PREEMERGENT HERBICIDAL TREAT- MENT FOR PLANT BEDS,","Square Yards",1670,"Landscape(L)"]
[88264,"6674000000-N","GENERIC PLANTING ITEM (LS),","Lump Sum",9000,"Landscape(L)"]
[88265,"6675000000-E","GENERIC PLANTING ITEM,","Square Yards",9000,"Landscape(L)"]
[88266,"6676000000-E","GENERIC PLANTING ITEM,","Square Feet",9000,"Landscape(L)"]
[88267,"6677000000-E","GENERIC PLANTING ITEM,","Tons",9000,"Landscape(L)"]
[88268,"6680000000-E","GENERIC PLANTING ITEM,","Cubic Yards",9000,"Landscape(L)"]
[88269,"6685000000-E","GENERIC PLANTING ITEM,","1000 Gallons",9000,"Landscape(L)"]
[88270,"6690000000-E","GENERIC PLANTING ITEM,","Linear Feet",9000,"Landscape(L)"]
[88272,"6805000000-E","WELL STRAINER,","Linear Feet",9000,"Landscape(L)"]
[88276,"6815000000-N","WELL HEAD HOUSING & PUMP,","Lump Sum",9000,"Landscape(L)"]
[88278,"6820000000-N","UTILITY STORAGE BUILDING,","Lump Sum",9000,"Landscape(L)"]
[88279,"6825000000-E","SERVICE ROAD GATE (15'OPENING),","Each",9000,"Landscape(L)"]
[88282,"6835000000-E","** PVC WATER PIPE, SCH 40,\"","Linear Feet",9000,"Landscape(L)"]
[88283,"6840000000-E","3/4 PVC WATER PIPE, SCH 40,\"","Linear Feet",9000,"Landscape(L)"]
[88284,"6845000000-E","1 PVC WATER PIPE, SCH 40,\"","Linear Feet",9000,"Landscape(L)"]
[88285,"6850000000-E","1-1/2 PVC WATER PIPE, SCH 40,\"","Linear Feet",9000,"Landscape(L)"]
[88286,"6855000000-E","2 PVC WATER PIPE, SCH 40,\"","Linear Feet",9000,"Landscape(L)"]
[88287,"6860000000-E","3 PVC WATER PIPE, SCH 40,\"","Linear Feet",9000,"Landscape(L)"]
[88288,"6865000000-E","4 PVC WATER PIPE, SCH 40,\"","Linear Feet",9000,"Landscape(L)"]
[88290,"6870000000-N","SEWAGE DISPOSAL SYSTEM,","Lump Sum",9000,"Landscape(L)"]
[88291,"6875000000-E","1 STEEL GAS LINE,\"","Linear Feet",9000,"Landscape(L)"]
[88293,"6885000000-E","6 CONCRETE REINFORCED PAD,\"","Square Yards",9000,"Landscape(L)"]
[88294,"6890000000-E","CONCRETE STEPS,","Cubic Yards",9000,"Landscape(L)"]
[88295,"6895000000-E","HANDRAIL ON STEPS,","Linear Feet",9000,"Landscape(L)"]
[88296,"6900000000-E","TOPSOIL,","Cubic Yards",9000,"Landscape(L)"]
[88298,"6905000000-N","PICNIC TABLE, TERRAZZO & STEEL,","Each",9000,"Landscape(L)"]
[88300,"6910000000-N","PICNIC SHELTER, SINGLE PICNIC TABLE,","Each",9000,"Landscape(L)"]
[88302,"6915000000-N","OUTDOOR PARK STOVE,","Each",9000,"Landscape(L)"]
[88304,"6920000000-N","GARBAGE UNIT,","Each",9000,"Landscape(L)"]
[88306,"6925000000-N","BENCH WITH BRICK BASE,","Each",9000,"Landscape(L)"]
[88308,"6930000000-N","DISPLAY/TELEPHONE SHELTER,","Lump Sum",9000,"Landscape(L)"]
[88310,"6935000000-N","OUTDOOR DRINKING FOUNTAIN (FP),","Each",9000,"Landscape(L)"]
[88312,"6940000000-N","OUTDOOR DRINKING FOUNTAIN     (HCNFP),","Each",9000,"Landscape(L)"]
[88313,"6945000000-E","3/4 POST TYPE YARD HYDRANT,\"","Each",9000,"Landscape(L)"]
[88315,"6950000000-N","GENERAL CONSTRUCTION OF REST  AREA SERVICE BLDG,","Each",9000,"Landscape(L)"]
[88319,"6960000000-N","ELECTRICAL INSTALLATION FOR   REST AREA SERVICE BLDG,","Each",9000,"Landscape(L)"]
[88323,"6970000000-N","GENERIC REST AREA ITEM,","Each",9000,"Landscape(L)"]
[88325,"6975000000-N","GENERIC REST AREA ITEM,","Lump Sum",9000,"Landscape(L)"]
[88326,"6980000000-E","GENERIC REST AREA ITEM,","Linear Feet",9000,"Landscape(L)"]
[88327,"6982000000-E","GENERIC REST AREA ITEM,","Square Feet",9000,"Landscape(L)"]
[88328,"6985000000-E","GENERIC REST AREA ITEM,","Cubic Yards",9000,"Landscape(L)"]
[88658,"6637000000-N","GEOPHYTES,","Each",1670,"Landscape(L)"]
[88718,"6043000000-E","LOW PERMEABILITY GEOTEXTILE,","Square Yards",9000,"Landscape(L)"]
[88719,"6071013000-E","WATTLE BARRIER,","Linear Feet",9000,"Landscape(L)"]
[88720,"6071014000-E","COIR FIBER WATTLE BARRIER,","Linear Feet",9000,"Landscape(L)"]
[87657,"5000000000-E","***' HIGH MOUNT STANDARD,","Each",1401,"Lighting"]
[87658,"5005000000-E","80' HIGH MOUNT STANDARD,","Each",1401,"Lighting"]
[87659,"5010000000-E","100' HIGH MOUNT STANDARD,","Each",1401,"Lighting"]
[87660,"5015000000-E","120' HIGH MOUNT STANDARD,","Each",1401,"Lighting"]
[87662,"5020000000-N","PORTABLE DRIVE UNIT,","Each",1401,"Lighting"]
[87663,"5025000000-E","HIGH MOUNT FOUNDATIONS,","Cubic Yards",9000,"Lighting"]
[87665,"5030000000-N","HIGH MOUNT LUMINAIRES ********,","Each",9000,"Lighting"]
[87667,"5035000000-N","LIGHT STANDARDS, TYPE FRPS    ************,","Each",1404,"Lighting"]
[87669,"5040000000-N","LIGHT STANDARDS, TYPE FRPT    ************,","Each",1404,"Lighting"]
[87671,"5045000000-N","LIGHT STANDARDS, TYPE MTLS    ************,","Each",1404,"Lighting"]
[87673,"5050000000-N","LIGHT STANDARDS, TYPE MTLT    ************,","Each",1404,"Lighting"]
[87675,"5055000000-N","LIGHT STANDARDS, TYPE MISC    ************,","Each",1404,"Lighting"]
[87677,"5060000000-N","POST TOP STANDARD, TYPE AB    ************,","Each",9000,"Lighting"]
[87679,"5065000000-N","POST TOP STANDARD, TYPE EB    ************,","Each",9000,"Lighting"]
[87681,"5070000000-N","STANDARD FOUNDATION *********,","Each",9000,"Lighting"]
[87683,"5075000000-N","BEDROCK FOUNDATIONS **********,","Each",9000,"Lighting"]
[87685,"5080000000-N","LIGHT STANDARD LUMINAIRES,    TYPE ************,","Each",9000,"Lighting"]
[87687,"5090000000-N","LIGHT STANDARD LUMINAIRES,    TYPE RDW 400W HPS,","Each",9000,"Lighting"]
[87689,"5095000000-N","POST TOP LUMINAIRES, TYPE CH  ************,","Each",9000,"Lighting"]
[87691,"5100000000-N","POST TOP LUMINAIRES, TYPE     ************,","Each",9000,"Lighting"]
[87693,"5115000000-N","GLARE SHIELDS,","Each",9000,"Lighting"]
[87695,"5120000000-N","ELECTRIC SERVICE POLE     ************,","Each",1407,"Lighting"]
[87696,"5125000000-E","ELECTRIC SERVICE LATERAL      ************,","Linear Feet",1407,"Lighting"]
[87698,"5130000000-N","LIGHT CONTROL EQUIPMENT, TYPE ************,","Each",1408,"Lighting"]
[87700,"5135000000-N","LIGHT CONTROL EQUIPMENT, TYPE RA ************,","Each",1408,"Lighting"]
[87702,"5140000000-N","LIGHT CONTROL EQUIPMENT, TYPE SP ************,","Each",1408,"Lighting"]
[87704,"5145000000-N","LIGHT CONTROL EQUIPMENT, TYPE RW ************,","Each",1408,"Lighting"]
[87705,"5150000000-E","ELECTRICAL DUCT, TYPE **, SIZE*****,","Linear Feet",1409,"Lighting"]
[87706,"5155000000-E","ELECTRICAL DUCT, TYPE BD, SIZE *****,","Linear Feet",1409,"Lighting"]
[87707,"5160000000-E","ELECTRICAL DUCT, TYPE JA, SIZE *****,","Linear Feet",1409,"Lighting"]
[87708,"5165000000-E","** #10 W/G FEEDER CIRCUIT,","Linear Feet",1410,"Lighting"]
[87709,"5170000000-E","** #8 W/G FEEDER CIRCUIT,","Linear Feet",1410,"Lighting"]
[87710,"5175000000-E","** #6 W/G FEEDER CIRCUIT,","Linear Feet",1410,"Lighting"]
[87711,"5180000000-E","** #4 W/G FEEDER CIRCUIT,","Linear Feet",1410,"Lighting"]
[87712,"5185000000-E","** #2 W/G FEEDER CIRCUIT,","Linear Feet",1410,"Lighting"]
[87713,"5190000000-E","************ FEEDER CIRCUIT,","Linear Feet",1410,"Lighting"]
[87714,"5195000000-E","************ FEEDER CIRCUIT,  DIRECT BURRIED,","Linear Feet",9000,"Lighting"]
[87715,"5200000000-E","** #10 W/G FEEDER CIRCUIT IN  ***** CONDUIT,\"","Linear Feet",1410,"Lighting"]
[87716,"5205000000-E","** #8 W/G FEEDER CIRCUIT IN   ***** CONDUIT,\"","Linear Feet",1410,"Lighting"]
[87717,"5210000000-E","** #6 W/G FEEDER CIRCUIT IN   ***** CONDUIT,\"","Linear Feet",1410,"Lighting"]
[87718,"5215000000-E","** #4 W/G FEEDER CIRCUIT IN   ***** CONDUIT,\"","Linear Feet",1410,"Lighting"]
[87719,"5220000000-E","** #2 W/G FEEDER CIRCUIT IN   ***** CONDUIT,\"","Linear Feet",1410,"Lighting"]
[87720,"5225000000-E","** #1 W/G FEEDER CIRCUIT IN   ***** CONDUIT,\"","Linear Feet",1410,"Lighting"]
[87721,"5230000000-E","************ FEEDER CIRCUIT IN** CONDUIT,","Linear Feet",1410,"Lighting"]
[87723,"5240000000-N","ELECTRICAL JUNCTION BOXES     ************,","Each",1411,"Lighting"]
[87725,"5245000000-N","ELECTRICAL CIRCUIT MARKERS,","Each",9000,"Lighting"]
[87729,"5252000000-N","UNDERPASS LUMINARIES *********,","Each",1412,"Lighting"]
[87731,"5253000000-N","UNDERPASS CIRCUITRY AT *******,","Lump Sum",1412,"Lighting"]
[87733,"5255000000-N","PORTABLE LIGHTING,","Lump Sum",1413,"Lighting"]
[87735,"5260000000-N","GENERIC LIGHTING ITEM,","Lump Sum",9000,"Lighting"]
[87736,"5261000000-E","GENERIC LIGHTING ITEM,","Square Yards",9000,"Lighting"]
[87737,"5262000000-E","GENERIC LIGHTING ITEM,","Cubic Yards",9000,"Lighting"]
[87738,"5263000000-E","GENERIC LIGHTING ITEM,","Pounds",9000,"Lighting"]
[87739,"5265000000-E","GENERIC LIGHTING ITEM,","Linear Feet",9000,"Lighting"]
[87741,"5270000000-N","GENERIC LIGHTING ITEM,","Each",9000,"Lighting"]
[87743,"5271000000-N","GENERIC LIGHTING ITEM,","Hours",9000,"Lighting"]
[87744,"5273000000-E","GENERIC LIGHTING ITEM,","Tons",9000,"Lighting"]
[86728,"0199000000-E","TEMPORARY SHORING,","Square Feet",9000,"Miscellaneous(M)"]
[86776,"0000800000-N","GENERIC MISCELLANEOUS ITEM,","Month",9000,"Miscellaneous(M)"]
[86778,"0000810000-N","GENERIC MISCELLANEOUS ITEM,","Man Hours",9000,"Miscellaneous(M)"]
[86780,"0000820000-N","GENERIC MISCELLANEOUS ITEM,","Day",9000,"Miscellaneous(M)"]
[86782,"0000900000-N","GENERIC MISCELLANEOUS ITEM,","Lump Sum",9000,"Miscellaneous(M)"]
[86784,"0000910000-N","GENERIC MISCELLANEOUS ITEM,","Hours",9000,"Miscellaneous(M)"]
[86785,"0000920000-E","GENERIC MISCELLANEOUS ITEM,","Cubic Yards",9000,"Miscellaneous(M)"]
[86786,"0000930000-E","GENERIC MISCELLANEOUS ITEM,","Linear Feet",9000,"Miscellaneous(M)"]
[86787,"0000940000-E","GENERIC MISCELLANEOUS ITEM,","Pounds",9000,"Miscellaneous(M)"]
[86788,"0000950000-E","GENERIC MISCELLANEOUS ITEM,","Square Feet",9000,"Miscellaneous(M)"]
[86789,"0000960000-E","GENERIC MISCELLANEOUS ITEM,","Square Yards",9000,"Miscellaneous(M)"]
[86790,"0000970000-E","GENERIC MISCELLANEOUS ITEM,","Acres",9000,"Miscellaneous(M)"]
[86791,"0000990000-E","GENERIC MISCELLANEOUS ITEM,","Gallons",9000,"Miscellaneous(M)"]
[86792,"0000995000-E","GENERIC MISCELLANEOUS ITEM,","Tons",9000,"Miscellaneous(M)"]
[86795,"0001020000-N","GENERIC MISCELLANEOUS ITEM,","Each",9000,"Miscellaneous(M)"]
[87363,"3956000000-E","TREATED STRUCTURAL TIMBER,","Cubic Yards",9000,"Miscellaneous(M)"]
[87364,"3960000000-E","1 DIAMETER TIE RODS,\"","Linear Feet",9000,"Miscellaneous(M)"]
[87366,"3964000000-N","TIE BACK ANCHORS,","Each",9000,"Miscellaneous(M)"]
[88652,"0000860000-N","GENERIC MISCELLANEOUS ITEM,","Dollars",9000,"Miscellaneous(M)"]
[88688,"0000915000-N","GENERIC MISCELLANEOUS ITEM,","Each",9000,"Miscellaneous(M)"]
[89437,"0000980000-E","GENERIC MISCELLANEOUS ITEM,","Cubic Feet",9000,"Miscellaneous(M)"]
[89439,"0000996000-N","DESIGN AND CONSTRUCTION,","Lump Sum",9000,"Miscellaneous(M)"]
[86793,"1198000000-E","AGGREGATE FOR SOIL CEMENT BASE,","Tons",542,"Paving"]
[86798,"1209000000-E","ASPHALT CURING SEAL,","Gallons",543,"Paving"]
[86848,"1022000000-E","SEALING EXISTING PAVEMENT     CRACKS,","Pounds",9000,"Paving"]
[86849,"1044000000-E","LIME TREATED SOIL (SLURRY     METHOD),","Square Yards",501,"Paving"]
[86850,"1055000000-E","LIME TREATED SOIL (QUICKLIME),","Square Yards",501,"Paving"]
[86851,"1066000000-E","LIME FOR LIME TREATED SOIL,","Tons",501,"Paving"]
[86852,"1077000000-E","#57 STONE,","Tons",9000,"Paving"]
[86853,"1088000000-E","#57 STONE,","Cubic Yards",9000,"Paving"]
[86855,"1110000000-E","STABILIZER AGGREGATE,","Tons",510,"Paving"]
[86856,"1121000000-E","AGGREGATE BASE COURSE,","Tons",520,"Paving"]
[86857,"1132000000-E","SOIL TYPE BASE COURSE, TYPE **,","Cubic Yards",9000,"Paving"]
[86858,"1143000000-E","SOIL TYPE BASE COURSE, TYPE **,","Tons",9000,"Paving"]
[86861,"1154000000-E","AGGREGATE FOR CEMENT-TREATED  BASE COURSE,","Tons",540,"Paving"]
[86862,"1165000000-E","PORTLAND CEMENT FOR CEMENT    TREATED BASE COURSE,","Tons",540,"Paving"]
[86864,"1187000000-E","PORTLAND CEMENT FOR SOIL CE-  MENT BASE,","Tons",542,"Paving"]
[86865,"1886000000-E","GENERIC PAVING ITEM,","Miles",9000,"Paving"]
[86867,"1890000000-N","GENERIC PAVING ITEM,","Each",9000,"Paving"]
[86869,"1891000000-E","GENERIC PAVING ITEM,","Square Yards",9000,"Paving"]
[86871,"1891500000-N","GENERIC PAVING ITEM,","Lump Sum",9000,"Paving"]
[86872,"1892000000-E","GENERIC PAVING ITEM,","Square Yards",710,"Paving"]
[86875,"1913000000-E","CONCRETE SHOULDERS ADJACENT TO****** PAVEMENT,\"","Square Yards",720,"Paving"]
[86876,"1914000000-E","CONCRETE SHOULDERS ADJACENT TO****** PAVEMENT (WITHDOWELS),\"","Square Yards",9000,"Paving"]
[86897,"2143000000-E","BLOTTING SAND,","Tons",818,"Paving"]
[86962,"1882000000-E","GENERIC PAVING ITEM,","Gallons",9000,"Paving"]
[86965,"1275000000-E","PRIME COAT,","Gallons",600,"Paving"]
[86969,"1363000000-E","ASPHALT TREATED BASE COURSE,","Tons",9000,"Paving"]
[86970,"1385000000-E","SAND ASPHALT BASE COURSE, TYPE F-1,","Tons",9000,"Paving"]
[86971,"1396000000-E","SAND ASPHALT SURFACE COURSE,  TYPE F-1 (LEVELING COURSE),","Tons",9000,"Paving"]
[86972,"1407000000-E","SAND ASPHALT SURFACE COURSE,  TYPE F-1,","Tons",9000,"Paving"]
[86973,"1489000000-E","ASPHALT CONC BASE COURSE, TYPE B25.0B,","Tons",610,"Paving"]
[86974,"1491000000-E","ASPHALT CONC BASE COURSE, TYPE B25.0C,","Tons",610,"Paving"]
[86975,"1493000000-E","ASPHALT CONC BASE COURSE, TYPE B37.5C,","Tons",9000,"Paving"]
[86976,"1498000000-E","ASPHALT CONC INTERMEDIATE     COURSE, TYPE I19.0B,","Tons",610,"Paving"]
[86977,"1503000000-E","ASPHALT CONC INTERMEDIATE     COURSE, TYPE I19.0C,","Tons",610,"Paving"]
[86978,"1508000000-E","ASPHALT CONC INTERMEDIATE     COURSE, TYPE I19.0D,","Tons",610,"Paving"]
[86979,"1519000000-E","ASPHALT CONC SURFACE COURSE,  TYPE S9.5B,","Tons",610,"Paving"]
[86980,"1520000000-E","ASPHALT CONC SURFACE COURSE,  TYPE S9.5B (LEVELING COURSE),","Tons",9000,"Paving"]
[86981,"1523000000-E","ASPHALT CONC SURFACE COURSE,  TYPE S9.5C,","Tons",610,"Paving"]
[86982,"1524000000-E","ASPHALT CONC SURFACE COURSE,  TYPE S9.5C (LEVELING COURSE),","Tons",9000,"Paving"]
[86983,"1524200000-E","ASPHALT CONC SURFACE COURSE,  TYPE S9.5D,","Tons",610,"Paving"]
[86984,"1525000000-E","ASPHALT CONC SURFACE COURSE,  TYPE SF9.5A,","Tons",610,"Paving"]
[86985,"1525100000-E","ASPHALT CONC SURFACE COURSE,  TYPE SF9.5A (LEVELING COURSE),","Tons",9000,"Paving"]
[86986,"1526000000-E","ASPHALT CONC SURFACE COURSE,  TYPE S4.75A,","Tons",610,"Paving"]
[86990,"1575000000-E","ASPHALT BINDER FOR PLANT MIX,","Tons",620,"Paving"]
[86991,"1577000000-E","POLYMER MODIFIED ASPHALT BIN- DER FOR PLANT MIX,","Tons",620,"Paving"]
[86993,"1662000000-E","OPEN-GRADED ASPHALT FRICTION  COURSE, TYPE FC-1 MODIFIED,","Tons",650,"Paving"]
[86995,"1671000000-E","PERMEABLE ASPHALT DRAINAGE    COURSE, TYPE P-78M,","Tons",652,"Paving"]
[86996,"1682000000-E","PERMEABLE ASPHALT DRAINAGE    COURSE, TYPE P-57,","Tons",652,"Paving"]
[86997,"1693000000-E","ASPHALT PLANT MIX, PAVEMENT   REPAIR,","Tons",654,"Paving"]
[86998,"1702000000-E","SEALING EXISTING PAVEMENT     CRACKS & JOINTS,","Pounds",657,"Paving"]
[86999,"1704000000-E","PATCHING EXISTING PAVEMENT,","Tons",9000,"Paving"]
[87000,"1715000000-E","PATCHING EXISTING PAVEMENT    CRACKS,","Tons",9000,"Paving"]
[87001,"1726000000-E","PATCHING EXISTING PAVEMENT    CRACKS & JOINTS,","Tons",9000,"Paving"]
[87002,"1737000000-E","PATCHING CONCRETE PAVEMENT    SPALLS,","Square Feet",723,"Paving"]
[87004,"1775000000-E","ASPHALT SURFACE TREATMENT, MATCOAT, #78M STONE,","Square Yards",660,"Paving"]
[87005,"1839300000-E","HOT-IN-PLACE RECYCLED ASPHALT CONCRETE, TYPE I19.0B,","Square Yards",9000,"Paving"]
[87006,"1839302000-E","HOT-IN-PLACE RECYCLED ASPHALT CONCRETE, TYPE I19.0C,","Square Yards",9000,"Paving"]
[87007,"1839310000-E","HOT-IN-PLACE RECYCLED ASPHALT CONCRETE, TYPE S9.5B,","Square Yards",9000,"Paving"]
[87008,"1839320000-E","HOT-IN-PLACE RECYCLED ASPHALT CONCRETE, TYPE S9.5C,","Square Yards",9000,"Paving"]
[87009,"1839400000-E","EMULSIFIED ASPHALT REJUVENA-  TING AGENT,","Gallons",9000,"Paving"]
[87010,"1839500000-E","HOT MIX ASPHALT ADMIXTURE,","Tons",9000,"Paving"]
[87012,"1880000000-E","GENERIC PAVING ITEM,","Tons",9000,"Paving"]
[87013,"1881000000-E","GENERIC PAVING ITEM,","Linear Feet",9000,"Paving"]
[87015,"1884000000-N","GENERIC PAVING ITEM,","Bag",9000,"Paving"]
[87066,"2535000000-E","**X **\" CONCRETE CURB,\"","Linear Feet",846,"Paving"]
[87067,"2538000000-E","**'-** CONCRETE CURB & GUTTER,\"","Linear Feet",846,"Paving"]
[87068,"2542000000-E","1'-6 CONCRETE CURB & GUTTER,\"","Linear Feet",846,"Paving"]
[87069,"2549000000-E","2'-6 CONCRETE CURB & GUTTER,\"","Linear Feet",846,"Paving"]
[87070,"2556000000-E","SHOULDER BERM GUTTER,","Linear Feet",846,"Paving"]
[87071,"2563000000-E","**' CONCRETE GUTTER,","Linear Feet",846,"Paving"]
[87074,"2577000000-E","CONCRETE EXPRESSWAY GUTTER,","Linear Feet",846,"Paving"]
[87075,"2580000000-E","CONCRETE VALLEY GUTTER,","Linear Feet",846,"Paving"]
[87076,"2591000000-E","4 CONCRETE SIDEWALK,\"","Square Yards",848,"Paving"]
[87078,"2600000000-N","RETROFIT EXISTING CURB RAMPS,","Each",848,"Paving"]
[87080,"2605000000-N","CONCRETE CURB RAMPS,","Each",848,"Paving"]
[87081,"2612000000-E","6 CONCRETE DRIVEWAY,\"","Square Yards",848,"Paving"]
[87083,"2627000000-E","4 CONCRETE ISLAND COVER,\"","Square Yards",852,"Paving"]
[87084,"2633000000-E","12 CONCRETE ISLAND COVER,\"","Square Yards",852,"Paving"]
[87085,"2647000000-E","5 MONOLITHIC CONCRETE ISLANDS(SURFACE MOUNTED),\"","Square Yards",852,"Paving"]
[87086,"2655000000-E","5 MONOLITHIC CONCRETE ISLANDS(KEYED IN),\"","Square Yards",852,"Paving"]
[87087,"2696000000-E","PRECAST CONCRETE BARRIER,","Linear Feet",9000,"Paving"]
[87088,"2703000000-E","CONCRETE BARRIER, TYPE *******,","Linear Feet",854,"Paving"]
[87090,"2710000000-N","CONCRETE BARRIER TRANSITION   SECTION,","Each",854,"Paving"]
[87091,"2717000000-E","VARIABLE HEIGHT CONCRETE BAR- RIER, TYPE ************,","Linear Feet",854,"Paving"]
[87092,"2724000000-E","PRECAST REINFORCED CONCRETE   BARRIER, SINGLE FACED,","Linear Feet",857,"Paving"]
[87093,"2738000000-E","GENERIC PAVING ITEM,","Square Yards",9000,"Paving"]
[87094,"2738100000-E","GENERIC PAVING ITEM,","Square Feet",9000,"Paving"]
[87095,"2739000000-E","GENERIC PAVING ITEM,","Square Yards",852,"Paving"]
[87096,"2745000000-E","GENERIC PAVING ITEM,","Cubic Yards",9000,"Paving"]
[87097,"2752000000-E","GENERIC PAVING ITEM,","Linear Feet",9000,"Paving"]
[87098,"2753000000-E","GENERIC PAVING ITEM,","Linear Feet",846,"Paving"]
[87100,"2759000000-N","GENERIC PAVING ITEM,","Each",9000,"Paving"]
[87102,"2760000000-N","GENERIC PAVING ITEM,","Each",848,"Paving"]
[87103,"2761000000-E","GENERIC PAVING ITEM,","Square Yards",848,"Paving"]
[87104,"2762000000-E","GENERIC PAVING ITEM,","Pounds",9000,"Paving"]
[87106,"2766000000-N","GENERIC PAVING ITEM,","Lump Sum",9000,"Paving"]
[88614,"8866000000-E","GENERIC STRUCTURE ITEM,","Inches",9000,"Paving"]
[88631,"1759000000-E","ASPHALT SURFACE TREATMENT, MATCOAT, #5 STONE,","Square Yards",660,"Paving"]
[88636,"1825000000-E","ASPHALT SURFACE TREATMENT,    SAND SEAL,","Square Yards",660,"Paving"]
[88637,"1836000000-E","ASPHALT SURFACE TREATMENT,    TRIPLE SEAL,","Square Yards",660,"Paving"]
[88638,"1839000000-E","GENERIC PAVING ITEM,","Square Yards",660,"Paving"]
[88639,"1847000000-E","***** PORT CEM CONC PAVEMENT,THROUGH LANES (WITH DOWELS),\"","Square Yards",710,"Paving"]
[88640,"1858000000-E","***** PORT CEM CONC PAVEMENT,RAMPS (WITH DOWELS),\"","Square Yards",710,"Paving"]
[88641,"1869000000-E","***** PORT CEM CONC PAVEMENT,MISCELLANEOUS (WITHOUT DOWELS),\"","Square Yards",710,"Paving"]
[88647,"1839140000-E","ULTRA-THIN BONDED WEARING     COURSE,","Tons",661,"Paving"]
[88650,"2657000000-E","** MONOLITHIC CONCRETE MEDIAN(*****),\"","Square Yards",852,"Paving"]
[88706,"1115000000-E","GEOTEXTILE FOR PAVEMENT STA-  BILIZATION,","Square Yards",9000,"Paving"]
[88709,"1771000000-E","ASPHALT SURFACE TREATMENT, MATCOAT, #6M STONE,","Square Yards",660,"Paving"]
[88716,"1527000000-E","ASPHALT CONC SURFACE COURSE,  TYPE SA-1,","Tons",9000,"Paving"]
[88726,"1111000000-E","CLASS IV AGGREGATE STABILIZA- TION,","Tons",9000,"Paving"]
[88729,"1748500000-E","ASPHALT SURFACE TREATMENT, MAT& SINGLE SEAL,","Square Yards",660,"Paving"]
[88730,"1775500000-E","ASPHALT SURFACE TREATMENT, MATCOAT, #*** STONE,","Square Yards",660,"Paving"]
[88734,"1814500000-E","ASPHALT SURFACE TREATMENT,    SINGLE SEAL,","Square Yards",660,"Paving"]
[88736,"1803500000-E","ASPHALT SURFACE TREATMENT,    DOUBLE SEAL,","Square Yards",660,"Paving"]
[88738,"1749000000-E","ASPHALT SURFACE TREATMENT, MAT& DOUBLE SEAL,","Square Yards",660,"Paving"]
[88739,"1820000000-E","ASPHALT SURFACE TREATMENT,    FOG SEAL,","Square Yards",9000,"Paving"]
[88740,"1838000000-E","EMULSION FOR ASPHALT SURFACE  TREATMENT,","Gallons",660,"Paving"]
[88741,"1881500000-E","GENERIC PAVING ITEM,","Cubic Feet",9000,"Paving"]
[89384,"1735000000-E","REPAIR OF JOINTED CONCRETE    PAVEMENT SLABS,","Square Yards",723,"Paving"]
[89385,"1736000000-E","SELECT MATERIAL, CLASS IV,","Tons",723,"Paving"]
[89386,"1920000000-E","NONWOVEN GEOTEXTILE INTERLAYER,","Square Yards",724,"Paving"]
[89387,"1925000000-E","MILLED RUMBLE STRIPS (CONCRETE SHOULDERS),","Linear Feet",730,"Paving"]
[89389,"2613000000-N","REMOVE AND REPLACE CURB RAMPS,","Each",848,"Paving"]
[87576,"4685000000-E","THERMOPLASTIC PAVEMENT MARKINGLINES (4, 90 MILS),\"","Linear Feet",1205,"Paving/Pavement"]
[87577,"4686000000-E","THERMOPLASTIC PAVEMENT MARKING LINES (4, 120 MILS),\"","Linear Feet",1205,"Paving/Pavement"]
[87578,"4688000000-E","THERMOPLASTIC PAVEMENT MARKINGLINES (6, 90 MILS),\"","Linear Feet",1205,"Paving/Pavement"]
[87579,"4690000000-E","THERMOPLASTIC PAVEMENT MARKINGLINES (6, 120 MILS),\"","Linear Feet",1205,"Paving/Pavement"]
[87580,"4695000000-E","THERMOPLASTIC PAVEMENT MARKINGLINES (8, 90 MILS),\"","Linear Feet",1205,"Paving/Pavement"]
[87581,"4697000000-E","THERMOPLASTIC PAVEMENT MARKINGLINES (8, 120 MILS),\"","Linear Feet",1205,"Paving/Pavement"]
[87582,"4700000000-E","THERMOPLASTIC PAVEMENT MARKINGLINES (12, 90 MILS),\"","Linear Feet",1205,"Paving/Pavement"]
[87583,"4702000000-E","THERMOPLASTIC PAVEMENT MARKINGLINES (12, 120 MILS),\"","Linear Feet",1205,"Paving/Pavement"]
[87584,"4705000000-E","THERMOPLASTIC PAVEMENT MARKINGLINES (16, 120 MILS),\"","Linear Feet",1205,"Paving/Pavement"]
[87585,"4710000000-E","THERMOPLASTIC PAVEMENT MARKINGLINES (24, 120 MILS),\"","Linear Feet",1205,"Paving/Pavement"]
[87586,"4721000000-E","THERMOPLASTIC PAVEMENT MARKINGCHARACTER (120 MILS),","Each",1205,"Paving/Pavement"]
[87587,"4725000000-E","THERMOPLASTIC PAVEMENT MARKINGSYMBOL (90 MILS),","Each",1205,"Paving/Pavement"]
[87588,"4770000000-E","COLD APPLIED PLASTIC PAVEMENT MARKING LINES, TYPE ** (4),\"","Linear Feet",1205,"Paving/Pavement"]
[87589,"4775000000-E","COLD APPLIED PLASTIC PAVEMENT MARKING LINES, TYPE ** (6),\"","Linear Feet",1205,"Paving/Pavement"]
[87590,"4780000000-E","COLD APPLIED PLASTIC PAVEMENT MARKING LINES, TYPE ** (8),\"","Linear Feet",1205,"Paving/Pavement"]
[87591,"4785000000-E","COLD APPLIED PLASTIC PAVEMENT MARKING LINES, TYPE ** (12),\"","Linear Feet",1205,"Paving/Pavement"]
[87592,"4790000000-E","COLD APPLIED PLASTIC PAVEMENT MARKING LINES, TYPE ** (16),\"","Linear Feet",1205,"Paving/Pavement"]
[87593,"4795000000-E","COLD APPLIED PLASTIC PAVEMENT MARKING LINES, TYPE ** (24),\"","Linear Feet",1205,"Paving/Pavement"]
[87595,"4800000000-N","COLD APPLIED PLASTIC PAVEMENT MARKING CHARACTER, TYPE **,","Each",1205,"Paving/Pavement"]
[87597,"4805000000-N","COLD APPLIED PLASTIC PAVEMENT MARKING SYMBOL, TYPE **,","Each",1205,"Paving/Pavement"]
[87598,"4810000000-E","PAINT PAVEMENT MARKING LINES  (4),\"","Linear Feet",1205,"Paving/Pavement"]
[87599,"4815000000-E","PAINT PAVEMENT MARKING LINES  (6),\"","Linear Feet",1205,"Paving/Pavement"]
[87600,"4820000000-E","PAINT PAVEMENT MARKING LINES  (8),\"","Linear Feet",1205,"Paving/Pavement"]
[87601,"4825000000-E","PAINT PAVEMENT MARKING LINES  (12),\"","Linear Feet",1205,"Paving/Pavement"]
[87602,"4830000000-E","PAINT PAVEMENT MARKING LINES  (16),\"","Linear Feet",1205,"Paving/Pavement"]
[87603,"4835000000-E","PAINT PAVEMENT MARKING LINES  (24),\"","Linear Feet",1205,"Paving/Pavement"]
[87605,"4840000000-N","PAINT PAVEMENT MARKING CHARAC-TER,","Each",1205,"Paving/Pavement"]
[87607,"4845000000-N","PAINT PAVEMENT MARKING SYMBOL,","Each",1205,"Paving/Pavement"]
[87624,"4890000000-E","GENERIC PAVEMENT MARKING ITEM,","Linear Feet",9000,"Paving/Pavement"]
[87625,"4891000000-E","GENERIC PAVEMENT MARKING ITEM,","Linear Feet",1205,"Paving/Pavement"]
[87627,"4892000000-N","GENERIC PAVEMENT MARKING ITEM,","Each",1205,"Paving/Pavement"]
[87629,"4895000000-N","GENERIC PAVEMENT MARKING ITEM,","Each",9000,"Paving/Pavement"]
[87631,"4898000000-N","GENERIC PAVEMENT MARKING ITEM,","Each",1251,"Paving/Pavement"]
[87633,"4900000000-N","PERMANENT RAISED PAVEMENT     MARKERS,","Each",1251,"Paving/Pavement"]
[87635,"4905000000-N","SNOWPLOWABLE PAVEMENT MARKERS,","Each",1253,"Paving/Pavement"]
[87636,"4915000000-E","7' U-CHANNEL POSTS,","Each",1264,"Paving/Pavement"]
[87638,"4920000000-N","POST MOUNTED DELINEATORS (YEL-LOW),","Each",9000,"Paving/Pavement"]
[87640,"4925000000-N","POST MOUNTED DELINEATORS      (CRYSTAL),","Each",9000,"Paving/Pavement"]
[87642,"4930000000-N","POST MOUNTED DELINEATORS (RED),","Each",9000,"Paving/Pavement"]
[87644,"4935000000-N","FLEXIBLE DELINEATORS (CRYSTAL),","Each",1267,"Paving/Pavement"]
[87646,"4940000000-N","FLEXIBLE DELINEATORS (YELLOW),","Each",1267,"Paving/Pavement"]
[87648,"4945000000-N","FLEXIBLE DELINEATORS (CRYSTAL & RED),","Each",1267,"Paving/Pavement"]
[87650,"4950000000-N","FLEXIBLE DELINEATORS (YELLOW &RED),","Each",1267,"Paving/Pavement"]
[87652,"4955000000-N","OBJECT MARKERS (END OF ROAD),","Each",1264,"Paving/Pavement"]
[87654,"4957000000-N","OBJECT MARKERS (TYPE **),","Each",1264,"Paving/Pavement"]
[87656,"4960000000-N","GENERIC TRAFFIC CONTROL ITEM,","Each",9000,"Paving/Pavement"]
[88670,"4726000000-E","HEATED-IN-PLACE THERMOPLASTIC PAVEMENT MARKING LINES(4, 90 MILS),\"","Linear Feet",1205,"Paving/Pavement"]
[88672,"4726010000-E","HEATED-IN-PLACE THERMOPLASTIC PAVEMENT MARKING LINES(4, 120 MILS),\"","Linear Feet",1205,"Paving/Pavement"]
[88673,"4726020000-E","HEATED-IN-PLACE THERMOPLASTIC PAVEMENT MARKING LINES(6, 90 MILS),\"","Linear Feet",1205,"Paving/Pavement"]
[88674,"4726030000-E","HEATED-IN-PLACE THERMOPLASTIC PAVEMENT MARKING LINES(6, 120 MILS),\"","Linear Feet",1205,"Paving/Pavement"]
[88675,"4726040000-E","HEATED-IN-PLACE THERMOPLASTIC PAVEMENT MARKING LINES(8, 90 MILS),\"","Linear Feet",1205,"Paving/Pavement"]
[88676,"4726050000-E","HEATED-IN-PLACE THERMOPLASTIC PAVEMENT MARKING LINES(8, 120 MILS),\"","Linear Feet",1205,"Paving/Pavement"]
[88677,"4726060000-E","HEATED-IN-PLACE THERMOPLASTIC PAVEMENT MARKING LINES(12, 90 MILS),\"","Linear Feet",1205,"Paving/Pavement"]
[88678,"4726070000-E","HEATED-IN-PLACE THERMOPLASTIC PAVEMENT MARKING LINES(12, 120 MILS),\"","Linear Feet",1205,"Paving/Pavement"]
[88679,"4726080000-E","HEATED-IN-PLACE THERMOPLASTIC PAVEMENT MARKING LINES(16, 120 MILS),\"","Linear Feet",1205,"Paving/Pavement"]
[88680,"4726090000-E","HEATED-IN-PLACE THERMOPLASTIC PAVEMENT MARKING LINES(24, 120 MILS),\"","Linear Feet",1205,"Paving/Pavement"]
[88681,"4726110000-E","HEATED-IN-PLACE THERMOPLASTIC PAVEMENT MARKING SYMBOL(90 MILS),","Each",1205,"Paving/Pavement"]
[88684,"4726100000-E","HEATED-IN-PLACE THERMOPLASTIC PAVEMENT MARKING CHARACTER(120 MILS),","Each",1205,"Paving/Pavement"]
[88703,"4687000000-E","THERMOPLASTIC PAVEMENT MARKING LINES (4, 240 MILS),\"","Linear Feet",1205,"Paving/Pavement"]
[88728,"4893000000-E","GENERIC PAVEMENT MARKING ITEM,","Square Feet",9000,"Paving/Pavement"]
[89393,"4905500000-N","REPLACE SNOWPLOWABLE PAVEMENTMARKER REFLECTOR,","Each",1253,"Paving/Pavement"]
[89420,"4847500000-E","WORK ZONE PERFORMANCE PAVEMENTMARKING LINES, 6,\"","Linear Feet",9000,"Paving/Pavement"]
[89421,"4847400000-E","WORK ZONE PERFORMANCE PAVEMENTMARKING LINES, 4,\"","Linear Feet",9000,"Paving/Pavement"]
[89422,"4847600000-E","WORK ZONE PERFORMANCE PAVEMENTMARKING LINES, 12,\"","Linear Feet",9000,"Paving/Pavement"]
[89423,"4848000000-E","WORK ZONE TRAFFIC PATTERN     MASKING,","Square Feet",9000,"Paving/Pavement"]
[89424,"4847010000-E","POLYUREA PAVEMENT MARKING     LINES (4, 20 MILS),\"","Linear Feet",1205,"Paving/Pavement"]
[89425,"4847020000-E","POLYUREA PAVEMENT MARKING     LINES (4, 30 MILS),\"","Linear Feet",1205,"Paving/Pavement"]
[89426,"4847030000-E","POLYUREA PAVEMENT MARKING     LINES (6, 20 MILS),\"","Linear Feet",1205,"Paving/Pavement"]
[89427,"4847040000-E","POLYUREA PAVEMENT MARKING     LINES (6, 30 MILS),\"","Linear Feet",1205,"Paving/Pavement"]
[89428,"4847050000-E","POLYUREA PAVEMENT MARKING     LINES (8, 20 MILS),\"","Linear Feet",1205,"Paving/Pavement"]
[89429,"4847060000-E","POLYUREA PAVEMENT MARKING     LINES (8, 30 MILS),\"","Linear Feet",1205,"Paving/Pavement"]
[89430,"4847070000-E","POLYUREA PAVEMENT MARKING     LINES (12, 20 MILS),\"","Linear Feet",1205,"Paving/Pavement"]
[89431,"4847080000-E","POLYUREA PAVEMENT MARKING     LINES (12, 30 MILS),\"","Linear Feet",1205,"Paving/Pavement"]
[89432,"4847090000-E","POLYUREA PAVEMENT MARKING     LINES (16, 20 MILS),\"","Linear Feet",1205,"Paving/Pavement"]
[89433,"4847095000-E","POLYUREA PAVEMENT MARKING     LINES (16, 30 MILS),\"","Linear Feet",1205,"Paving/Pavement"]
[89441,"4720000000-E","THERMOPLASTIC PAVEMENT MARKINGCHARACTER (90 MILS),","Each",1205,"Paving/Pavement"]
[87300,"3559000000-E","** STRAND BARBED WIRE FENCE   WITH POSTS,","Linear Feet",866,"Right of Way(R)"]
[87301,"3563000000-E","TEMP ** WOVEN WIRE FENCE,    COMPLETE W/POSTS,\"","Linear Feet",9000,"Right of Way(R)"]
[87302,"3564000000-E","SINGLE GATES, ** HIGH, **'   WIDE, **' OPENING,\"","Each",866,"Right of Way(R)"]
[87303,"3565000000-E","DOUBLE GATES, ** HIGH, **'   WIDE, **' OPENING,\"","Each",866,"Right of Way(R)"]
[87304,"3566000000-E","WOVEN WIRE FENCE RESET,","Linear Feet",867,"Right of Way(R)"]
[87333,"3800000000-N","RAILROAD ADVANCE WARNING &    CROSSING SIGNS AT STA ********,","Lump Sum",9000,"Right of Way(R)"]
[87746,"7384000000-E","*** RISER WITH **************,\"","Each",1722,"Signals(Z)"]
[87747,"7396000000-E","1/2 RISER WITH WEATHERHEAD,\"","Each",1722,"Signals(Z)"]
[87748,"7408000000-E","1 RISER WITH WEATHERHEAD,\"","Each",1722,"Signals(Z)"]
[87749,"7420000000-E","2 RISER WITH WEATHERHEAD,\"","Each",1722,"Signals(Z)"]
[87751,"7430000000-N","HEAT SHRINK TUBING RETROFIT   KIT,","Each",1722,"Signals(Z)"]
[87752,"7432000000-E","2 RISER WITH HEAT SHRINK     TUBING,\"","Each",1722,"Signals(Z)"]
[87754,"7456000000-E","LEAD-IN CABLE (************),","Linear Feet",1726,"Signals(Z)"]
[87758,"7481200000-N","LUMINAIRE ARM FOR VIDEO SYSTEM,","Each",9000,"Signals(Z)"]
[87760,"7481220000-N","CAMERA WITH INTERNAL LOOP EMU-LATOR PROCESSING UNIT,","Each",9000,"Signals(Z)"]
[87762,"7481240000-N","CAMERA WITHOUT INTERNAL LOOP  EMULATOR PROCESSING UNIT,","Each",9000,"Signals(Z)"]
[87764,"7481260000-N","EXTERNAL LOOP EMULATOR PRO-   CESSING UNIT,","Each",9000,"Signals(Z)"]
[87768,"7484000000-N","MICROWAVE VEHICLE DETECTOR,","Each",9000,"Signals(Z)"]
[87769,"7504000000-E","COMMUNICATIONS CABLE (**      TWISTED-PAIR),","Linear Feet",9000,"Signals(Z)"]
[87770,"7516000000-E","COMMUNICATIONS CABLE (**FIBER),","Linear Feet",1730,"Signals(Z)"]
[87771,"7528000000-E","DROP CABLE,","Linear Feet",1730,"Signals(Z)"]
[87773,"7540000000-N","SPLICE ENCLOSURE,","Each",1731,"Signals(Z)"]
[87775,"7552000000-N","INTERCONNECT CENTER,","Each",1731,"Signals(Z)"]
[87777,"7564000000-N","FIBER-OPTIC TRANSCEIVER, DROP & REPEAT,","Each",1732,"Signals(Z)"]
[87779,"7564100000-N","FIBER-OPTIC TRANSCEIVER, SELF-HEALING RING,","Each",1732,"Signals(Z)"]
[87781,"7566000000-N","DELINEATOR MARKER,","Each",1733,"Signals(Z)"]
[87783,"7568000000-N","FURNISH FIBER-OPTIC RESTORA-  TION KIT,","Each",9000,"Signals(Z)"]
[87785,"7570000000-N","FURNISH FIBER-OPTIC POWER ME- TER,","Each",9000,"Signals(Z)"]
[87787,"7572000000-N","FURNISH OPTICAL LIGHT GENERA- TOR,","Each",9000,"Signals(Z)"]
[87789,"7574000000-N","FURNISH FIBER-OPTIC TRANSCEIV-ER,","Each",9000,"Signals(Z)"]
[87791,"7575000000-N","FIBER-OPTIC TRAINING,","Lump Sum",9000,"Signals(Z)"]
[87793,"7575100000-N","FIBER-OPTIC SPLICE CABINET    (********),","Each",9000,"Signals(Z)"]
[87795,"7575120000-N","FIBER-OPTIC SPLICE CABINET    (POLE MOUNTED),","Each",9000,"Signals(Z)"]
[87797,"7575140000-N","FIBER-OPTIC SPLICE CABINET    (BASE MOUNTED),","Each",9000,"Signals(Z)"]
[87799,"7575142000-N","900MHZ SERIAL SPREAD SPECTRUM RADIO,","Each",1736,"Signals(Z)"]
[87806,"7576000000-N","METAL STRAIN SIGNAL POLE,","Each",9000,"Signals(Z)"]
[87808,"7588000000-N","METAL POLE WITH SINGLE MAST   ARM,","Each",9000,"Signals(Z)"]
[87810,"7590000000-N","METAL POLE WITH DUAL MAST ARM,","Each",9000,"Signals(Z)"]
[87813,"7614100000-E","DRILLED PIER FOUNDATION,","Cubic Yards",9000,"Signals(Z)"]
[87815,"7615000000-N","FOUNDATION WITH WING WALLS    (TYPE *),","Each",9000,"Signals(Z)"]
[87817,"7615100000-N","FOUNDATION WITH WING WALLS    (TYPE 1),","Each",9000,"Signals(Z)"]
[87819,"7615200000-N","FOUNDATION WITH WING WALLS    (TYPE 2),","Each",9000,"Signals(Z)"]
[87825,"7636000000-N","SIGN FOR SIGNALS,","Each",1745,"Signals(Z)"]
[87829,"7675000000-N","LED BLANKOUT SIGN,","Each",1747,"Signals(Z)"]
[87833,"7684000000-N","SIGNAL CABINET FOUNDATION,","Each",1750,"Signals(Z)"]
[87835,"7686000000-N","CONDUIT ENTRANCE INTO EXISTINGFOUNDATION,","Each",1752,"Signals(Z)"]
[87839,"7696000000-N","CONTROLLERS WITH CABINET      (************************),","Each",1751,"Signals(Z)"]
[87841,"7708000000-N","DETECTOR CARD (***********),","Each",1751,"Signals(Z)"]
[87843,"7720000000-N","CONTROLLER WITH CABINET (TYPE 170E, BASE MOUNTED),","Each",1751,"Signals(Z)"]
[87845,"7732000000-N","CONTROLLER WITH CABINET (TYPE 170E, POLE MOUNTED),","Each",1751,"Signals(Z)"]
[87847,"7744000000-N","DETECTOR CARD (TYPE 170),","Each",1751,"Signals(Z)"]
[87849,"7756000000-N","CONTROLLER WITH CABINET (TYPE 2070L, BASE MOUNTED),","Each",1751,"Signals(Z)"]
[87851,"7768000000-N","CONTROLLER WITH CABINET (TYPE 2070L, POLE MOUNTED),","Each",1751,"Signals(Z)"]
[87853,"7780000000-N","DETECTOR CARD (TYPE 2070L),","Each",1751,"Signals(Z)"]
[88329,"7000000000-E","PEDESTRIAN SIGNAL HEAD (**,  ** SECTION),\"","Each",1705,"Signals(Z)"]
[88330,"7060000000-E","SIGNAL CABLE,","Linear Feet",1705,"Signals(Z)"]
[88331,"7072000000-E","VEHICLE SIGNAL HEAD (**, **  SECTION),\"","Each",1705,"Signals(Z)"]
[88332,"7084000000-E","VEHICLE SIGNAL HEAD (8, 1    SECTION),\"","Each",1705,"Signals(Z)"]
[88333,"7096000000-E","VEHICLE SIGNAL HEAD (8, 3    SECTION),\"","Each",1705,"Signals(Z)"]
[88334,"7108000000-E","VEHICLE SIGNAL HEAD (12, 1   SECTION),\"","Each",1705,"Signals(Z)"]
[88335,"7120000000-E","VEHICLE SIGNAL HEAD (12, 3   SECTION),\"","Each",1705,"Signals(Z)"]
[88336,"7132000000-E","VEHICLE SIGNAL HEAD (12, 4   SECTION),\"","Each",1705,"Signals(Z)"]
[88337,"7144000000-E","VEHICLE SIGNAL HEAD (12, 5   SECTION),\"","Each",1705,"Signals(Z)"]
[88339,"7156000000-N","VEHICLE SIGNAL HEAD WITH SIN- GLE OPTICALLY-PROGRAMMED  SEC-TION,","Each",1705,"Signals(Z)"]
[88341,"7168000000-N","VEHICLE SIGNAL HEAD WITH MUL- TIPLE OPTICALLY-PROGRAMMEDSECTIONS,","Each",1705,"Signals(Z)"]
[88343,"7180000000-N","BACKPLATE,","Each",1706,"Signals(Z)"]
[88345,"7204000000-N","LOUVER,","Each",1705,"Signals(Z)"]
[88350,"7240000000-E","MESSENGER CABLE (****),\"","Linear Feet",1710,"Signals(Z)"]
[88351,"7252000000-E","MESSENGER CABLE (1/4),\"","Linear Feet",1710,"Signals(Z)"]
[88352,"7264000000-E","MESSENGER CABLE (3/8),\"","Linear Feet",1710,"Signals(Z)"]
[88353,"7276000000-E","BORE & JACK (***********),","Linear Feet",1715,"Signals(Z)"]
[88354,"7279000000-E","TRACER WIRE,","Linear Feet",1715,"Signals(Z)"]
[88355,"7288000000-E","PAVED TRENCHING (***********),","Linear Feet",1715,"Signals(Z)"]
[88358,"7301000000-E","DIRECTIONAL DRILL (**********),","Linear Feet",1715,"Signals(Z)"]
[88360,"7312000000-N","JUNCTION BOX (***************),","Each",1716,"Signals(Z)"]
[88362,"7324000000-N","JUNCTION BOX (STANDARD SIZE),","Each",1716,"Signals(Z)"]
[88364,"7348000000-N","JUNCTION BOX (OVER-SIZED, HEA-VY DUTY),","Each",1716,"Signals(Z)"]
[88366,"7360000000-N","WOOD POLE,","Each",1720,"Signals(Z)"]
[88368,"7372000000-N","GUY ASSEMBLY,","Each",1721,"Signals(Z)"]
[88370,"7804000000-N","CONTROLLER WITH CABINET (NEMA TS-1, POLE MOUNTED),","Each",1751,"Signals(Z)"]
[88372,"7816000000-N","DETECTOR CARD (NEMA TS-1),","Each",1751,"Signals(Z)"]
[88374,"7828000000-N","CONTROLLER WITH CABINET (NEMA TS-2, TYPE 2 CONTROLLER, TYPE1 CABINET, BASE MOUNTED),","Each",1751,"Signals(Z)"]
[88376,"7840000000-N","CONTROLLER WITH CABINET (NEMA TS-2, TYPE 2 CONTROLLER, TYPE1 CABINET, POLE MOUNTED),","Each",1751,"Signals(Z)"]
[88378,"7852000000-N","DETECTOR CARD (NEMA TS-2),","Each",1751,"Signals(Z)"]
[88380,"7901000000-N","CABINET BASE EXTENDER,","Each",1753,"Signals(Z)"]
[88382,"7901010000-N","CABINET BASE ADAPTER,","Each",1753,"Signals(Z)"]
[88384,"7912000000-N","BEACON CONTROLLER ASSEMBLY &  CABINET (********),","Each",1755,"Signals(Z)"]
[88386,"7924000000-N","TWISTED-PAIR SPLICE CABINET,","Each",9000,"Signals(Z)"]
[88394,"7980000000-N","GENERIC SIGNAL ITEM,","Each",9000,"Signals(Z)"]
[88396,"7985000000-N","GENERIC SIGNAL ITEM,","Lump Sum",9000,"Signals(Z)"]
[88397,"7990000000-E","GENERIC SIGNAL ITEM,","Linear Feet",9000,"Signals(Z)"]
[88398,"7991000000-E","GENERIC SIGNAL ITEM,","Square Feet",9000,"Signals(Z)"]
[88399,"7992000000-E","GENERIC SIGNAL ITEM,","Cubic Yards",9000,"Signals(Z)"]
[88401,"7993000000-N","GENERIC SIGNAL ITEM,","Day",9000,"Signals(Z)"]
[88659,"7300100000-E","UNPAVED TRENCHING FOR TEMP-   ORARY LEAD-IN,","Linear Feet",1715,"Signals(Z)"]
[88663,"7642100000-N","TYPE I POST WITH FOUNDATION,","Each",1743,"Signals(Z)"]
[88665,"7642200000-N","TYPE II PEDESTAL WITH FOUND-  ATION,","Each",1743,"Signals(Z)"]
[88667,"7642300000-N","TYPE III PEDESTAL WITH FOUND- ATION,","Each",1743,"Signals(Z)"]
[88671,"7048500000-E","PEDESTRIAN SIGNAL HEAD (16, 1SECTION W/COUNTDOWN),\"","Each",1705,"Signals(Z)"]
[88683,"7229000000-N","APS DETECTOR STATION,","Each",9000,"Signals(Z)"]
[88686,"7230000000-N","CENTRAL CONTROL UNIT APS      DETECTOR STATION,","Each",9000,"Signals(Z)"]
[88690,"7485000000-N","WIRELESS MAGNETIC SENSOR VEHI-CLE DETECTOR SYSTEM,","Each",9000,"Signals(Z)"]
[88692,"7574500000-N","FURNISH WIRELESS RADIO MODEM,","Each",9000,"Signals(Z)"]
[88694,"7574550000-N","FURNISH WIRELESS LIGHTNING    ARRESTOR,","Each",9000,"Signals(Z)"]
[88696,"7575142050-N","SOLAR POWER, 900MHZ SPREAD    SPECTRUM RADIO,","Each",9000,"Signals(Z)"]
[88700,"7575200000-N","GPS UNIT,","Each",9000,"Signals(Z)"]
[88710,"7993000000-E","GENERIC SIGNAL ITEM,","Square Yards",9000,"Signals(Z)"]
[89404,"7575142010-N","900MHZ SERIAL/ETHERNET SPREAD SPECTRUM RADIO,","Each",1736,"Signals(Z)"]
[87376,"4025000000-E","CONTRACTOR FURNISHED, TYPE ***SIGN,","Square Feet",901,"Signing(S)"]
[87378,"4048000000-E","REINFORCED CONCRETE SIGN FOUN-DATIONS,","Cubic Yards",902,"Signing(S)"]
[87379,"4054000000-E","PLAIN CONCRETE SIGN FOUNDA-   TIONS,","Cubic Yards",902,"Signing(S)"]
[87380,"4057000000-E","OVERHEAD FOOTING,","Cubic Yards",9000,"Signing(S)"]
[87381,"4060000000-E","SUPPORTS, BREAKAWAY STEEL BEAM,","Pounds",903,"Signing(S)"]
[87382,"4066000000-E","SUPPORTS, SIMPLE STEEL BEAM,","Pounds",903,"Signing(S)"]
[87383,"4072000000-E","SUPPORTS, 3-LB STEEL U-CHANNEL,","Linear Feet",903,"Signing(S)"]
[87384,"4078000000-E","SUPPORTS, 2-LB STEEL U-CHANNEL,","Each",903,"Signing(S)"]
[87386,"4079000000-N","SUPPORTS, BARRIER (SMALL),","Each",903,"Signing(S)"]
[87388,"4080000000-N","SUPPORTS, BARRIER (LARGE),","Each",903,"Signing(S)"]
[87389,"4082000000-E","SUPPORTS, WOOD,","Linear Feet",903,"Signing(S)"]
[87391,"4082100000-N","SUPPORTS, OVERHEAD SIGN STRUC-TURE  AT STA ******,","Lump Sum",906,"Signing(S)"]
[87393,"4082110000-N","SUPPORTS, OVERHEAD DYNAMIC    MESSAGE SIGN STRUCTURE AT STA*******,","Lump Sum",9000,"Signing(S)"]
[87419,"4127000000-N","LIGHTING FOR OVERHEAD SIGN AS-SEMBLY AT STA *******,","Lump Sum",9000,"Signing(S)"]
[87421,"4127500000-N","LRS LIGHTING SYSTEM FOR OVER- HEAD SIGN ASSEMBLY AT STA*******,","Lump Sum",9000,"Signing(S)"]
[87423,"4128000000-N","STATIC LIGHTING SYSTEM FOR    OVERHEAD SIGN ASSEMBLY AT STA********,","Lump Sum",9000,"Signing(S)"]
[87489,"4273000000-N","GENERIC SIGNING ITEM,","Each",907,"Signing(S)"]
[87493,"4355100000-N","DYNAMIC MESSAGE SIGN SYSTEM   DMS**\",\"","Lump Sum",9000,"Signing(S)"]
[87495,"4355200000-N","DMS SYSTEM SERVER COMPUTER,","Lump Sum",9000,"Signing(S)"]
[87497,"4355210000-N","DMS SYSTEM CLIENT COMPUTER,","Lump Sum",9000,"Signing(S)"]
[87499,"4355220000-N","DMS SYSTEM LAPTOP COMPUTER,","Lump Sum",9000,"Signing(S)"]
[87501,"4355230000-N","DMS SYSTEM CONTROL SOFTWARE,","Lump Sum",9000,"Signing(S)"]
[87515,"4360000000-N","GENERIC SIGNING ITEM,","Each",9000,"Signing(S)"]
[87516,"4361000000-E","GENERIC SIGNING ITEM,","Pounds",9000,"Signing(S)"]
[87517,"4363000000-E","GENERIC SIGNING ITEM,","Linear Feet",9000,"Signing(S)"]
[87518,"4365000000-E","GENERIC SIGNING ITEM,","Cubic Yards",9000,"Signing(S)"]
[87519,"4366000000-E","GENERIC SIGNING ITEM,","Square Feet",9000,"Signing(S)"]
[87521,"4370000000-N","GENERIC SIGNING ITEM,","Lump Sum",9000,"Signing(S)"]
[88654,"4080200000-E","SUPPORTS, STEEL SQUARE TUBE,","Linear Feet",903,"Signing(S)"]
[87334,"3804000000-E","AGGREGATE BASE COURSE (SUB-   BALLAST),","Tons",9000,"Trackwork(RR)"]
[87335,"3808000000-E","RAILROAD TRACK TO BE CONSTRUC-TED,","Track Feet",9000,"Trackwork(RR)"]
[87336,"3812000000-E","RAILROAD TRACK TO BE CONSTRUC-TED,","Linear Feet",9000,"Trackwork(RR)"]
[87343,"3840000000-E","RAILROAD TRACK TO BE LINED,","Track Feet",9000,"Trackwork(RR)"]
[87344,"3844000000-E","RAILROAD TRACK TO BE LINED,","Linear Feet",9000,"Trackwork(RR)"]
[87345,"3848000000-E","RAILROAD DETOUR TRACK TO BE   CONSTRUCTED & REMOVED,","Track Feet",9000,"Trackwork(RR)"]
[87346,"3852000000-E","RAILROAD DETOUR TRACK TO BE   CONSTRUCTED & REMOVED,","Linear Feet",9000,"Trackwork(RR)"]
[87347,"3856000000-E","STONE BALLAST (AREA #4),","Tons",9000,"Trackwork(RR)"]
[87349,"3860000000-N","CROSS TIE REPLACEMENTS,","Each",9000,"Trackwork(RR)"]
[87351,"3864000000-N","RAIL ANCHOR,","Each",9000,"Trackwork(RR)"]
[87353,"3868000000-N","GAGE ROD (NON-INSULATED),","Each",9000,"Trackwork(RR)"]
[87355,"3872000000-N","GAGE ROD (INSULATED),","Each",9000,"Trackwork(RR)"]
[87356,"3876000000-E","GENERIC TRACKWORK ITEM,","Linear Feet",9000,"Trackwork(RR)"]
[87357,"3880000000-E","GENERIC TRACKWORK ITEM,","Track Feet",9000,"Trackwork(RR)"]
[87359,"3883000000-N","GENERIC TRACKWORK ITEM,","Lump Sum",9000,"Trackwork(RR)"]
[87361,"3884000000-N","GENERIC TRACKWORK ITEM,","Each",9000,"Trackwork(RR)"]
[87362,"3885000000-E","GENERIC TRACKWORK ITEM,","Tons",9000,"Trackwork(RR)"]
[87253,"3380000000-E","TEMPORARY STEEL BEAM GUARDRAIL,","Linear Feet",862,"Traffic Control(Y)"]
[87254,"3382000000-E","TEMPORARY STEEL BEAM GUARDRAIL (SHOP CURVED),","Linear Feet",862,"Traffic Control(Y)"]
[87255,"3383000000-E","TEMPORARY STEEL BEAM GUARDRAIL DOUBLE FACED,","Linear Feet",862,"Traffic Control(Y)"]
[87257,"3384000000-N","TEMPORARY STEEL BEAM GUARDRAIL TERMINAL SECTIONS,","Each",862,"Traffic Control(Y)"]
[87259,"3387000000-N","TEMPORARY GUARDRAIL ANCHOR    UNITS, TYPE  **********,","Each",9000,"Traffic Control(Y)"]
[87522,"4400000000-E","WORK ZONE SIGNS (STATIONARY),","Square Feet",1110,"Traffic Control(Y)"]
[87523,"4405000000-E","WORK ZONE SIGNS (PORTABLE),","Square Feet",1110,"Traffic Control(Y)"]
[87524,"4410000000-E","WORK ZONE SIGNS (BARRICADE    MOUNTED),","Square Feet",1110,"Traffic Control(Y)"]
[87526,"4415000000-N","FLASHING ARROW BOARD,","Each",1115,"Traffic Control(Y)"]
[87528,"4420000000-N","PORTABLE CHANGEABLE MESSAGE   SIGN,","Each",1120,"Traffic Control(Y)"]
[87530,"4422000000-N","PORTABLE CHANGEABLE MESSAGE   SIGN (SHORT TERM),","Day",1120,"Traffic Control(Y)"]
[87532,"4430000000-N","DRUMS,","Each",1130,"Traffic Control(Y)"]
[87534,"4435000000-N","CONES,","Each",1135,"Traffic Control(Y)"]
[87535,"4445000000-E","BARRICADES (TYPE III),","Linear Feet",1145,"Traffic Control(Y)"]
[87539,"4465000000-N","TEMPORARY CRASH CUSHIONS,","Each",1160,"Traffic Control(Y)"]
[87543,"4480000000-N","TMA,","Each",1165,"Traffic Control(Y)"]
[87544,"4485000000-E","PORTABLE CONCRETE BARRIER,","Linear Feet",1170,"Traffic Control(Y)"]
[87545,"4490000000-E","PORTABLE CONCRETE BARRIER     (ANCHORED),","Linear Feet",1170,"Traffic Control(Y)"]
[87548,"4507000000-E","WATER FILLED BARRIER,","Linear Feet",1170,"Traffic Control(Y)"]
[87553,"4516000000-N","SKINNY DRUM,","Each",1180,"Traffic Control(Y)"]
[87555,"4520000000-N","TUBULAR MARKERS (FIXED),","Each",1266,"Traffic Control(Y)"]
[87556,"4565000000-E","BACKFILL MATERIAL,","Linear Feet",9000,"Traffic Control(Y)"]
[87557,"4570000000-E","TEMPORARY GLARE SCREEN,","Linear Feet",9000,"Traffic Control(Y)"]
[87558,"4575000000-E","MOVABLE CONCRETE BARRIER,","Linear Feet",9000,"Traffic Control(Y)"]
[87563,"4589000000-N","GENERIC TRAFFIC CONTROL ITEM,","Lump Sum",9000,"Traffic Control(Y)"]
[87564,"4590000000-E","GENERIC TRAFFIC CONTROL ITEM,","Linear Feet",9000,"Traffic Control(Y)"]
[87565,"4595000000-E","GENERIC TRAFFIC CONTROL ITEM,","Square Feet",9000,"Traffic Control(Y)"]
[87567,"4600000000-N","GENERIC TRAFFIC CONTROL ITEM,","Each",9000,"Traffic Control(Y)"]
[87569,"4605000000-N","GENERIC TRAFFIC CONTROL ITEM,","Hours",9000,"Traffic Control(Y)"]
[87571,"4609000000-N","GENERIC TRAFFIC CONTROL ITEM,","Day",9000,"Traffic Control(Y)"]
[87573,"4610000000-N","GENERIC TRAFFIC CONTROL ITEM,","Man Days",9000,"Traffic Control(Y)"]
[87575,"4650000000-N","TEMPORARY RAISED PAVEMENT     MARKERS,","Each",1251,"Traffic Control(Y)"]
[88702,"4611000000-N","GENERIC TRAFFIC CONTROL ITEM,","Month",9000,"Traffic Control(Y)"]
[88724,"4457000000-N","TEMPORARY TRAFFIC CONTROL,","Lump Sum",9000,"Traffic Control(Y)"]
[88725,"4413000000-E","WORK ZONE ADVANCE/GENERAL     WARNING SIGNING,","Square Feet",9000,"Traffic Control(Y)"]
[88750,"3389150000-N","TEMPORARY GUARDRAIL END UNITS, TYPE *****,","Each",9000,"Traffic Control(Y)"]
[89407,"4402000000-E","HIGH VISIBILITY STATIONARY    SIGNS,","Square Feet",9000,"Traffic Control(Y)"]
[89408,"4407000000-E","HIGH VISIBILITY PORTABLE SIGNS,","Square Feet",9000,"Traffic Control(Y)"]
[89410,"4423000000-N","WORK ZONE DIGITAL SPEED LIMIT SIGNS,","Each",9000,"Traffic Control(Y)"]
[89412,"4424000000-N","WORK ZONE PRESENCE LIGHTING,","Each",9000,"Traffic Control(Y)"]
[89414,"4424500000-N","TEMPORARY PORTABLE TRAFFIC    SIGNAL SYSTEM,","Each",9000,"Traffic Control(Y)"]
[89416,"4432000000-N","HIGH VISIBILITY DRUMS,","Each",9000,"Traffic Control(Y)"]
[89418,"4434000000-N","SEQUENTIAL FLASHING WARNING   LIGHTS,","Each",9000,"Traffic Control(Y)"]
[89419,"4447000000-E","PEDESTRIAN CHANNELIZING DE-   VICES,","Linear Feet",9000,"Traffic Control(Y)"]
[87143,"5325000000-E","** WATER LINE,\"","Linear Feet",1510,"Utility(U)"]
[87144,"5325200000-E","2 WATER LINE,\"","Linear Feet",1510,"Utility(U)"]
[87145,"5325300000-E","3 WATER LINE,\"","Linear Feet",1510,"Utility(U)"]
[87146,"5325400000-E","4 WATER LINE,\"","Linear Feet",1510,"Utility(U)"]
[87147,"5325600000-E","6 WATER LINE,\"","Linear Feet",1510,"Utility(U)"]
[87148,"5325800000-E","8 WATER LINE,\"","Linear Feet",1510,"Utility(U)"]
[87149,"5326000000-E","10 WATER LINE,\"","Linear Feet",1510,"Utility(U)"]
[87150,"5326200000-E","12 WATER LINE,\"","Linear Feet",1510,"Utility(U)"]
[87151,"5326600000-E","16 WATER LINE,\"","Linear Feet",1510,"Utility(U)"]
[87152,"5327000000-E","20 WATER LINE,\"","Linear Feet",1510,"Utility(U)"]
[87153,"5327400000-E","24 WATER LINE,\"","Linear Feet",1510,"Utility(U)"]
[87154,"5328000000-E","30 WATER LINE,\"","Linear Feet",1510,"Utility(U)"]
[87155,"5534000000-E","** VALVE,\"","Each",1515,"Utility(U)"]
[87156,"5536000000-E","2 VALVE,\"","Each",1515,"Utility(U)"]
[87157,"5538000000-E","4 VALVE,\"","Each",1515,"Utility(U)"]
[87158,"5540000000-E","6 VALVE,\"","Each",1515,"Utility(U)"]
[87159,"5546000000-E","8 VALVE,\"","Each",1515,"Utility(U)"]
[87160,"5552000000-E","10 VALVE,\"","Each",1515,"Utility(U)"]
[87161,"5558000000-E","12 VALVE,\"","Each",1515,"Utility(U)"]
[87162,"5558600000-E","16 VALVE,\"","Each",1515,"Utility(U)"]
[87163,"5559000000-E","20 VALVE,\"","Each",1515,"Utility(U)"]
[87164,"5559400000-E","24 VALVE,\"","Each",1515,"Utility(U)"]
[87165,"5560000000-E","30 VALVE,\"","Each",1515,"Utility(U)"]
[87166,"5571000000-E","** TAPPING SLEEVE & VALVE,\"","Each",1515,"Utility(U)"]
[87167,"5571400000-E","4 TAPPING SLEEVE & VALVE,\"","Each",1515,"Utility(U)"]
[87168,"5571600000-E","6 TAPPING SLEEVE & VALVE,\"","Each",1515,"Utility(U)"]
[87169,"5571800000-E","8 TAPPING SLEEVE & VALVE,\"","Each",1515,"Utility(U)"]
[87170,"5572000000-E","10 TAPPING SLEEVE & VALVE,\"","Each",1515,"Utility(U)"]
[87171,"5572200000-E","12 TAPPING SLEEVE & VALVE,\"","Each",1515,"Utility(U)"]
[87172,"5572600000-E","16 TAPPING SLEEVE & VALVE,\"","Each",1515,"Utility(U)"]
[87173,"5573000000-E","20 TAPPING SLEEVE & VALVE,\"","Each",1515,"Utility(U)"]
[87174,"5573400000-E","24 TAPPING SLEEVE & VALVE,\"","Each",1515,"Utility(U)"]
[87175,"5574000000-E","30 TAPPING SLEEVE & VALVE,\"","Each",1515,"Utility(U)"]
[87176,"5588000000-E","* AIR RELEASE VALVE,\"","Each",1515,"Utility(U)"]
[87177,"5589100000-E","1 AIR RELEASE VALVE,\"","Each",1515,"Utility(U)"]
[87178,"5589200000-E","2 AIR RELEASE VALVE,\"","Each",1515,"Utility(U)"]
[87179,"5589300000-E","3 AIR RELEASE VALVE,\"","Each",1515,"Utility(U)"]
[87180,"5589400000-E","4 AIR RELEASE VALVE,\"","Each",1515,"Utility(U)"]
[87181,"5589600000-E","6 AIR RELEASE VALVE,\"","Each",1515,"Utility(U)"]
[87182,"5589800000-E","8 AIR RELEASE VALVE,\"","Each",1515,"Utility(U)"]
[87184,"5606000000-E","2 BLOW OFF,\"","Each",1515,"Utility(U)"]
[87185,"5606400000-E","4 BLOW OFF,\"","Each",1515,"Utility(U)"]
[87186,"5606600000-E","6 BLOW OFF,\"","Each",1515,"Utility(U)"]
[87187,"5606800000-E","8 BLOW OFF,\"","Each",1515,"Utility(U)"]
[87188,"5643000000-E","** WATER METER,\"","Each",1515,"Utility(U)"]
[87189,"5643100000-E","3/4 WATER METER,\"","Each",1515,"Utility(U)"]
[87190,"5643150000-E","1-1/2 WATER METER,\"","Each",1515,"Utility(U)"]
[87191,"5643200000-E","2 WATER METER,\"","Each",1515,"Utility(U)"]
[87192,"5643300000-E","3 WATER METER,\"","Each",1515,"Utility(U)"]
[87193,"5643400000-E","4 WATER METER,\"","Each",1515,"Utility(U)"]
[87194,"5643600000-E","6 WATER METER,\"","Each",1515,"Utility(U)"]
[87195,"5643800000-E","8 WATER METER,\"","Each",1515,"Utility(U)"]
[87200,"5653000000-E","** DCV BACKFLOW PREVENTION   ASSEMBLY,\"","Each",1515,"Utility(U)"]
[87202,"5653200000-E","2 DCV BACKFLOW PREVENTION    ASSEMBLY,\"","Each",1515,"Utility(U)"]
[87204,"5653300000-E","3 DCV BACKFLOW PREVENTION    ASSEMBLY,\"","Each",1515,"Utility(U)"]
[87206,"5653400000-E","4 DCV BACKFLOW PREVENTION    ASSEMBLY,\"","Each",1515,"Utility(U)"]
[87208,"5653600000-E","6 DCV BACKFLOW PREVENTION    ASSEMBLY,\"","Each",1515,"Utility(U)"]
[87210,"5653800000-E","8 DCV BACKFLOW PREVENTION    ASSEMBLY,\"","Each",1515,"Utility(U)"]
[87212,"5653900000-E","10 DCV BACKFLOW PREVENTION   ASSEMBLY,\"","Each",1515,"Utility(U)"]
[87214,"5655000000-E","12 DCV BACKFLOW PREVENTION   ASSEMBLY,\"","Each",1515,"Utility(U)"]
[87745,"5319000000-E","CLASS B CONCRETE FOR ENCASING UTILITY LINES,","Cubic Yards",1505,"Utility(U)"]
[87855,"5656000000-E","** RPZ BACKFLOW PREVENTION   ASSEMBLY,\"","Each",1515,"Utility(U)"]
[87857,"5656200000-E","2 RPZ BACKFLOW PREVENTION    ASSEMBLY,\"","Each",1515,"Utility(U)"]
[87859,"5656300000-E","3 RPZ BACKFLOW PREVENTION    ASSEMBLY,\"","Each",1515,"Utility(U)"]
[87861,"5656400000-E","4 RPZ BACKFLOW PREVENTION    ASSEMBLY,\"","Each",1515,"Utility(U)"]
[87863,"5656600000-E","6 RPZ BACKFLOW PREVENTION    ASSEMBLY,\"","Each",1515,"Utility(U)"]
[87865,"5656800000-E","8 RPZ BACKFLOW PREVENTION    ASSEMBLY,\"","Each",1515,"Utility(U)"]
[87867,"5656900000-E","10 RPZ BACKFLOW PREVENTION   ASSEMBLY,\"","Each",1515,"Utility(U)"]
[87869,"5657000000-E","12 RPZ BACKFLOW PREVENTION   ASSEMBLY,\"","Each",1515,"Utility(U)"]
[87874,"5678000000-E","** LINE STOP,\"","Each",1515,"Utility(U)"]
[87875,"5678200000-E","4 LINE STOP,\"","Each",1515,"Utility(U)"]
[87876,"5678400000-E","6 LINE STOP,\"","Each",1515,"Utility(U)"]
[87877,"5678600000-E","8 LINE STOP,\"","Each",1515,"Utility(U)"]
[87878,"5678800000-E","10 LINE STOP,\"","Each",1515,"Utility(U)"]
[87879,"5679000000-E","12 LINE STOP,\"","Each",1515,"Utility(U)"]
[87880,"5679200000-E","16 LINE STOP,\"","Each",1515,"Utility(U)"]
[87881,"5679400000-E","20 LINE STOP,\"","Each",1515,"Utility(U)"]
[87882,"5679600000-E","24 LINE STOP,\"","Each",1515,"Utility(U)"]
[87883,"5679800000-E","30 LINE STOP,\"","Each",1515,"Utility(U)"]
[87884,"5684000000-E","** LINE STOP WITH BYPASS,\"","Each",1515,"Utility(U)"]
[87885,"5684200000-E","4 LINE STOP WITH BYPASS,\"","Each",1515,"Utility(U)"]
[87886,"5684400000-E","6 LINE STOP WITH BYPASS,\"","Each",1515,"Utility(U)"]
[87887,"5684600000-E","8 LINE STOP WITH BYPASS,\"","Each",1515,"Utility(U)"]
[87888,"5684800000-E","10 LINE STOP WITH BYPASS,\"","Each",1515,"Utility(U)"]
[87889,"5685000000-E","12 LINE STOP WITH BYPASS,\"","Each",1515,"Utility(U)"]
[87890,"5685200000-E","16 LINE STOP WITH BYPASS,\"","Each",1515,"Utility(U)"]
[87891,"5685400000-E","20 LINE STOP WITH BYPASS,\"","Each",1515,"Utility(U)"]
[87892,"5685600000-E","24 LINE STOP WITH BYPASS,\"","Each",1515,"Utility(U)"]
[87893,"5685800000-E","30 LINE STOP WITH BYPASS,\"","Each",1515,"Utility(U)"]
[87894,"5689000000-E","GENERIC UTILITY ITEM,","Each",1515,"Utility(U)"]
[87895,"5691000000-E","** SANITARY GRAVITY SEWER,\"","Linear Feet",1520,"Utility(U)"]
[87896,"5691100000-E","4 SANITARY GRAVITY SEWER,\"","Linear Feet",1520,"Utility(U)"]
[87897,"5691200000-E","6 SANITARY GRAVITY SEWER,\"","Linear Feet",1520,"Utility(U)"]
[87898,"5691300000-E","8 SANITARY GRAVITY SEWER,\"","Linear Feet",1520,"Utility(U)"]
[87899,"5691400000-E","10 SANITARY GRAVITY SEWER,\"","Linear Feet",1520,"Utility(U)"]
[87900,"5691500000-E","12 SANITARY GRAVITY SEWER,\"","Linear Feet",1520,"Utility(U)"]
[87901,"5691600000-E","16 SANITARY GRAVITY SEWER,\"","Linear Feet",1520,"Utility(U)"]
[87902,"5691700000-E","18 SANITARY GRAVITY SEWER,\"","Linear Feet",1520,"Utility(U)"]
[87903,"5691800000-E","20 SANITARY GRAVITY SEWER,\"","Linear Feet",1520,"Utility(U)"]
[87904,"5691900000-E","24 SANITARY GRAVITY SEWER,\"","Linear Feet",1520,"Utility(U)"]
[87905,"5692000000-E","30 SANITARY GRAVITY SEWER,\"","Linear Feet",1520,"Utility(U)"]
[87906,"5709000000-E","** FORCE MAIN SEWER,\"","Linear Feet",1520,"Utility(U)"]
[87907,"5709100000-E","2 FORCE MAIN SEWER,\"","Linear Feet",1520,"Utility(U)"]
[87908,"5709200000-E","4 FORCE MAIN SEWER,\"","Linear Feet",1520,"Utility(U)"]
[87909,"5709300000-E","6 FORCE MAIN SEWER,\"","Linear Feet",1520,"Utility(U)"]
[87910,"5709400000-E","8 FORCE MAIN SEWER,\"","Linear Feet",1520,"Utility(U)"]
[87911,"5709500000-E","10 FORCE MAIN SEWER,\"","Linear Feet",1520,"Utility(U)"]
[87912,"5709600000-E","12 FORCE MAIN SEWER,\"","Linear Feet",1520,"Utility(U)"]
[87913,"5709700000-E","16 FORCE MAIN SEWER,\"","Linear Feet",1520,"Utility(U)"]
[87914,"5709800000-E","20 FORCE MAIN SEWER,\"","Linear Feet",1520,"Utility(U)"]
[87915,"5709900000-E","24 FORCE MAIN SEWER,\"","Linear Feet",1520,"Utility(U)"]
[87917,"5768000000-N","SANITARY SEWER CLEAN-OUT,","Each",1520,"Utility(U)"]
[87918,"5771000000-E","GENERIC UTILITY ITEM,","Linear Feet",1520,"Utility(U)"]
[87920,"5773000000-N","UTILITY VAULT,","Each",9000,"Utility(U)"]
[87921,"5774000000-E","**' DIA UTILITY MANHOLE,","Each",1525,"Utility(U)"]
[87922,"5775000000-E","4' DIA UTILITY MANHOLE,","Each",1525,"Utility(U)"]
[87923,"5776000000-E","5' DIA UTILITY MANHOLE,","Each",1525,"Utility(U)"]
[87924,"5777000000-E","6' DIA UTILITY MANHOLE,","Each",1525,"Utility(U)"]
[87925,"5778000000-E","8' DIA UTILITY MANHOLE,","Each",1525,"Utility(U)"]
[87926,"5780000000-E","UTILITY MANHOLE WALL **' DIA,","Linear Feet",1525,"Utility(U)"]
[87927,"5781000000-E","UTILITY MANHOLE WALL 4' DIA,","Linear Feet",1525,"Utility(U)"]
[87928,"5782000000-E","UTILITY MANHOLE WALL 5' DIA,","Linear Feet",1525,"Utility(U)"]
[87929,"5783000000-E","UTILITY MANHOLE WALL 6' DIA,","Linear Feet",1525,"Utility(U)"]
[87930,"5784000000-E","UTILITY MANHOLE WALL 8' DIA,","Linear Feet",1525,"Utility(U)"]
[87950,"5835000000-E","** ENCASEMENT PIPE,\"","Linear Feet",1540,"Utility(U)"]
[87951,"5835400000-E","6 ENCASEMENT PIPE,\"","Linear Feet",1540,"Utility(U)"]
[87952,"5835600000-E","12 ENCASEMENT PIPE,\"","Linear Feet",1540,"Utility(U)"]
[87953,"5835700000-E","16 ENCASEMENT PIPE,\"","Linear Feet",1540,"Utility(U)"]
[87954,"5835800000-E","18 ENCASEMENT PIPE,\"","Linear Feet",1540,"Utility(U)"]
[87955,"5835900000-E","20 ENCASEMENT PIPE,\"","Linear Feet",1540,"Utility(U)"]
[87956,"5836000000-E","24 ENCASEMENT PIPE,\"","Linear Feet",1540,"Utility(U)"]
[87957,"5836200000-E","30 ENCASEMENT PIPE,\"","Linear Feet",1540,"Utility(U)"]
[87958,"5836400000-E","36 ENCASEMENT PIPE,\"","Linear Feet",1540,"Utility(U)"]
[87990,"5875000000-N","CONCRETE PIERS,","Each",9000,"Utility(U)"]
[87992,"5876000000-N","STEEL PILE PIERS,","Each",9000,"Utility(U)"]
[87994,"5877000000-N","SANITARY SEWER PUMP STATION,","Lump Sum",9000,"Utility(U)"]
[87996,"5878000000-N","WATER PUMP STATION,","Lump Sum",9000,"Utility(U)"]
[87997,"5879000000-E","** GAS LINE,\"","Linear Feet",9000,"Utility(U)"]
[87998,"5879200000-E","2 GAS LINE,\"","Linear Feet",9000,"Utility(U)"]
[87999,"5879400000-E","4 GAS LINE,\"","Linear Feet",9000,"Utility(U)"]
[88000,"5879600000-E","6 GAS LINE,\"","Linear Feet",9000,"Utility(U)"]
[88001,"5879800000-E","8 GAS LINE,\"","Linear Feet",9000,"Utility(U)"]
[88002,"5879900000-E","10 GAS LINE,\"","Linear Feet",9000,"Utility(U)"]
[88003,"5880000000-E","** GAS VALVE,\"","Each",9000,"Utility(U)"]
[88004,"5880200000-E","2 GAS VALVE,\"","Each",9000,"Utility(U)"]
[88005,"5880400000-E","4 GAS VALVE,\"","Each",9000,"Utility(U)"]
[88006,"5880600000-E","6 GAS VALVE,\"","Each",9000,"Utility(U)"]
[88007,"5880800000-E","8 GAS VALVE,\"","Each",9000,"Utility(U)"]
[88008,"5880900000-E","10 GAS VALVE,\"","Each",9000,"Utility(U)"]
[88010,"5882000000-N","GENERIC UTILITY ITEM,","Each",9000,"Utility(U)"]
[88011,"5888000000-E","GENERIC UTILITY ITEM,","Linear Feet",9000,"Utility(U)"]
[88012,"5889000000-E","GENERIC UTILITY ITEM,","Linear Feet",1510,"Utility(U)"]
[88014,"5890000000-N","GENERIC UTILITY ITEM,","Each",1510,"Utility(U)"]
[88015,"5894000000-E","GENERIC UTILITY ITEM,","Cubic Yards",9000,"Utility(U)"]
[88016,"5900000000-E","GENERIC UTILITY ITEM,","Tons",9000,"Utility(U)"]
[88017,"5906000000-E","GENERIC UTILITY ITEM,","Pounds",9000,"Utility(U)"]
[88019,"5912000000-N","GENERIC UTILITY ITEM,","Lump Sum",9000,"Utility(U)"]
[88021,"5918000000-N","GENERIC UTILITY ITEM,","Hours",9000,"Utility(U)"]
[88742,"5769000000-E","DUCTILE IRON SEWER PIPE       FITTINGS,","Pounds",1520,"Utility(U)"]
[88743,"5329000000-E","DUCTILE IRON WATER PIPE       FITTINGS,","Pounds",1510,"Utility(U)"]
[89395,"5666000000-N","FIRE HYDRANT,","Each",1515,"Utility(U)"]
[89396,"5673000000-E","FIRE HYDRANT LEG,","Linear Feet",1515,"Utility(U)"]
[89397,"5686000000-E","** WATER SERVICE LINE,\"","Linear Feet",1515,"Utility(U)"]
[89398,"5686500000-E","WATER SERVICE LINE,","Linear Feet",1515,"Utility(U)"]
[89399,"5768500000-E","SEWER SERVICE LINE,","Linear Feet",1520,"Utility(U)"]
[89400,"5872500000-E","BORE AND JACK OF **,\"","Linear Feet",1550,"Utility(U)"]
[89401,"5872600000-E","DIRECTIONAL DRILLING OF **,\"","Linear Feet",1550,"Utility(U)"]
[87368,"3980000000-E","GENERIC WALL ITEM,","Cubic Yards",9000,"Walls(W)"]
[87370,"3982000000-N","GENERIC WALL ITEM,","Lump Sum",9000,"Walls(W)"]
[87371,"3984000000-E","GENERIC WALL ITEM,","Square Feet",9000,"Walls(W)"]
[87372,"3988000000-E","GENERIC WALL ITEM,","Tons",9000,"Walls(W)"]
[87373,"3990000000-E","GENERIC WALL ITEM,","Linear Feet",9000,"Walls(W)"]
[87375,"3992000000-N","GENERIC WALL ITEM,","Each",9000,"Walls(W)"]
[88468,"8203000000-E","CLASS A CONCRETE (RETAINING   WALL),","Cubic Yards",420,"Walls(W)"]
[88477,"8252000000-E","REINFORCING STEEL (RETAINING  WALL),","Pounds",425,"Walls(W)"]
[88502,"8378000000-E","HP12X53 STEEL PILES (RETAININGWALL),","Linear Feet",450,"Walls(W)"]
[88515,"8430000000-E","SHEET PILE RETAINING WALLS,","Square Feet",452,"Walls(W)"]
[88581,"8801000000-E","MSE RETAINING WALL NO ****,","Square Feet",9000,"Walls(W)"]
[88582,"8802010000-E","SOIL NAIL RETAINING WALLS,","Square Feet",9000,"Walls(W)"]
[88583,"8802012000-E","PILE PANEL RETAINING WALLS,","Square Feet",9000,"Walls(W)"]
[88584,"8802014000-E","SOLDIER PILE RETAINING WALLS,","Square Feet",9000,"Walls(W)"]
[88589,"8802016000-E","ANCHORED RETAINING WALLS,","Square Feet",9000,"Walls(W)"]
[88590,"8802018000-E","CANTILEVER CONCRETE RETAINING WALLS,","Square Feet",9000,"Walls(W)"]
[88591,"8802030000-E","SEGMENTAL GRAVITY RETAINING   WALLS,","Square Feet",454,"Walls(W)"]
[88592,"8802031000-E","PRECAST GRAVITY RETAINING     WALLS,","Square Feet",455,"Walls(W)"]
[88604,"8832000000-N","GENERIC RETAINING WALL ITEM,","Lump Sum",9000,"Walls(W)"]
[88606,"8834000000-N","GENERIC RETAINING WALL ITEM,","Each",9000,"Walls(W)"]
[88607,"8839000000-E","GENERIC RETAINING WALL ITEM,","Linear Feet",9000,"Walls(W)"]
[88608,"8846000000-E","GENERIC RETAINING WALL ITEM,","Tons",9000,"Walls(W)"]
[88609,"8847000000-E","GENERIC RETAINING WALL ITEM,","Square Feet",9000,"Walls(W)"]
[88610,"8848000000-E","GENERIC RETAINING WALL ITEM,","Square Yards",9000,"Walls(W)"]
[88611,"8853000000-E","GENERIC RETAINING WALL ITEM,","Cubic Yards",9000,"Walls(W)"]
[88717,"8802040000-E","CIP GRAVITY RETAINING WALLS,","Square Feet",453,"Walls(W)"]

{"sheet":"Form SPA-1DB","index":1,"n_rows":43,"n_cols":8,"rows_kept":43,"cut":false,"hidden":false,"merged":[[38,2,38,3],[39,1,39,3],[9,1,9,2],[9,3,9,6],[34,2,34,3],[35,2,35,3],[36,2,36,3],[37,2,37,3],[15,2,15,3],[16,2,16,3],[17,2,17,3],[18,2,18,3],[19,2,19,3],[20,2,20,3],[1,2,1,3],[2,2,2,3],[3,2,3,3],[4,2,4,3],[33,2,33,3],[28,2,28,3],[29,2,29,3],[30,2,30,3],[31,2,31,3],[32,2,32,3],[23,2,23,3],[24,2,24,3],[25,2,25,3],[26,2,26,3],[27,2,27,3],[13,2,14,3],[21,2,21,3],[22,2,22,3],[13,1,14,1],[13,4,14,4],[6,1,6,7],[13,5,14,5],[11,1,11,7],[13,6,14,6],[8,1,8,7],[43,6,43,7],[40,6,41,7],[39,4,39,7],[42,4,42,7],[40,2,40,3],[41,2,41,3],[42,1,42,3],[43,1,43,3]]}
[null,null,null,null,null,null,null,"Form SPA-1 DB"]
[null,"Contract Number",null,null,null,null,null,"Revised 10-24-2023"]
[null,"TIP Number",null,null,null,null,null,"Page ____ of _____"]
[null,"Standard Specifications Year"]
[null,"County and Route"]
[]
[null,"Work Items Eligible for Steel Price Adjustment"]
[]
[null,"Must be supplied with Price Proposal for Department Participation"]
[null,"DATE FOR RECEIPT OF PRICE PROPOSAL :"]
[]
[null,"Instructions: This form shall be completed in accordance with the Design-Build Steel Price Adjustment Project Special Provision found elsewhere in this RFP.  If you choose to have Steel Price Adjustments applied to any of the items listed below, write the word “Yes” in the “Option” column corresponding to the item.  The form must be signed, dated, and submitted with the Price Proposal for Department Participation."]
[]
[null,"Work Item Number","Item Number and Description",null,"Trns*Port Item Number","Long Description ","Category","Option"]
[null,null,null,null,null,null,null,"(Yes or No)"]
[null,null,null,null,null,null,{"$f":"IF(C16=\"\",\"\",IF($C$4=2018,VLOOKUP(C16,'2018 Eligible List'!A:G,4,FALSE),VLOOKUP(C16,'2024 Eligible List'!A:G,4,FALSE)))","v":""}]
[null,null,null,null,null,null,{"$f":"IF(C17=\"\",\"\",IF($C$4=2018,VLOOKUP(C17,'2018 Eligible List'!A:G,4,FALSE),VLOOKUP(C17,'2024 Eligible List'!A:G,4,FALSE)))","v":""}]
[null,null,null,null,null,null,{"$f":"IF(C18=\"\",\"\",IF($C$4=2018,VLOOKUP(C18,'2018 Eligible List'!A:G,4,FALSE),VLOOKUP(C18,'2024 Eligible List'!A:G,4,FALSE)))","v":""}]
[null,null,null,null,null,null,{"$f":"IF(C19=\"\",\"\",IF($C$4=2018,VLOOKUP(C19,'2018 Eligible List'!A:G,4,FALSE),VLOOKUP(C19,'2024 Eligible List'!A:G,4,FALSE)))","v":""}]
[null,null,null,null,null,null,{"$f":"IF(C20=\"\",\"\",IF($C$4=2018,VLOOKUP(C20,'2018 Eligible List'!A:G,4,FALSE),VLOOKUP(C20,'2024 Eligible List'!A:G,4,FALSE)))","v":""}]
[null,null,null,null,null,null,{"$f":"IF(C21=\"\",\"\",IF($C$4=2018,VLOOKUP(C21,'2018 Eligible List'!A:G,4,FALSE),VLOOKUP(C21,'2024 Eligible List'!A:G,4,FALSE)))","v":""}]
[null,null,null,null,null,null,{"$f":"IF(C22=\"\",\"\",IF($C$4=2018,VLOOKUP(C22,'2018 Eligible List'!A:G,4,FALSE),VLOOKUP(C22,'2024 Eligible List'!A:G,4,FALSE)))","v":""}]
[null,null,null,null,null,null,{"$f":"IF(C23=\"\",\"\",IF($C$4=2018,VLOOKUP(C23,'2018 Eligible List'!A:G,4,FALSE),VLOOKUP(C23,'2024 Eligible List'!A:G,4,FALSE)))","v":""}]
[null,null,null,null,null,null,{"$f":"IF(C24=\"\",\"\",IF($C$4=2018,VLOOKUP(C24,'2018 Eligible List'!A:G,4,FALSE),VLOOKUP(C24,'2024 Eligible List'!A:G,4,FALSE)))","v":""}]
[null,null,null,null,null,null,{"$f":"IF(C25=\"\",\"\",IF($C$4=2018,VLOOKUP(C25,'2018 Eligible List'!A:G,4,FALSE),VLOOKUP(C25,'2024 Eligible List'!A:G,4,FALSE)))","v":""}]
[null,null,null,null,null,null,{"$f":"IF(C26=\"\",\"\",IF($C$4=2018,VLOOKUP(C26,'2018 Eligible List'!A:G,4,FALSE),VLOOKUP(C26,'2024 Eligible List'!A:G,4,FALSE)))","v":""}]
[null,null,null,null,null,null,{"$f":"IF(C27=\"\",\"\",IF($C$4=2018,VLOOKUP(C27,'2018 Eligible List'!A:G,4,FALSE),VLOOKUP(C27,'2024 Eligible List'!A:G,4,FALSE)))","v":""}]
[null,null,null,null,null,null,{"$f":"IF(C28=\"\",\"\",IF($C$4=2018,VLOOKUP(C28,'2018 Eligible List'!A:G,4,FALSE),VLOOKUP(C28,'2024 Eligible List'!A:G,4,FALSE)))","v":""}]
[null,null,null,null,null,null,{"$f":"IF(C29=\"\",\"\",IF($C$4=2018,VLOOKUP(C29,'2018 Eligible List'!A:G,4,FALSE),VLOOKUP(C29,'2024 Eligible List'!A:G,4,FALSE)))","v":""}]
[null,null,null,null,null,null,{"$f":"IF(C30=\"\",\"\",IF($C$4=2018,VLOOKUP(C30,'2018 Eligible List'!A:G,4,FALSE),VLOOKUP(C30,'2024 Eligible List'!A:G,4,FALSE)))","v":""}]
[null,null,null,null,null,null,{"$f":"IF(C31=\"\",\"\",IF($C$4=2018,VLOOKUP(C31,'2018 Eligible List'!A:G,4,FALSE),VLOOKUP(C31,'2024 Eligible List'!A:G,4,FALSE)))","v":""}]
[null,null,null,null,null,null,{"$f":"IF(C32=\"\",\"\",IF($C$4=2018,VLOOKUP(C32,'2018 Eligible List'!A:G,4,FALSE),VLOOKUP(C32,'2024 Eligible List'!A:G,4,FALSE)))","v":""}]
[null,null,null,null,null,null,{"$f":"IF(C33=\"\",\"\",IF($C$4=2018,VLOOKUP(C33,'2018 Eligible List'!A:G,4,FALSE),VLOOKUP(C33,'2024 Eligible List'!A:G,4,FALSE)))","v":""}]
[null,null,null,null,null,null,{"$f":"IF(C34=\"\",\"\",IF($C$4=2018,VLOOKUP(C34,'2018 Eligible List'!A:G,4,FALSE),VLOOKUP(C34,'2024 Eligible List'!A:G,4,FALSE)))","v":""}]
[null,null,null,null,null,null,{"$f":"IF(C35=\"\",\"\",IF($C$4=2018,VLOOKUP(C35,'2018 Eligible List'!A:G,4,FALSE),VLOOKUP(C35,'2024 Eligible List'!A:G,4,FALSE)))","v":""}]
[null,null,null,null,null,null,{"$f":"IF(C36=\"\",\"\",IF($C$4=2018,VLOOKUP(C36,'2018 Eligible List'!A:G,4,FALSE),VLOOKUP(C36,'2024 Eligible List'!A:G,4,FALSE)))","v":""}]
[null,null,null,null,null,null,{"$f":"IF(C37=\"\",\"\",IF($C$4=2018,VLOOKUP(C37,'2018 Eligible List'!A:G,4,FALSE),VLOOKUP(C37,'2024 Eligible List'!A:G,4,FALSE)))","v":""}]
[null,null,null,null,null,null,{"$f":"IF(C38=\"\",\"\",IF($C$4=2018,VLOOKUP(C38,'2018 Eligible List'!A:G,4,FALSE),VLOOKUP(C38,'2024 Eligible List'!A:G,4,FALSE)))","v":""}]
[null,null,null,null,null,null,{"$f":"IF(C39=\"\",\"\",IF($C$4=2018,VLOOKUP(C39,'2018 Eligible List'!A:G,4,FALSE),VLOOKUP(C39,'2024 Eligible List'!A:G,4,FALSE)))","v":""}]
[null,"Signature  (Print and Sign Your Name)",null,null,"Firm or Corporation"]
[null,"PRINT NAME"]
[null,"SIGN NAME"]
[null,"Date:",null,null,"Vendor Number"]

{"sheet":"2018 Eligible List","index":2,"n_rows":140,"n_cols":7,"rows_kept":140,"cut":false,"hidden":false,"merged":[]}
["Item Number and Long Description","Item Number","Long Description","Category","Unit of Measure","Section Number","Category Description"]
[{"$f":"CONCATENATE(B2,\" - \",C2)","v":"1735000000-E - REPAIR OF JOINTED CONCRETE    PAVEMENT SLABS,"},"1735000000-E","REPAIR OF JOINTED CONCRETE    PAVEMENT SLABS,",1,"Square Yards",723,"Paving"]
[{"$f":"CONCATENATE(B3,\" - \",C3)","v":"1847000000-E - ***** PORT CEM CONC PAVEMENT,THROUGH LANES (WITH DOWELS),\""},"1847000000-E","***** PORT CEM CONC PAVEMENT,THROUGH LANES (WITH DOWELS),\"",1,"Square Yards",710,"Paving"]
["1858000000-E - ***** PORT CEM CONC PAVEMENT,RAMPS (WITH DOWELS),\"","1858000000-E","***** PORT CEM CONC PAVEMENT,RAMPS (WITH DOWELS),\"",1,"Square Yards",710,"Paving"]
["2703000000-E - CONCRETE BARRIER, TYPE *******,","2703000000-E","CONCRETE BARRIER, TYPE *******,",1,"Linear Feet",854,"Paving"]
["2710000000-N - CONCRETE BARRIER TRANSITION   SECTION,","2710000000-N","CONCRETE BARRIER TRANSITION   SECTION,",1,"Each",854,"Paving"]
["2717000000-E - VARIABLE HEIGHT CONCRETE BAR- RIER, TYPE ************,","2717000000-E","VARIABLE HEIGHT CONCRETE BAR- RIER, TYPE ************,",1,"Linear Feet",854,"Paving"]
["3000000000-N - IMPACT ATTENUATOR UNIT, TYPE  350,","3000000000-N","IMPACT ATTENUATOR UNIT, TYPE  350,",4,"Each",9000,"Guardrail (GR)"]
["3001000000-N - IMPACT ATTENUATOR UNITS, TYPE  TL-3,","3001000000-N","IMPACT ATTENUATOR UNITS, TYPE  TL-3,",4,"Each",9000,"Guardrail (GR)"]
["3001500000-N - IMPACT ATTENUATOR UNITS, TYPE  TL-2,","3001500000-N","IMPACT ATTENUATOR UNITS, TYPE  TL-2,",4,"Each",9000,"Guardrail (GR)"]
["3030000000-E - STEEL BEAM GUARDRAIL,","3030000000-E","STEEL BEAM GUARDRAIL,",4,"Linear Feet",862,"Guardrail (GR)"]
["3045000000-E - STEEL BEAM GUARDRAIL, SHOP    CURVED,","3045000000-E","STEEL BEAM GUARDRAIL, SHOP    CURVED,",4,"Linear Feet",862,"Guardrail (GR)"]
["3060000000-E - STEEL BEAM GUARDRAIL, DOUBLE  FACED,","3060000000-E","STEEL BEAM GUARDRAIL, DOUBLE  FACED,",4,"Linear Feet",862,"Guardrail (GR)"]
["3075000000-E - TRIPLE CORRUGATED STEEL BM    GUARDRAIL,","3075000000-E","TRIPLE CORRUGATED STEEL BM    GUARDRAIL,",4,"Linear Feet",862,"Guardrail (GR)"]
["3090000000-N - TRIPLE CORRUGATED STEEL BEAMGUARDRAIL TERMINAL SECTIONS,","3090000000-N","TRIPLE CORRUGATED STEEL BEAMGUARDRAIL TERMINAL SECTIONS,",4,"Each",862,"Guardrail (GR)"]
["3105000000-N - STEEL BEAM GUARDRAIL TERMINAL SECTIONS,","3105000000-N","STEEL BEAM GUARDRAIL TERMINAL SECTIONS,",4,"Each",862,"Guardrail (GR)"]
["3120000000-E - 20 TUBULAR TRIPLE CORRUGATEDSTEEL BEAM GUARDRAIL,\"","3120000000-E","20 TUBULAR TRIPLE CORRUGATEDSTEEL BEAM GUARDRAIL,\"",4,"Linear Feet",862,"Guardrail (GR)"]
["3135000000-N - W-TR STEEL BEAM GUARDRAILTRANSITION SECTIONS,","3135000000-N","W-TR STEEL BEAM GUARDRAILTRANSITION SECTIONS,",4,"Each",862,"Guardrail (GR)"]
["3140000000-E - 25' CLEAR SPAN GUARDRAIL SEC- TIONS,","3140000000-E","25' CLEAR SPAN GUARDRAIL SEC- TIONS,",4,"Each",862,"Guardrail (GR)"]
["3145000000-E - EXTRA LENGTH GUARDRAIL POST   (**' STEEL),","3145000000-E","EXTRA LENGTH GUARDRAIL POST   (**' STEEL),",4,"Each",862,"Guardrail (GR)"]
["3150000000-N - ADDITIONAL GUARDRAIL POSTS,","3150000000-N","ADDITIONAL GUARDRAIL POSTS,",4,"Each",862,"Guardrail (GR)"]
["3165500000-N - GUARDRAIL END UNITS, TYPE     ************,","3165500000-N","GUARDRAIL END UNITS, TYPE     ************,",4,"Each",862,"Guardrail (GR)"]
["3195000000-N - GUARDRAIL END UNITS, TYPE     AT-1,","3195000000-N","GUARDRAIL END UNITS, TYPE     AT-1,",4,"Each",863,"Guardrail (GR)"]
["3210000000-N - GUARDRAIL END UNITS, TYPE     CAT-1,","3210000000-N","GUARDRAIL END UNITS, TYPE     CAT-1,",4,"Each",862,"Guardrail (GR)"]
["3215000000-N - GUARDRAIL ANCHOR UNITS, TYPE  III,","3215000000-N","GUARDRAIL ANCHOR UNITS, TYPE  III,",4,"Each",9000,"Guardrail (GR)"]
["3287000000-N - GUARDRAIL END UNITS, TYPE TL-3,","3287000000-N","GUARDRAIL END UNITS, TYPE TL-3,",4,"Each",9000,"Guardrail (GR)"]
["3288000000-N - GUARDRAIL END UNITS, TYPE TL-2,","3288000000-N","GUARDRAIL END UNITS, TYPE TL-2,",4,"Each",9000,"Guardrail (GR)"]
["3289000000-N - GUARDRAIL END UNITS, TYPE     MEDIAN TL-3,","3289000000-N","GUARDRAIL END UNITS, TYPE     MEDIAN TL-3,",4,"Each",9000,"Guardrail (GR)"]
["3317000000-N - GUARDRAIL ANCHOR UNITS, TYPE  B-77,","3317000000-N","GUARDRAIL ANCHOR UNITS, TYPE  B-77,",4,"Each",9000,"Guardrail (GR)"]
["3319000000-N - GUARDRAIL ANCHOR UNITS, TYPE  B-83,","3319000000-N","GUARDRAIL ANCHOR UNITS, TYPE  B-83,",4,"Each",9000,"Guardrail (GR)"]
["3389200000-E - CABLE GUIDERAIL,","3389200000-E","CABLE GUIDERAIL,",4,"Linear Feet",865,"Guardrail (GR)"]
["3389400000-E - DOUBLE FACED CABLE GUIDERAIL,","3389400000-E","DOUBLE FACED CABLE GUIDERAIL,",4,"Linear Feet",865,"Guardrail (GR)"]
["3389500000-N - ADDITIONAL GUIDERAIL POSTS,","3389500000-N","ADDITIONAL GUIDERAIL POSTS,",4,"Each",865,"Guardrail (GR)"]
["3500000000-E - WOVEN WIRE FENCE, ** FABRIC,\"","3500000000-E","WOVEN WIRE FENCE, ** FABRIC,\"",5,"Linear Feet",866,"Fence(F)"]
["3503000000-E - WOVEN WIRE FENCE, 47 FABRIC,\"","3503000000-E","WOVEN WIRE FENCE, 47 FABRIC,\"",5,"Linear Feet",866,"Fence(F)"]
["3518000000-E - CHAIN LINK FENCE, ** FABRIC  WITH REDWOOD PICKETS,\"","3518000000-E","CHAIN LINK FENCE, ** FABRIC  WITH REDWOOD PICKETS,\"",5,"Linear Feet",9000,"Fence(F)"]
["3521000000-E - VINYL COATED CHAIN LINK FENCE,** FABRIC WITH REDWOOD PIC-KETS,\"","3521000000-E","VINYL COATED CHAIN LINK FENCE,** FABRIC WITH REDWOOD PIC-KETS,\"",5,"Linear Feet",9000,"Fence(F)"]
["3524000000-E - VINYL COATED CHAIN LINK FENCE,** FABRIC,\"","3524000000-E","VINYL COATED CHAIN LINK FENCE,** FABRIC,\"",5,"Linear Feet",9000,"Fence(F)"]
["3527000000-E - CHAIN LINK FENCE, ** FABRIC, GUARDRAIL MOUNTED,\"","3527000000-E","CHAIN LINK FENCE, ** FABRIC, GUARDRAIL MOUNTED,\"",5,"Linear Feet",9000,"Fence(F)"]
["3530000000-E - CHAIN LINK FENCE, ** FABRIC  WITH 1\" MESH,\"","3530000000-E","CHAIN LINK FENCE, ** FABRIC  WITH 1\" MESH,\"",5,"Linear Feet",9000,"Fence(F)"]
["3533000000-E - CHAIN LINK FENCE, ** FABRIC,\"","3533000000-E","CHAIN LINK FENCE, ** FABRIC,\"",5,"Linear Feet",866,"Fence(F)"]
["3536000000-E - CHAIN LINK FENCE, 48 FABRIC,\"","3536000000-E","CHAIN LINK FENCE, 48 FABRIC,\"",5,"Linear Feet",866,"Fence(F)"]
["3539000000-E - METAL LINE POSTS FOR ** CHAINLINK FENCE,\"","3539000000-E","METAL LINE POSTS FOR ** CHAINLINK FENCE,\"",5,"Each",866,"Fence(F)"]
["3542000000-E - METAL LINE POSTS FOR 48 CHAINLINK FENCE,\"","3542000000-E","METAL LINE POSTS FOR 48 CHAINLINK FENCE,\"",5,"Each",866,"Fence(F)"]
["3545000000-E - METAL TERMINAL POSTS FOR **  CHAIN LINK FENCE,\"","3545000000-E","METAL TERMINAL POSTS FOR **  CHAIN LINK FENCE,\"",5,"Each",866,"Fence(F)"]
["3548000000-E - METAL TERMINAL POSTS FOR 48  CHAIN LINK FENCE,\"","3548000000-E","METAL TERMINAL POSTS FOR 48  CHAIN LINK FENCE,\"",5,"Each",866,"Fence(F)"]
["3551000000-E - METAL GATE POSTS FOR ** CHAINLINK FENCE, SINGLE GATE,\"","3551000000-E","METAL GATE POSTS FOR ** CHAINLINK FENCE, SINGLE GATE,\"",5,"Each",866,"Fence(F)"]
["3554000000-E - METAL GATE POSTS FOR ** CHAINLINK FENCE, DOUBLE GATE,\"","3554000000-E","METAL GATE POSTS FOR ** CHAINLINK FENCE, DOUBLE GATE,\"",5,"Each",866,"Fence(F)"]
["4057000000-E - OVERHEAD FOOTING,","4057000000-E","OVERHEAD FOOTING,",1,"Cubic Yards",9000,"Signing(S)"]
["4060000000-E - SUPPORTS, BREAKAWAY STEEL BEAM,","4060000000-E","SUPPORTS, BREAKAWAY STEEL BEAM,",5,"Pounds",903,"Signing(S)"]
["4066000000-E - SUPPORTS, SIMPLE STEEL BEAM,","4066000000-E","SUPPORTS, SIMPLE STEEL BEAM,",5,"Pounds",903,"Signing(S)"]
["4072000000-E - SUPPORTS, 3-LB STEEL U-CHANNEL,","4072000000-E","SUPPORTS, 3-LB STEEL U-CHANNEL,",5,"Linear Feet",903,"Signing(S)"]
["4078000000-E - SUPPORTS, 2-LB STEEL U-CHANNEL,","4078000000-E","SUPPORTS, 2-LB STEEL U-CHANNEL,",5,"Each",903,"Signing(S)"]
["4079000000-N - SUPPORTS, BARRIER (SMALL),","4079000000-N","SUPPORTS, BARRIER (SMALL),",5,"Each",903,"Signing(S)"]
["4080000000-N - SUPPORTS, BARRIER (LARGE),","4080000000-N","SUPPORTS, BARRIER (LARGE),",5,"Each",903,"Signing(S)"]
["4080200000-E - SUPPORTS, STEEL SQUARE TUBE,","4080200000-E","SUPPORTS, STEEL SQUARE TUBE,",6,"Linear Feet",903,"Signing(S)"]
["4082100000-N - SUPPORTS, OVERHEAD SIGN STRUC-TURE  AT STA ******,","4082100000-N","SUPPORTS, OVERHEAD SIGN STRUC-TURE  AT STA ******,",6,"Lump Sum",906,"Signing(S)"]
["4082110000-N - SUPPORTS, OVERHEAD DYNAMIC    MESSAGE SIGN STRUCTURE AT STA*******,","4082110000-N","SUPPORTS, OVERHEAD DYNAMIC    MESSAGE SIGN STRUCTURE AT STA*******,",6,"Lump Sum",9000,"Signing(S)"]
["5000000000-E - ***' HIGH MOUNT STANDARD,","5000000000-E","***' HIGH MOUNT STANDARD,",6,"Each",1401,"Lighting"]
["5005000000-E - 80' HIGH MOUNT STANDARD,","5005000000-E","80' HIGH MOUNT STANDARD,",6,"Each",1401,"Lighting"]
["5010000000-E - 100' HIGH MOUNT STANDARD,","5010000000-E","100' HIGH MOUNT STANDARD,",6,"Each",1401,"Lighting"]
["5015000000-E - 120' HIGH MOUNT STANDARD,","5015000000-E","120' HIGH MOUNT STANDARD,",6,"Each",1401,"Lighting"]
["5035000000-N - LIGHT STANDARDS, TYPE FRPS    ************,","5035000000-N","LIGHT STANDARDS, TYPE FRPS    ************,",6,"Each",1404,"Lighting"]
["5040000000-N - LIGHT STANDARDS, TYPE FRPT    ************,","5040000000-N","LIGHT STANDARDS, TYPE FRPT    ************,",6,"Each",1404,"Lighting"]
["5045000000-N - LIGHT STANDARDS, TYPE MTLS    ************,","5045000000-N","LIGHT STANDARDS, TYPE MTLS    ************,",6,"Each",1404,"Lighting"]
["5050000000-N - LIGHT STANDARDS, TYPE MTLT    ************,","5050000000-N","LIGHT STANDARDS, TYPE MTLT    ************,",6,"Each",1404,"Lighting"]
[{"$f":"CONCATENATE(B67,\" - \",C67)","v":"5055000000-N - LIGHT STANDARDS, TYPE MISC    ************,"},"5055000000-N","LIGHT STANDARDS, TYPE MISC    ************,",6,"Each",1404,"Lighting"]
["5060000000-N - POST TOP STANDARD, TYPE AB    ************,","5060000000-N","POST TOP STANDARD, TYPE AB    ************,",6,"Each",9000,"Lighting"]
["5065000000-N - POST TOP STANDARD, TYPE EB    ************,","5065000000-N","POST TOP STANDARD, TYPE EB    ************,",6,"Each",9000,"Lighting"]
["5835000000-E - ** ENCASEMENT PIPE,\"","5835000000-E","** ENCASEMENT PIPE,\"",2,"Linear Feet",1540,"Utility(U)"]
["5835400000-E - 6 ENCASEMENT PIPE,\"","5835400000-E","6 ENCASEMENT PIPE,\"",2,"Linear Feet",1540,"Utility(U)"]
["5835600000-E - 12 ENCASEMENT PIPE,\"","5835600000-E","12 ENCASEMENT PIPE,\"",2,"Linear Feet",1540,"Utility(U)"]
["5835700000-E - 16 ENCASEMENT PIPE,\"","5835700000-E","16 ENCASEMENT PIPE,\"",2,"Linear Feet",1540,"Utility(U)"]
["5835800000-E - 18 ENCASEMENT PIPE,\"","5835800000-E","18 ENCASEMENT PIPE,\"",2,"Linear Feet",1540,"Utility(U)"]
["5835900000-E - 20 ENCASEMENT PIPE,\"","5835900000-E","20 ENCASEMENT PIPE,\"",2,"Linear Feet",1540,"Utility(U)"]
["5836000000-E - 24 ENCASEMENT PIPE,\"","5836000000-E","24 ENCASEMENT PIPE,\"",2,"Linear Feet",1540,"Utility(U)"]
["5836200000-E - 30 ENCASEMENT PIPE,\"","5836200000-E","30 ENCASEMENT PIPE,\"",2,"Linear Feet",1540,"Utility(U)"]
["5836400000-E - 36 ENCASEMENT PIPE,\"","5836400000-E","36 ENCASEMENT PIPE,\"",2,"Linear Feet",1540,"Utility(U)"]
["7576000000-N - METAL STRAIN SIGNAL POLE,","7576000000-N","METAL STRAIN SIGNAL POLE,",6,"Each",9000,"Signals(Z)"]
["7588000000-N - METAL POLE WITH SINGLE MAST   ARM,","7588000000-N","METAL POLE WITH SINGLE MAST   ARM,",6,"Each",9000,"Signals(Z)"]
["7590000000-N - METAL POLE WITH DUAL MAST ARM,","7590000000-N","METAL POLE WITH DUAL MAST ARM,",6,"Each",9000,"Signals(Z)"]
["8063000000-N - PRECAST REINFORCED CONC BOX   CULVERT AT STA ************,","8063000000-N","PRECAST REINFORCED CONC BOX   CULVERT AT STA ************,",1,"Lump Sum",9000,"Culvert(C)"]
["8111000000-E - PERMANENT STEEL CASINGS FOR **'-**\" DIA DRILLED PIER","8111000000-E","PERMANENT STEEL CASINGS FOR **'-**\" DIA DRILLED PIER",2,"Linear Feet",411,"Bridge(B)"]
["8111200000-E - PERMANENT STEEL CASINGS FOR 3'-0\" DIA DRILLED PIER","8111200000-E","PERMANENT STEEL CASINGS FOR 3'-0\" DIA DRILLED PIER",2,"Linear Feet",411,"Bridge(B)"]
["8111400000-E - PERMANENT STEEL CASINGS FOR 3'-6\" DIA DRILLED PIER","8111400000-E","PERMANENT STEEL CASINGS FOR 3'-6\" DIA DRILLED PIER",2,"Linear Feet",411,"Bridge(B)"]
["8111600000-E - PERMANENT STEEL CASINGS FOR 4'-0\" DIA DRILLED PIER","8111600000-E","PERMANENT STEEL CASINGS FOR 4'-0\" DIA DRILLED PIER",2,"Linear Feet",411,"Bridge(B)"]
["8147000000-E - REINFORCED CONCRETE DECK SLAB,","8147000000-E","REINFORCED CONCRETE DECK SLAB,",1,"Square Feet",420,"Bridge(B)"]
["8154000000-E - REINFORCED CONCRETE DECK SLAB (SAND LIGHTWEIGHT CONC),","8154000000-E","REINFORCED CONCRETE DECK SLAB (SAND LIGHTWEIGHT CONC),",1,"Square Feet",420,"Bridge(B)"]
["8210000000-N - BRIDGE APPROACH SLABS, STATION************,","8210000000-N","BRIDGE APPROACH SLABS, STATION************,",1,"Lump Sum",422,"Bridge(B)"]
["8217000000-E - REINFORCING STEEL (BRIDGE),","8217000000-E","REINFORCING STEEL (BRIDGE),",1,"Pounds",425,"Bridge(B)"]
["8224000000-E - EPOXY COATED REINFORCING STEEL(BRIDGE),","8224000000-E","EPOXY COATED REINFORCING STEEL(BRIDGE),",1,"Pounds",425,"Bridge(B)"]
["8226000000-E - EPOXY COATED SPIRAL COLUMN RE-INFORCING STEEL (BRIDGE),","8226000000-E","EPOXY COATED SPIRAL COLUMN RE-INFORCING STEEL (BRIDGE),",1,"Pounds",425,"Bridge(B)"]
["8238000000-E - SPIRAL COLUMN REINFORCING     STEEL (BRIDGE),","8238000000-E","SPIRAL COLUMN REINFORCING     STEEL (BRIDGE),",1,"Pounds",425,"Bridge(B)"]
["8245000000-E - REINFORCING STEEL (CULVERT),","8245000000-E","REINFORCING STEEL (CULVERT),",1,"Pounds",425,"Culvert(C)"]
["8248000000-E - EPOXY COATED REINFORCING STEEL(CULVERT),","8248000000-E","EPOXY COATED REINFORCING STEEL(CULVERT),",1,"Pounds",425,"Culvert(C)"]
["8252000000-E - REINFORCING STEEL (RETAINING  WALL),","8252000000-E","REINFORCING STEEL (RETAINING  WALL),",1,"Pounds",425,"Walls(W)"]
["8256000000-E - TYPE III PRESRESSED CONCRETE  DECK GIRDER,","8256000000-E","TYPE III PRESRESSED CONCRETE  DECK GIRDER,",7,"Linear Feet",9000,"Bridge(B)"]
["8259000000-E - 36 PRESTRESSED CONCRETE GIR- DERS,\"","8259000000-E","36 PRESTRESSED CONCRETE GIR- DERS,\"",7,"Linear Feet",430,"Bridge(B)"]
["8262000000-E - 45 PRESTRESSED CONCRETE GIR- DERS,\"","8262000000-E","45 PRESTRESSED CONCRETE GIR- DERS,\"",7,"Linear Feet",430,"Bridge(B)"]
["8265000000-E - 54 PRESTRESSED CONCRETE GIR- DERS,\"","8265000000-E","54 PRESTRESSED CONCRETE GIR- DERS,\"",7,"Linear Feet",430,"Bridge(B)"]
["8268000000-E - 63 PRESTRESSED CONCRETE GIR- DERS,\"","8268000000-E","63 PRESTRESSED CONCRETE GIR- DERS,\"",7,"Linear Feet",430,"Bridge(B)"]
["8271000000-E - 72 PRESTRESSED CONCRETE GIR- DERS,\"","8271000000-E","72 PRESTRESSED CONCRETE GIR- DERS,\"",7,"Linear Feet",430,"Bridge(B)"]
["8274000000-E - MODIFIED 63 PRESTRESSED CONC GIRDERS,\"","8274000000-E","MODIFIED 63 PRESTRESSED CONC GIRDERS,\"",7,"Linear Feet",430,"Bridge(B)"]
["8277000000-E - MODIFIED 72 PRESTRESSED CONC GIRDERS,\"","8277000000-E","MODIFIED 72 PRESTRESSED CONC GIRDERS,\"",7,"Linear Feet",430,"Bridge(B)"]
["8280000000-E - APPROX ........ LBS STRUCTURALSTEEL,","8280000000-E","APPROX ........ LBS STRUCTURALSTEEL,",2,"Lump Sum",440,"Bridge(B)"]
["8329000000-E - 12 PRESTRESSED CONCRETE PILES,\"","8329000000-E","12 PRESTRESSED CONCRETE PILES,\"",7,"Linear Feet",450,"Bridge(B)"]
["8333000000-E - 16 PRESTRESSED CONCRETE PILES,\"","8333000000-E","16 PRESTRESSED CONCRETE PILES,\"",7,"Linear Feet",450,"Bridge(B)"]
["8336000000-E - 20 PRESTRESSED CONCRETE PILES,\"","8336000000-E","20 PRESTRESSED CONCRETE PILES,\"",7,"Linear Feet",450,"Bridge(B)"]
["8343000000-E - 22 PRESTRESSED CONCRETE PILES,\"","8343000000-E","22 PRESTRESSED CONCRETE PILES,\"",7,"Linear Feet",450,"Bridge(B)"]
["8350000000-E - 24 PRESTRESSED CONCRETE PILES,\"","8350000000-E","24 PRESTRESSED CONCRETE PILES,\"",7,"Linear Feet",450,"Bridge(B)"]
["8353000000-E - 30 PRESTRESSED CONCRETE PILES,\"","8353000000-E","30 PRESTRESSED CONCRETE PILES,\"",7,"Linear Feet",450,"Bridge(B)"]
["8355000000-E - HP ***X*** STEEL PILES,","8355000000-E","HP ***X*** STEEL PILES,",3,"Linear Feet",450,"Bridge(B)"]
["8356000000-E - HP**X** GALVANIZED STEEL PILES,","8356000000-E","HP**X** GALVANIZED STEEL PILES,",3,"Linear Feet",450,"Bridge(B)"]
["8357000000-E - HP10X42 STEEL PILES,","8357000000-E","HP10X42 STEEL PILES,",3,"Linear Feet",450,"Bridge(B)"]
["8364000000-E - HP12X53 STEEL PILES,","8364000000-E","HP12X53 STEEL PILES,",3,"Linear Feet",450,"Bridge(B)"]
["8365000000-E - HP12X53 GALVANIZED STEEL PILES,","8365000000-E","HP12X53 GALVANIZED STEEL PILES,",3,"Linear Feet",450,"Bridge(B)"]
["8378000000-E - HP12X53 STEEL PILES (RETAININGWALL),","8378000000-E","HP12X53 STEEL PILES (RETAININGWALL),",3,"Linear Feet",450,"Walls(W)"]
["8384000000-E - HP14X73 STEEL PILES,","8384000000-E","HP14X73 STEEL PILES,",3,"Linear Feet",450,"Bridge(B)"]
["8384200000-E - HP14X73 GALVANIZED STEEL PILES,","8384200000-E","HP14X73 GALVANIZED STEEL PILES,",3,"Linear Feet",450,"Bridge(B)"]
["8385000000-E - PP ** X **** STEEL PILES,","8385000000-E","PP ** X **** STEEL PILES,",4,"Linear Feet",450,"Bridge(B)"]
["8385200000-E - PP ** X **** GALVANIZED STEEL PILES,","8385200000-E","PP ** X **** GALVANIZED STEEL PILES,",4,"Linear Feet",450,"Bridge(B)"]
["8386000000-E - PP 18 X 0.50 STEEL PILES,","8386000000-E","PP 18 X 0.50 STEEL PILES,",4,"Linear Feet",450,"Bridge(B)"]
["8387000000-E - PP 18 X 0.50 GALVANIZED STEEL PILES,","8387000000-E","PP 18 X 0.50 GALVANIZED STEEL PILES,",4,"Linear Feet",450,"Bridge(B)"]
["8430000000-E - SHEET PILE RETAINING WALLS,","8430000000-E","SHEET PILE RETAINING WALLS,",3,"Square Feet",452,"Walls(W)"]
["8483000000-E - 32 ALASKA RAIL,\"","8483000000-E","32 ALASKA RAIL,\"",4,"Linear Feet",460,"Bridge(B)"]
["8484000000-E - 42 OREGON RAIL,\"","8484000000-E","42 OREGON RAIL,\"",4,"Linear Feet",460,"Bridge(B)"]
["8496000000-E - ***** GALVANIZED STEEL PIPE  RAIL,\"","8496000000-E","***** GALVANIZED STEEL PIPE  RAIL,\"",4,"Linear Feet",460,"Bridge(B)"]
["8503000000-E - CONCRETE BARRIER RAIL,","8503000000-E","CONCRETE BARRIER RAIL,",1,"Linear Feet",460,"Bridge(B)"]
["8504000000-E - CONCRETE BARRIER RAIL WITH    MOMENT SLAB,","8504000000-E","CONCRETE BARRIER RAIL WITH    MOMENT SLAB,",1,"Linear Feet",460,"Bridge(B)"]
["8505000000-E - VERTICAL CONCRETE BARRIER RAIL,","8505000000-E","VERTICAL CONCRETE BARRIER RAIL,",1,"Linear Feet",460,"Bridge(B)"]
[{"$f":"CONCATENATE(B131,\" - \",C131)","v":"8510000000-E - CONCRETE MEDIAN BARRIER,"},"8510000000-E","CONCRETE MEDIAN BARRIER,",1,"Linear Feet",460,"Bridge(B)"]
["8752000000-E - CONCRETE BOX BEAMS,","8752000000-E","CONCRETE BOX BEAMS,",7,"Linear Feet",430,"Bridge(B)"]
["8753000000-E - 3'-0 X 2'-3\" PRESTRESSED CONCBOX BEAMS,\"","8753000000-E","3'-0 X 2'-3\" PRESTRESSED CONCBOX BEAMS,\"",7,"Linear Feet",430,"Bridge(B)"]
["8753100000-E - 3'-0 X 2'-9\" PRESTRESSED CONCBOX BEAMS,\"","8753100000-E","3'-0 X 2'-9\" PRESTRESSED CONCBOX BEAMS,\"",7,"Linear Feet",430,"Bridge(B)"]
["8753200000-E - 3'-0 X 3'-3\" PRESTRESSED CONCBOX BEAMS,\"","8753200000-E","3'-0 X 3'-3\" PRESTRESSED CONCBOX BEAMS,\"",7,"Linear Feet",430,"Bridge(B)"]
["8755000000-E - 3'-0 X 1'-6\" PRESTRESSED CONCCORED SLABS,\"","8755000000-E","3'-0 X 1'-6\" PRESTRESSED CONCCORED SLABS,\"",7,"Linear Feet",430,"Bridge(B)"]
["8762000000-E - 3'-0 X 1'-9\" PRESTRESSED CONCCORED SLABS,\"","8762000000-E","3'-0 X 1'-9\" PRESTRESSED CONCCORED SLABS,\"",7,"Linear Feet",430,"Bridge(B)"]
["8763000000-E - 3'-0 X 2'-0\" PRESTRESSED CONCCORED SLABS,\"","8763000000-E","3'-0 X 2'-0\" PRESTRESSED CONCCORED SLABS,\"",7,"Linear Feet",430,"Bridge(B)"]
["8802012000-E - PILE PANEL RETAINING WALLS,","8802012000-E","PILE PANEL RETAINING WALLS,",3,"Square Feet",9000,"Walls(W)"]
["8802014000-E - SOLDIER PILE RETAINING WALLS,","8802014000-E","SOLDIER PILE RETAINING WALLS,",3,"Square Feet",9000,"Walls(W)"]

{"sheet":"2024 Eligible List","index":3,"n_rows":215,"n_cols":7,"rows_kept":215,"cut":false,"hidden":false,"merged":[]}
["Item Number and Long Description","Item Number","Long Description","Category","Unit of Measure","Section Number","Category Description"]
[{"$f":"CONCATENATE(B2,\" - \",C2)","v":"1735000000-E - REPAIR OF JOINTED CONCRETE PAVEMENT SLABS"},"1735000000-E","REPAIR OF JOINTED CONCRETE PAVEMENT SLABS",1,"Square Yards",723,"Paving"]
[{"$f":"CONCATENATE(B3,\" - \",C3)","v":"1847000000-E - *****\" PORT CEM CONC PAVEMENT, THROUGH LANES (WITH DOWELS)"},"1847000000-E","*****\" PORT CEM CONC PAVEMENT, THROUGH LANES (WITH DOWELS)",1,"Square Yards",710,"Paving"]
[{"$f":"CONCATENATE(B4,\" - \",C4)","v":"1858000000-E - *****\" PORT CEM CONC PAVEMENT, RAMPS (WITH DOWELS)"},"1858000000-E","*****\" PORT CEM CONC PAVEMENT, RAMPS (WITH DOWELS)",1,"Square Yards",710,"Paving"]
["2703000000-E - CONCRETE BARRIER, TYPE *******","2703000000-E","CONCRETE BARRIER, TYPE *******",1,"Linear Feet",854,"Paving"]
["2710000000-N - CONCRETE BARRIER TRANSITION SECTION","2710000000-N","CONCRETE BARRIER TRANSITION SECTION",1,"Each",854,"Paving"]
["2717000000-E - VARIABLE HEIGHT CONCRETE BARRIER,\nTYPE ************","2717000000-E","VARIABLE HEIGHT CONCRETE BARRIER,\nTYPE ************",1,"Linear Feet",854,"Paving"]
["3000000000-N - IMPACT ATTENUATOR UNIT, TYPE 350","3000000000-N","IMPACT ATTENUATOR UNIT, TYPE 350",4,"Each",9000,"Guardrail (GR)"]
["3001000000-N - IMPACT ATTENUATOR UNITS, TYPE TL-3","3001000000-N","IMPACT ATTENUATOR UNITS, TYPE TL-3",4,"Each",9000,"Guardrail (GR)"]
["3001500000-N - IMPACT ATTENUATOR UNITS, TYPE TL-2","3001500000-N","IMPACT ATTENUATOR UNITS, TYPE TL-2",4,"Each",9000,"Guardrail (GR)"]
["3030000000-E - STEEL BEAM GUARDRAIL","3030000000-E","STEEL BEAM GUARDRAIL",4,"Linear Feet",862,"Guardrail (GR)"]
["3045000000-E - STEEL BEAM GUARDRAIL, SHOP CURVED","3045000000-E","STEEL BEAM GUARDRAIL, SHOP CURVED",4,"Linear Feet",862,"Guardrail (GR)"]
["3060000000-E - STEEL BEAM GUARDRAIL, DOUBLE FACED","3060000000-E","STEEL BEAM GUARDRAIL, DOUBLE FACED",4,"Linear Feet",862,"Guardrail (GR)"]
["3075000000-E - TRIPLE CORRUGATED STEEL BEAM GUARDRAIL","3075000000-E","TRIPLE CORRUGATED STEEL BEAM GUARDRAIL",4,"Linear Feet",862,"Guardrail (GR)"]
["3090000000-N - TRIPLE CORRUGATED STEEL BEAM GUARDRAIL TERMINAL SECTIONS","3090000000-N","TRIPLE CORRUGATED STEEL BEAM GUARDRAIL TERMINAL SECTIONS",4,"Each",862,"Guardrail (GR)"]
["3105000000-N - STEEL BEAM GUARDRAIL TERMINAL SECTIONS","3105000000-N","STEEL BEAM GUARDRAIL TERMINAL SECTIONS",4,"Each",862,"Guardrail (GR)"]
["3120000000-E - 20\" TUBULAR TRIPLE CORRUGATED STEEL BEAM GUARDRAIL","3120000000-E","20\" TUBULAR TRIPLE CORRUGATED STEEL BEAM GUARDRAIL",4,"Linear Feet",862,"Guardrail (GR)"]
["3135000000-N - W-TR STEEL BEAM GUARDRAIL TRANSITION SECTIONS","3135000000-N","W-TR STEEL BEAM GUARDRAIL TRANSITION SECTIONS",4,"Each",862,"Guardrail (GR)"]
["3140000000-E - 25' CLEAR SPAN GUARDRAIL SECTIONS","3140000000-E","25' CLEAR SPAN GUARDRAIL SECTIONS",4,"Each",862,"Guardrail (GR)"]
["3145000000-E - EXTRA LENGTH GUARDRAIL POST (**' STEEL)","3145000000-E","EXTRA LENGTH GUARDRAIL POST (**' STEEL)",4,"Each",862,"Guardrail (GR)"]
["3150000000-N - ADDITIONAL GUARDRAIL POSTS","3150000000-N","ADDITIONAL GUARDRAIL POSTS",4,"Each",862,"Guardrail (GR)"]
["3165500000-N - GUARDRAIL END UNITS, TYPE ************","3165500000-N","GUARDRAIL END UNITS, TYPE ************",4,"Each",862,"Guardrail (GR)"]
["3195000000-N - GUARDRAIL END UNITS, TYPE AT-1","3195000000-N","GUARDRAIL END UNITS, TYPE AT-1",4,"Each",862,"Guardrail (GR)"]
["3210000000-N - GUARDRAIL END UNITS, TYPE CAT-1","3210000000-N","GUARDRAIL END UNITS, TYPE CAT-1",4,"Each",862,"Guardrail (GR)"]
["3215000000-N - GUARDRAIL ANCHOR UNITS, TYPE III","3215000000-N","GUARDRAIL ANCHOR UNITS, TYPE III",4,"Each",862,"Guardrail (GR)"]
["3287000000-N - GUARDRAIL END UNITS, TYPE TL-3","3287000000-N","GUARDRAIL END UNITS, TYPE TL-3",4,"Each",862,"Guardrail (GR)"]
["3288000000-N - GUARDRAIL END UNITS, TYPE TL-2","3288000000-N","GUARDRAIL END UNITS, TYPE TL-2",4,"Each",862,"Guardrail (GR)"]
["3289000000-N - GUARDRAIL END UNITS, TYPE MEDIAN TL-3","3289000000-N","GUARDRAIL END UNITS, TYPE MEDIAN TL-3",4,"Each",862,"Guardrail (GR)"]
["3317000000-N - GUARDRAIL ANCHOR UNITS, TYPE B-77","3317000000-N","GUARDRAIL ANCHOR UNITS, TYPE B-77",4,"Each",862,"Guardrail (GR)"]
["3319000000-N - GUARDRAIL ANCHOR UNITS, TYPE B-83","3319000000-N","GUARDRAIL ANCHOR UNITS, TYPE B-83",4,"Each",862,"Guardrail (GR)"]
["3389200000-E - CABLE GUIDERAIL","3389200000-E","CABLE GUIDERAIL",4,"Linear Feet",865,"Guardrail (GR)"]
["3389400000-E - DOUBLE FACED CABLE GUIDERAIL","3389400000-E","DOUBLE FACED CABLE GUIDERAIL",4,"Linear Feet",865,"Guardrail (GR)"]
["3389500000-N - ADDITIONAL GUIDERAIL POSTS","3389500000-N","ADDITIONAL GUIDERAIL POSTS",4,"Each",865,"Guardrail (GR)"]
["3500000000-E - WOVEN WIRE FENCE, **\" FABRIC","3500000000-E","WOVEN WIRE FENCE, **\" FABRIC",5,"Linear Feet",866,"Fence(F)"]
["3503000000-E - WOVEN WIRE FENCE, 47\" FABRIC","3503000000-E","WOVEN WIRE FENCE, 47\" FABRIC",5,"Linear Feet",866,"Fence(F)"]
["3518000000-E - CHAIN LINK FENCE, **\" FABRIC WITH REDWOOD PICKETS","3518000000-E","CHAIN LINK FENCE, **\" FABRIC WITH REDWOOD PICKETS",5,"Linear Feet",9000,"Fence(F)"]
["3521000000-E - VINYL COATED CHAIN LINK FENCE, **\" FABRIC WITH REDWOOD PICKETS","3521000000-E","VINYL COATED CHAIN LINK FENCE, **\" FABRIC WITH REDWOOD PICKETS",5,"Linear Feet",9000,"Fence(F)"]
["3524000000-E - VINYL COATED CHAIN LINK FENCE, **\" FABRIC","3524000000-E","VINYL COATED CHAIN LINK FENCE, **\" FABRIC",5,"Linear Feet",9000,"Fence(F)"]
["3527000000-E - CHAIN LINK FENCE, **\" FABRIC, GUARDRAIL MOUNTED","3527000000-E","CHAIN LINK FENCE, **\" FABRIC, GUARDRAIL MOUNTED",5,"Linear Feet",9000,"Fence(F)"]
["3530000000-E - CHAIN LINK FENCE, **\" FABRIC WITH 1\" MESH","3530000000-E","CHAIN LINK FENCE, **\" FABRIC WITH 1\" MESH",5,"Linear Feet",9000,"Fence(F)"]
["3533000000-E - CHAIN LINK FENCE, **\" FABRIC","3533000000-E","CHAIN LINK FENCE, **\" FABRIC",5,"Linear Feet",866,"Fence(F)"]
["3536000000-E - CHAIN LINK FENCE, 48\" FABRIC","3536000000-E","CHAIN LINK FENCE, 48\" FABRIC",5,"Linear Feet",866,"Fence(F)"]
["3539000000-E - METAL LINE POSTS FOR **\" CHAIN LINK FENCE","3539000000-E","METAL LINE POSTS FOR **\" CHAIN LINK FENCE",5,"Each",866,"Fence(F)"]
["3542000000-E - METAL LINE POSTS FOR 48\" CHAIN LINK FENCE","3542000000-E","METAL LINE POSTS FOR 48\" CHAIN LINK FENCE",5,"Each",866,"Fence(F)"]
["3545000000-E - METAL TERMINAL POSTS FOR **\" CHAIN LINK FENCE","3545000000-E","METAL TERMINAL POSTS FOR **\" CHAIN LINK FENCE",5,"Each",866,"Fence(F)"]
["3548000000-E - METAL TERMINAL POSTS FOR 48\" CHAIN LINK FENCE","3548000000-E","METAL TERMINAL POSTS FOR 48\" CHAIN LINK FENCE",5,"Each",866,"Fence(F)"]
["3551000000-E - METAL GATE POSTS FOR **\" CHAIN LINK FENCE, SINGLE GATE","3551000000-E","METAL GATE POSTS FOR **\" CHAIN LINK FENCE, SINGLE GATE",5,"Each",866,"Fence(F)"]
["3554000000-E - METAL GATE POSTS FOR **\" CHAIN LINK FENCE, DOUBLE GATE","3554000000-E","METAL GATE POSTS FOR **\" CHAIN LINK FENCE, DOUBLE GATE",5,"Each",866,"Fence(F)"]
["4057000000-E - OVERHEAD FOOTING","4057000000-E","OVERHEAD FOOTING",1,"Cubic Yards",9000,"Signing(S)"]
["4060000000-E - SUPPORTS, BREAKAWAY STEEL BEAM","4060000000-E","SUPPORTS, BREAKAWAY STEEL BEAM",5,"Pounds",903,"Signing(S)"]
["4066000000-E - SUPPORTS, SIMPLE STEEL BEAM","4066000000-E","SUPPORTS, SIMPLE STEEL BEAM",5,"Pounds",903,"Signing(S)"]
["4072000000-E - SUPPORTS, 3-LB STEEL U-CHANNEL","4072000000-E","SUPPORTS, 3-LB STEEL U-CHANNEL",5,"Linear Feet",903,"Signing(S)"]
["4078000000-E - SUPPORTS, 2-LB STEEL U-CHANNEL","4078000000-E","SUPPORTS, 2-LB STEEL U-CHANNEL",5,"Each",903,"Signing(S)"]
["4079000000-N - SUPPORTS, BARRIER (SMALL)","4079000000-N","SUPPORTS, BARRIER (SMALL)",5,"Each",903,"Signing(S)"]
["4080000000-N - SUPPORTS, BARRIER (LARGE)","4080000000-N","SUPPORTS, BARRIER (LARGE)",5,"Each",903,"Signing(S)"]
["4080200000-E - SUPPORTS, STEEL SQUARE TUBE","4080200000-E","SUPPORTS, STEEL SQUARE TUBE",6,"Linear Feet",903,"Signing(S)"]
["4082110000-N - SUPPORTS, OVERHEAD DYNAMIC MESSAGE SIGN STRUCTURE AT STA\n*******","4082110000-N","SUPPORTS, OVERHEAD DYNAMIC MESSAGE SIGN STRUCTURE AT STA\n*******",6,"Lump Sum",9000,"Signing(S)"]
["4130000000-N - SUPPORTS, OVERHEAD SIGN STRUCTURE ******","4130000000-N","SUPPORTS, OVERHEAD SIGN STRUCTURE ******",6,"Lump Sum",906,"Signing(S)"]
["5000000000-E - ***' HIGH MOUNT STANDARD","5000000000-E","***' HIGH MOUNT STANDARD",6,"Each",1401,"Lighting"]
["5005000000-E - 80' HIGH MOUNT STANDARD","5005000000-E","80' HIGH MOUNT STANDARD",6,"Each",1401,"Lighting"]
["5010000000-E - 100' HIGH MOUNT STANDARD","5010000000-E","100' HIGH MOUNT STANDARD",6,"Each",1401,"Lighting"]
["5015000000-E - 120' HIGH MOUNT STANDARD","5015000000-E","120' HIGH MOUNT STANDARD",6,"Each",1401,"Lighting"]
["5045000000-N - LIGHT STANDARDS, TYPE MTLS\n************","5045000000-N","LIGHT STANDARDS, TYPE MTLS\n************",6,"Each",1404,"Lighting"]
["5050000000-N - LIGHT STANDARDS, TYPE MTLT\n************","5050000000-N","LIGHT STANDARDS, TYPE MTLT\n************",6,"Each",1404,"Lighting"]
["5055000000-N - LIGHT STANDARDS, TYPE MISC\n************","5055000000-N","LIGHT STANDARDS, TYPE MISC\n************",6,"Each",1404,"Lighting"]
["5060000000-N - POST TOP STANDARD, TYPE AB\n************","5060000000-N","POST TOP STANDARD, TYPE AB\n************",6,"Each",9000,"Lighting"]
["5065000000-N - POST TOP STANDARD, TYPE EB\n************","5065000000-N","POST TOP STANDARD, TYPE EB\n************",6,"Each",9000,"Lighting"]
[{"$f":"CONCATENATE(B68,\" - \",C68)","v":"5835000000-E - **\" ENCASEMENT PIPE"},"5835000000-E","**\" ENCASEMENT PIPE",2,"Linear Feet",1540,"Utility(U)"]
["5835400000-E - 6\" ENCASEMENT PIPE","5835400000-E","6\" ENCASEMENT PIPE",2,"Linear Feet",1540,"Utility(U)"]
["5835600000-E - 12\" ENCASEMENT PIPE","5835600000-E","12\" ENCASEMENT PIPE",2,"Linear Feet",1540,"Utility(U)"]
["5835700000-E - 16\" ENCASEMENT PIPE","5835700000-E","16\" ENCASEMENT PIPE",2,"Linear Feet",1540,"Utility(U)"]
["5835800000-E - 18\" ENCASEMENT PIPE","5835800000-E","18\" ENCASEMENT PIPE",2,"Linear Feet",1540,"Utility(U)"]
["5835900000-E - 20\" ENCASEMENT PIPE","5835900000-E","20\" ENCASEMENT PIPE",2,"Linear Feet",1540,"Utility(U)"]
["5836000000-E - 24\" ENCASEMENT PIPE","5836000000-E","24\" ENCASEMENT PIPE",2,"Linear Feet",1540,"Utility(U)"]
["5836200000-E - 30\" ENCASEMENT PIPE","5836200000-E","30\" ENCASEMENT PIPE",2,"Linear Feet",1540,"Utility(U)"]
["5836400000-E - 36\" ENCASEMENT PIPE","5836400000-E","36\" ENCASEMENT PIPE",2,"Linear Feet",1540,"Utility(U)"]
["7576000000-N - METAL STRAIN SIGNAL POLE","7576000000-N","METAL STRAIN SIGNAL POLE",6,"Each",9000,"Signals(Z)"]
["7588000000-N - METAL POLE WITH SINGLE MAST ARM","7588000000-N","METAL POLE WITH SINGLE MAST ARM",6,"Each",9000,"Signals(Z)"]
["7590000000-N - METAL POLE WITH DUAL MAST ARM","7590000000-N","METAL POLE WITH DUAL MAST ARM",6,"Each",9000,"Signals(Z)"]
["8063000000-N - PRECAST REINFORCED CONC BOX\nCULVERT AT STA ************","8063000000-N","PRECAST REINFORCED CONC BOX\nCULVERT AT STA ************",1,"Lump Sum",9000,"Culvert(C)"]
["8111000000-E - PERMANENT STEEL CASING FOR **'-**\" DIA DRILLED PIER","8111000000-E","PERMANENT STEEL CASING FOR **'-**\" DIA DRILLED PIER",2,"Linear Feet",411,"Bridge(B)"]
["8111200000-E - PERMANENT STEEL CASING FOR 3'-0\" DIA DRILLED PIER","8111200000-E","PERMANENT STEEL CASING FOR 3'-0\" DIA DRILLED PIER",2,"Linear Feet",411,"Bridge(B)"]
["8111400000-E - PERMANENT STEEL CASING FOR 3'-6\" DIA DRILLED PIER","8111400000-E","PERMANENT STEEL CASING FOR 3'-6\" DIA DRILLED PIER",2,"Linear Feet",411,"Bridge(B)"]
["8111600000-E - PERMANENT STEEL CASING FOR 4'-0\" DIA DRILLED PIER","8111600000-E","PERMANENT STEEL CASING FOR 4'-0\" DIA DRILLED PIER",2,"Linear Feet",411,"Bridge(B)"]
["8147000000-E - REINFORCED CONCRETE DECK SLAB","8147000000-E","REINFORCED CONCRETE DECK SLAB",1,"Square Feet",420,"Bridge(B)"]
["8154000000-E - REINFORCED CONCRETE DECK SLAB (SAND LIGHTWEIGHT CONCRETE)","8154000000-E","REINFORCED CONCRETE DECK SLAB (SAND LIGHTWEIGHT CONCRETE)",1,"Square Feet",420,"Bridge(B)"]
["8156000000-E - CONCRETE WEARING SURFACE","8156000000-E","CONCRETE WEARING SURFACE",1,"Square Feet",9000,"Bridge(B)"]
["8210000000-N - BRIDGE APPROACH SLABS, STATION\n************","8210000000-N","BRIDGE APPROACH SLABS, STATION\n************",1,"Lump Sum",422,"Bridge(B)"]
["8217000000-E - REINFORCING STEEL (BRIDGE)","8217000000-E","REINFORCING STEEL (BRIDGE)",1,"Pounds",425,"Bridge(B)"]
["8224000000-E - EPOXY COATED REINFORCING STEEL (BRIDGE)","8224000000-E","EPOXY COATED REINFORCING STEEL (BRIDGE)",1,"Pounds",425,"Bridge(B)"]
["8226000000-E - EPOXY COATED SPIRAL COLUMN REINFORCING STEEL (BRIDGE)","8226000000-E","EPOXY COATED SPIRAL COLUMN REINFORCING STEEL (BRIDGE)",1,"Pounds",425,"Bridge(B)"]
["8238000000-E - SPIRAL COLUMN REINFORCING STEEL (BRIDGE)","8238000000-E","SPIRAL COLUMN REINFORCING STEEL (BRIDGE)",1,"Pounds",425,"Bridge(B)"]
["8245000000-E - REINFORCING STEEL (CULVERT)","8245000000-E","REINFORCING STEEL (CULVERT)",1,"Pounds",425,"Culvert(C)"]
["8248000000-E - EPOXY COATED REINFORCING STEEL (CULVERT)","8248000000-E","EPOXY COATED REINFORCING STEEL (CULVERT)",1,"Pounds",425,"Culvert(C)"]
["8252000000-E - REINFORCING STEEL (RETAINING WALL)","8252000000-E","REINFORCING STEEL (RETAINING WALL)",1,"Pounds",425,"Walls(W)"]
["8256000000-E - TYPE III PRESRESSED CONCRETE DECK GIRDER","8256000000-E","TYPE III PRESRESSED CONCRETE DECK GIRDER",7,"Linear Feet",9000,"Bridge(B)"]
["8259000000-E - 36\" PRESTRESSED CONCRETE GIRDERS","8259000000-E","36\" PRESTRESSED CONCRETE GIRDERS",7,"Linear Feet",430,"Bridge(B)"]
["8262000000-E - 45\" PRESTRESSED CONCRETE GIRDERS","8262000000-E","45\" PRESTRESSED CONCRETE GIRDERS",7,"Linear Feet",430,"Bridge(B)"]
["8265000000-E - 54\" PRESTRESSED CONCRETE GIRDERS","8265000000-E","54\" PRESTRESSED CONCRETE GIRDERS",7,"Linear Feet",430,"Bridge(B)"]
["8268000000-E - 63\" PRESTRESSED CONCRETE GIRDERS","8268000000-E","63\" PRESTRESSED CONCRETE GIRDERS",7,"Linear Feet",430,"Bridge(B)"]
["8271000000-E - 72\" PRESTRESSED CONCRETE GIRDERS","8271000000-E","72\" PRESTRESSED CONCRETE GIRDERS",7,"Linear Feet",430,"Bridge(B)"]
["8274000000-E - MODIFIED 63\" PRESTRESSED CONC GIRDERS","8274000000-E","MODIFIED 63\" PRESTRESSED CONC GIRDERS",7,"Linear Feet",430,"Bridge(B)"]
["8277000000-E - MODIFIED 72\" PRESTRESSED CONC GIRDERS","8277000000-E","MODIFIED 72\" PRESTRESSED CONC GIRDERS",7,"Linear Feet",430,"Bridge(B)"]
["8278000000-E - FIB **\" PRESTRESSED CONCRETE GIRDERS","8278000000-E","FIB **\" PRESTRESSED CONCRETE GIRDERS",7,"Linear Feet",430,"Bridge(B)"]
["8280000000-E - APPROX          LBS STRUCTURAL STEEL","8280000000-E","APPROX          LBS STRUCTURAL STEEL",2,"Lump Sum",440,"Bridge(B)"]
["8329000000-E - 12\" PRESTRESSED CONCRETE PILES","8329000000-E","12\" PRESTRESSED CONCRETE PILES",7,"Linear Feet",450,"Bridge(B)"]
["8333000000-E - 16\" PRESTRESSED CONCRETE PILES","8333000000-E","16\" PRESTRESSED CONCRETE PILES",7,"Linear Feet",450,"Bridge(B)"]
["8336000000-E - 20\" PRESTRESSED CONCRETE PILES","8336000000-E","20\" PRESTRESSED CONCRETE PILES",7,"Linear Feet",450,"Bridge(B)"]
["8343000000-E - 22\" PRESTRESSED CONCRETE PILES","8343000000-E","22\" PRESTRESSED CONCRETE PILES",7,"Linear Feet",450,"Bridge(B)"]
["8350000000-E - 24\" PRESTRESSED CONCRETE PILES","8350000000-E","24\" PRESTRESSED CONCRETE PILES",7,"Linear Feet",450,"Bridge(B)"]
["8353000000-E - 30\" PRESTRESSED CONCRETE PILES","8353000000-E","30\" PRESTRESSED CONCRETE PILES",7,"Linear Feet",450,"Bridge(B)"]
["8355000000-E - HP *** X *** STEEL PILES","8355000000-E","HP *** X *** STEEL PILES",3,"Linear Feet",450,"Bridge(B)"]
["8356000000-E - HP ** X ** GALVANIZED STEEL PILES","8356000000-E","HP ** X ** GALVANIZED STEEL PILES",3,"Linear Feet",450,"Bridge(B)"]
["8357000000-E - HP 10 X 42 STEEL PILES","8357000000-E","HP 10 X 42 STEEL PILES",3,"Linear Feet",450,"Bridge(B)"]
["8364000000-E - HP 12 X 53 STEEL PILES","8364000000-E","HP 12 X 53 STEEL PILES",3,"Linear Feet",450,"Bridge(B)"]
["8365000000-E - HP 12 X 53 GALVANIZED STEEL PILES","8365000000-E","HP 12 X 53 GALVANIZED STEEL PILES",3,"Linear Feet",450,"Bridge(B)"]
["8378000000-E - HP 12 X 53 STEEL PILES (RETAINING WALL)","8378000000-E","HP 12 X 53 STEEL PILES (RETAINING WALL)",3,"Linear Feet",450,"Walls(W)"]
["8384000000-E - HP 14 X 73 STEEL PILES","8384000000-E","HP 14 X 73 STEEL PILES",3,"Linear Feet",450,"Bridge(B)"]
["8384200000-E - HP 14 X 73 GALVANIZED STEEL PILES","8384200000-E","HP 14 X 73 GALVANIZED STEEL PILES",3,"Linear Feet",450,"Bridge(B)"]
["8385000000-E - PP ** X **** STEEL PILES","8385000000-E","PP ** X **** STEEL PILES",4,"Linear Feet",450,"Bridge(B)"]
["8385200000-E - PP ** X **** GALVANIZED STEEL PILES","8385200000-E","PP ** X **** GALVANIZED STEEL PILES",4,"Linear Feet",450,"Bridge(B)"]
["8386000000-E - PP 18 X 0.50 STEEL PILES","8386000000-E","PP 18 X 0.50 STEEL PILES",4,"Linear Feet",450,"Bridge(B)"]
["8387000000-E - PP 18 X 0.50 GALVANIZED STEEL PILES","8387000000-E","PP 18 X 0.50 GALVANIZED STEEL PILES",4,"Linear Feet",450,"Bridge(B)"]
["8430000000-E - SHEET PILE RETAINING WALLS","8430000000-E","SHEET PILE RETAINING WALLS",3,"Square Feet",452,"Walls(W)"]
["8483000000-E - 32\" ALASKA RAIL","8483000000-E","32\" ALASKA RAIL",4,"Linear Feet",460,"Bridge(B)"]
["8484000000-E - 42\" OREGON RAIL","8484000000-E","42\" OREGON RAIL",4,"Linear Feet",460,"Bridge(B)"]
["8496000000-E - *****\" GALVANIZED STEEL PIPE RAIL","8496000000-E","*****\" GALVANIZED STEEL PIPE RAIL",4,"Linear Feet",460,"Bridge(B)"]
["8503000000-E - CONCRETE BARRIER RAIL","8503000000-E","CONCRETE BARRIER RAIL",1,"Linear Feet",460,"Bridge(B)"]
["8504000000-E - CONCRETE BARRIER RAIL WITH MOMENT SLAB","8504000000-E","CONCRETE BARRIER RAIL WITH MOMENT SLAB",1,"Linear Feet",460,"Bridge(B)"]
["8505000000-E - VERTICAL CONCRETE BARRIER RAIL","8505000000-E","VERTICAL CONCRETE BARRIER RAIL",1,"Linear Feet",460,"Bridge(B)"]
["8510000000-E - CONCRETE MEDIAN BARRIER","8510000000-E","CONCRETE MEDIAN BARRIER",1,"Linear Feet",460,"Bridge(B)"]
[{"$f":"CONCATENATE(B132,\" - \",C132)","v":"8753000000-E - 3'-0\" X 2'-3\" PRESTRESSED CONC BOX BEAMS"},"8753000000-E","3'-0\" X 2'-3\" PRESTRESSED CONC BOX BEAMS",7,"Linear Feet",430,"Bridge(B)"]
["8753100000-E - 3'-0\" X 2'-9\" PRESTRESSED CONC BOX BEAMS","8753100000-E","3'-0\" X 2'-9\" PRESTRESSED CONC BOX BEAMS",7,"Linear Feet",430,"Bridge(B)"]
["8753200000-E - 3'-0\" X 3'-3\" PRESTRESSED CONC BOX BEAMS","8753200000-E","3'-0\" X 3'-3\" PRESTRESSED CONC BOX BEAMS",7,"Linear Feet",430,"Bridge(B)"]
["8755000000-E - 3'-0\" X 1'-6\" PRESTRESSED CONC CORED SLABS","8755000000-E","3'-0\" X 1'-6\" PRESTRESSED CONC CORED SLABS",7,"Linear Feet",430,"Bridge(B)"]
["8762000000-E - 3'-0\" X 1'-9\" PRESTRESSED CONC CORED SLABS","8762000000-E","3'-0\" X 1'-9\" PRESTRESSED CONC CORED SLABS",7,"Linear Feet",430,"Bridge(B)"]
["8763000000-E - 3'-0\" X 2'-0\" PRESTRESSED CONC CORED SLABS","8763000000-E","3'-0\" X 2'-0\" PRESTRESSED CONC CORED SLABS",7,"Linear Feet",430,"Bridge(B)"]
["8802010000-E - SOIL NAIL RETAINING WALLS","8802010000-E","SOIL NAIL RETAINING WALLS",1,"Square Feet",9000,"Walls(W)"]
["8802012000-E - PILE PANEL RETAINING WALLS","8802012000-E","PILE PANEL RETAINING WALLS",3,"Square Feet",9000,"Walls(W)"]
["8802014000-E - SOLDIER PILE RETAINING WALLS","8802014000-E","SOLDIER PILE RETAINING WALLS",3,"Square Feet",9000,"Walls(W)"]
[]
[]
[]
[]
[]
[]
[]
[]
[]
[]
[]
[]
[]
[]
[]
[]
[]
[]
[]
[]
[]
[]
[]
[]
[]
[]
[]
[]
[]
[]
[]
[]
[]
[]
[]
[]
[]
[]
[]
[]
[]
[]
[]
[]
[]
[]
[]
[]
[]
[]
[]
[]
[]
[]
[]
[]
[]
[]
[]
[]
[]
[]
[]
[]
[]
[]
[]
[]
[]
[]
[]
[]
[]
[null,"Yes"]
[null,"No"]

{"sheet":"Sheet3","index":4,"n_rows":2,"n_cols":1,"rows_kept":2,"cut":false,"hidden":true,"merged":[]}
[]
["Enter Spec Year"]